Publisher Label,Publisher URI,Body Name,Service Area Categorisation,Service Division Categorisation,Expenses Type,Date,Transaction Number,Amount,Capital or Revenue,Supplier Name,Merchant Category
Peterborough,http://opendatacommunities.org/id/unitary-authority/peterborough,Peterborough City Council,Children's & Safeguarding,Access to Resources & Specialist Commissioning,Services,02/11/2016 00:00,30092570,3520.71,Revenue,Sixteen Plus Limited,Boarding Out Allowances
Peterborough,http://opendatacommunities.org/id/unitary-authority/peterborough,Peterborough City Council,Children's & Safeguarding,Access to Resources & Specialist Commissioning,Services,02/11/2016 00:00,30092654,1314.28,Revenue,Sixteen Plus Limited,Boarding Out Allowances
Peterborough,http://opendatacommunities.org/id/unitary-authority/peterborough,Peterborough City Council,Adult Services & Communities - Adults,Day Opportunities / In House,Agency Staff,02/11/2016 00:00,30095284,-2000,Revenue,Caritas Recruitment,External Temporary Staff
Peterborough,http://opendatacommunities.org/id/unitary-authority/peterborough,Peterborough City Council,Children's & Safeguarding,Children's Social Care,Agency Staff,02/11/2016 00:00,30095583,1740,Revenue,Sanctuary Personnel Ltd,External Temporary Staff
Peterborough,http://opendatacommunities.org/id/unitary-authority/peterborough,Peterborough City Council,Children's & Safeguarding,Access to Resources & Specialist Commissioning,Services,02/11/2016 00:00,30096736,934.4,Revenue,Archway Care Ltd,Boarding Out Allowances
Peterborough,http://opendatacommunities.org/id/unitary-authority/peterborough,Peterborough City Council,Adult Services & Communities - Adults,Independent Sector Placements,Services,02/11/2016 00:00,30096891,4060.64,Revenue,Voyage,Residential Care
Peterborough,http://opendatacommunities.org/id/unitary-authority/peterborough,Peterborough City Council,Adult Services & Communities - Adults,Independent Sector Placements,Services,02/11/2016 00:00,30096892,877.75,Revenue,Voyage,Home Care
Peterborough,http://opendatacommunities.org/id/unitary-authority/peterborough,Peterborough City Council,Adult Services & Communities - Adults,Independent Sector Placements,Services,02/11/2016 00:00,30096893,2990.04,Revenue,Voyage,Home Care
Peterborough,http://opendatacommunities.org/id/unitary-authority/peterborough,Peterborough City Council,Adult Services & Communities - Adults,Independent Sector Placements,Services,02/11/2016 00:00,30096898,877.75,Revenue,Voyage,Home Care
Peterborough,http://opendatacommunities.org/id/unitary-authority/peterborough,Peterborough City Council,Adult Services & Communities - Adults,Independent Sector Placements,Services,02/11/2016 00:00,30096899,3365.44,Revenue,Voyage,Residential Care
Peterborough,http://opendatacommunities.org/id/unitary-authority/peterborough,Peterborough City Council,Adult Services & Communities - Adults,Independent Sector Placements,Services,02/11/2016 00:00,30096900,3734.2,Revenue,Voyage,Home Care
Peterborough,http://opendatacommunities.org/id/unitary-authority/peterborough,Peterborough City Council,Adult Services & Communities - Adults,Independent Sector Placements,Services,02/11/2016 00:00,30096901,4415.2,Revenue,Voyage,Home Care
Peterborough,http://opendatacommunities.org/id/unitary-authority/peterborough,Peterborough City Council,Adult Services & Communities - Adults,Independent Sector Placements,Services,02/11/2016 00:00,30096903,877.75,Revenue,Voyage,Home Care
Peterborough,http://opendatacommunities.org/id/unitary-authority/peterborough,Peterborough City Council,Adult Services & Communities - Adults,Independent Sector Placements,Services,02/11/2016 00:00,30096904,877.75,Revenue,Voyage,Home Care
Peterborough,http://opendatacommunities.org/id/unitary-authority/peterborough,Peterborough City Council,Adult Services & Communities - Adults,Independent Sector Placements,Services,02/11/2016 00:00,30096906,877.75,Revenue,Voyage,Home Care
Peterborough,http://opendatacommunities.org/id/unitary-authority/peterborough,Peterborough City Council,Adult Services & Communities - Adults,Independent Sector Placements,Services,02/11/2016 00:00,30096907,3496.44,Revenue,Voyage,Home Care
Peterborough,http://opendatacommunities.org/id/unitary-authority/peterborough,Peterborough City Council,Adult Services & Communities - Adults,Independent Sector Placements,Services,02/11/2016 00:00,30096909,2990.04,Revenue,Voyage,Home Care
Peterborough,http://opendatacommunities.org/id/unitary-authority/peterborough,Peterborough City Council,Adult Services & Communities - Adults,Independent Sector Placements,Services,02/11/2016 00:00,30096911,4415.2,Revenue,Voyage,Home Care
Peterborough,http://opendatacommunities.org/id/unitary-authority/peterborough,Peterborough City Council,Adult Services & Communities - Adults,Independent Sector Placements,Services,02/11/2016 00:00,30096913,3365.44,Revenue,Voyage,Residential Care
Peterborough,http://opendatacommunities.org/id/unitary-authority/peterborough,Peterborough City Council,Adult Services & Communities - Adults,Independent Sector Placements,Services,02/11/2016 00:00,30096914,3496.44,Revenue,Voyage,Home Care
Peterborough,http://opendatacommunities.org/id/unitary-authority/peterborough,Peterborough City Council,Adult Services & Communities - Adults,Independent Sector Placements,Services,02/11/2016 00:00,30096942,6097.16,Revenue,Voyage,Residential Care
Peterborough,http://opendatacommunities.org/id/unitary-authority/peterborough,Peterborough City Council,Adult Services & Communities - Adults,Independent Sector Placements,Services,02/11/2016 00:00,30096944,4147.2,Revenue,Voyage,Home Care
Peterborough,http://opendatacommunities.org/id/unitary-authority/peterborough,Peterborough City Council,Adult Services & Communities - Adults,Independent Sector Placements,Services,02/11/2016 00:00,30096945,4147.2,Revenue,Voyage,Home Care
Peterborough,http://opendatacommunities.org/id/unitary-authority/peterborough,Peterborough City Council,Children's & Safeguarding,Access to Resources & Specialist Commissioning,Services,02/11/2016 00:00,30096961,2464.28,Revenue,Sixteen Plus Limited,Boarding Out Allowances
Peterborough,http://opendatacommunities.org/id/unitary-authority/peterborough,Peterborough City Council,Adult Services & Communities - Adults,Independent Sector Placements,Services,02/11/2016 00:00,30096999,6125.84,Revenue,Voyage,Home Care
Peterborough,http://opendatacommunities.org/id/unitary-authority/peterborough,Peterborough City Council,Corporate,Corporate,Non Revenue,02/11/2016 00:00,30097314,3505,Capital,NPS Peterborough Ltd,Consultants Fees
Peterborough,http://opendatacommunities.org/id/unitary-authority/peterborough,Peterborough City Council,Adult Services & Communities - Adults,Day Opportunities / In House,Agency Staff,02/11/2016 00:00,30097331,1400,Revenue,Caritas Recruitment,External Temporary Staff
Peterborough,http://opendatacommunities.org/id/unitary-authority/peterborough,Peterborough City Council,Children's & Safeguarding,Children's Social Care,Agency Staff,02/11/2016 00:00,30097332,1322.75,Revenue,Caritas Recruitment,External Temporary Staff
Peterborough,http://opendatacommunities.org/id/unitary-authority/peterborough,Peterborough City Council,Adult Services & Communities - Adults,Day Opportunities / In House,Agency Staff,02/11/2016 00:00,30097334,2000,Revenue,Caritas Recruitment,External Temporary Staff
Peterborough,http://opendatacommunities.org/id/unitary-authority/peterborough,Peterborough City Council,Adult Services & Communities - Adults,Day Opportunities / In House,Agency Staff,02/11/2016 00:00,30097337,1369,Revenue,Caritas Recruitment,External Temporary Staff
Peterborough,http://opendatacommunities.org/id/unitary-authority/peterborough,Peterborough City Council,Adult Services & Communities - Adults,Day Opportunities / In House,Agency Staff,02/11/2016 00:00,30097338,1295,Revenue,Caritas Recruitment,External Temporary Staff
Peterborough,http://opendatacommunities.org/id/unitary-authority/peterborough,Peterborough City Council,Adult Services & Communities - Adults,Day Opportunities / In House,Agency Staff,02/11/2016 00:00,30097339,1221,Revenue,Caritas Recruitment,External Temporary Staff
Peterborough,http://opendatacommunities.org/id/unitary-authority/peterborough,Peterborough City Council,Adult Services & Communities - Adults,Block Contracts,Third Party Payments,02/11/2016 00:00,30097343,6711.6,Revenue,Hales Group Ltd,Third Party Payments - Contract
Peterborough,http://opendatacommunities.org/id/unitary-authority/peterborough,Peterborough City Council,Adult Services & Communities - Adults,Block Contracts,Third Party Payments,02/11/2016 00:00,30097344,2108.4,Revenue,Hales Group Ltd,Third Party Payments - Contract
Peterborough,http://opendatacommunities.org/id/unitary-authority/peterborough,Peterborough City Council,Energy,Environment Capital,Services,02/11/2016 00:00,30097351,24572,Revenue,Pinsent Masons,Legal Costs
Peterborough,http://opendatacommunities.org/id/unitary-authority/peterborough,Peterborough City Council,Children's & Safeguarding,Children's Social Care,Agency Staff,02/11/2016 00:00,30097428,1740,Revenue,Sanctuary Personnel Ltd,External Temporary Staff
Peterborough,http://opendatacommunities.org/id/unitary-authority/peterborough,Peterborough City Council,Children's & Safeguarding,Children's Social Care,Agency Staff,02/11/2016 00:00,30097432,1740,Revenue,Sanctuary Personnel Ltd,External Temporary Staff
Peterborough,http://opendatacommunities.org/id/unitary-authority/peterborough,Peterborough City Council,City Servs & Communications,Parking Services,Services,02/11/2016 00:00,30097442,875,Revenue,British Parking Association,Subscriptions
Peterborough,http://opendatacommunities.org/id/unitary-authority/peterborough,Peterborough City Council,City Servs & Communications,Regulatory Services,Agency Staff,02/11/2016 00:00,30097509,1140,Revenue,Osborne Richardson,External Temporary Staff
Peterborough,http://opendatacommunities.org/id/unitary-authority/peterborough,Peterborough City Council,Adult Services & Communities - Adults,Day Opportunities / In House,Agency Staff,02/11/2016 00:00,30097550,976.8,Revenue,Medicare First,External Temporary Staff
Peterborough,http://opendatacommunities.org/id/unitary-authority/peterborough,Peterborough City Council,Adult Services & Communities - Adults,Day Opportunities / In House,Agency Staff,02/11/2016 00:00,30097551,710.4,Revenue,Medicare First,External Temporary Staff
Peterborough,http://opendatacommunities.org/id/unitary-authority/peterborough,Peterborough City Council,City Servs & Communications,Regulatory Services,Agency Staff,02/11/2016 00:00,30097639,1035.43,Revenue,Eden Brown Ltd,External Temporary Staff
Peterborough,http://opendatacommunities.org/id/unitary-authority/peterborough,Peterborough City Council,Adult Services & Communities - Adults,Independent Sector Placements,Services,02/11/2016 00:00,30097665,6249.6,Revenue,Voyage,Home Care
Peterborough,http://opendatacommunities.org/id/unitary-authority/peterborough,Peterborough City Council,Adult Services & Communities - Adults,Independent Sector Placements,Services,02/11/2016 00:00,30097666,686.4,Revenue,Voyage,Home Care
Peterborough,http://opendatacommunities.org/id/unitary-authority/peterborough,Peterborough City Council,Adult Services & Communities - Adults,Independent Sector Placements,Services,02/11/2016 00:00,30097668,646.8,Revenue,Voyage,Home Care
Peterborough,http://opendatacommunities.org/id/unitary-authority/peterborough,Peterborough City Council,Corporate,Corporate,Non Revenue,02/11/2016 00:00,30097670,2804.81,Capital,British Telecom PLC,Infrastructure
Peterborough,http://opendatacommunities.org/id/unitary-authority/peterborough,Peterborough City Council,Corporate,Corporate,Non Revenue,02/11/2016 00:00,30097688,27336.15,Capital,Highways England Company Limited,Infrastructure
Peterborough,http://opendatacommunities.org/id/unitary-authority/peterborough,Peterborough City Council,Business Management and Commercial Operations,Business Management and Commercial Operations,Agency Staff,02/11/2016 00:00,30097694,2500,Revenue,Thawait's Consulting Ltd,External Temporary Staff
Peterborough,http://opendatacommunities.org/id/unitary-authority/peterborough,Peterborough City Council,Westcombe Engineering,Westcombe Engineering,Services,02/11/2016 00:00,30097695,899,Revenue,BSi Management Systems,Hired Services
Peterborough,http://opendatacommunities.org/id/unitary-authority/peterborough,Peterborough City Council,Adult Services & Communities - Adults,Day Opportunities / In House,Agency Staff,02/11/2016 00:00,30097701,1295,Revenue,Caritas Recruitment,External Temporary Staff
Peterborough,http://opendatacommunities.org/id/unitary-authority/peterborough,Peterborough City Council,City Servs & Communications,Parking Services,Services,02/11/2016 00:00,30097702,1143.25,Revenue,BemroseBooth Ltd,Tickets
Peterborough,http://opendatacommunities.org/id/unitary-authority/peterborough,Peterborough City Council,City Servs & Communications,Parking Services,Services,02/11/2016 00:00,30097703,-1108.25,Revenue,BemroseBooth Ltd,Tickets
Peterborough,http://opendatacommunities.org/id/unitary-authority/peterborough,Peterborough City Council,"Cemeteries, Cremation & Registrars",Bereavement Service,Services,02/11/2016 00:00,30097705,1564,Revenue,Anglia Co-operative Funerals,Contract Funerals
Peterborough,http://opendatacommunities.org/id/unitary-authority/peterborough,Peterborough City Council,HR,HR,Services,02/11/2016 00:00,30097710,786.77,Revenue,Heales Medical Ltd,Hired Services
Peterborough,http://opendatacommunities.org/id/unitary-authority/peterborough,Peterborough City Council,Business Management and Commercial Operations,Business Management and Commercial Operations,Services,02/11/2016 00:00,30097712,2144.3,Revenue,CAS Care Consultancy Ltd,Consultants Fees
Peterborough,http://opendatacommunities.org/id/unitary-authority/peterborough,Peterborough City Council,Adult Services & Communities - Adults,Independent Sector Placements,Services,02/11/2016 00:00,30097715,1706.29,Revenue,Barchester Healthcare (Werrington Lodge),Residential Care
Peterborough,http://opendatacommunities.org/id/unitary-authority/peterborough,Peterborough City Council,Development and Construction,Development Management,Services,02/11/2016 00:00,30097718,622.5,Revenue,Johnston Press Midlands Division,Advertising
Peterborough,http://opendatacommunities.org/id/unitary-authority/peterborough,Peterborough City Council,Adult Services & Communities - Adults,Therapy/Reablement/Community Equipment,Agency Staff,02/11/2016 00:00,30097722,1258,Revenue,SWP Consulting,External Temporary Staff
Peterborough,http://opendatacommunities.org/id/unitary-authority/peterborough,Peterborough City Council,Children's & Safeguarding,Child Health,Services,02/11/2016 00:00,30097779,30480.5,Revenue,DRINKSENSE,Purchased Social Care Services
Peterborough,http://opendatacommunities.org/id/unitary-authority/peterborough,Peterborough City Council,Corporate,Corporate,Non Revenue,02/11/2016 00:00,30097790,1000,Capital,NPS Peterborough Ltd,Consultants Fees
Peterborough,http://opendatacommunities.org/id/unitary-authority/peterborough,Peterborough City Council,Adult Services & Communities - Adults,Block Contracts,Third Party Payments,02/11/2016 00:00,30097794,6708,Revenue,Axiom Housing Association,Third Party Payments - Contract
Peterborough,http://opendatacommunities.org/id/unitary-authority/peterborough,Peterborough City Council,Children's & Safeguarding,Child Health,Services,02/11/2016 00:00,30097795,13109.25,Revenue,Papworth Trust,Purchased Social Care Services
Peterborough,http://opendatacommunities.org/id/unitary-authority/peterborough,Peterborough City Council,Legal & Democratic,Legal Services,Agency Staff,02/11/2016 00:00,30097799,1457.81,Revenue,Venn Group Ltd,External Temporary Staff
Peterborough,http://opendatacommunities.org/id/unitary-authority/peterborough,Peterborough City Council,Legal & Democratic,Legal Services,Agency Staff,02/11/2016 00:00,30097800,1096.75,Revenue,Venn Group Ltd,External Temporary Staff
Peterborough,http://opendatacommunities.org/id/unitary-authority/peterborough,Peterborough City Council,Legal & Democratic,Legal Services,Agency Staff,02/11/2016 00:00,30097803,1591,Revenue,Venn Group Ltd,External Temporary Staff
Peterborough,http://opendatacommunities.org/id/unitary-authority/peterborough,Peterborough City Council,Adult Services & Communities - Adults,Finance,Agency Staff,02/11/2016 00:00,30097806,2675,Revenue,Badenoch & Clark Ltd,External Temporary Staff
Peterborough,http://opendatacommunities.org/id/unitary-authority/peterborough,Peterborough City Council,Peterborough Highway Services,Highway & Drainage Control,Agency Staff,02/11/2016 00:00,30097815,1140,Revenue,Matchtech,External Temporary Staff
Peterborough,http://opendatacommunities.org/id/unitary-authority/peterborough,Peterborough City Council,Corporate,Corporate,Non Revenue,02/11/2016 00:00,30097827,600,Capital,Virgin Media Ltd,Infrastructure
Peterborough,http://opendatacommunities.org/id/unitary-authority/peterborough,Peterborough City Council,Business Management and Commercial Operations,Clare Lodge,Agency Staff,02/11/2016 00:00,30097836,1179,Revenue,Engage Education,Supply Teachers
Peterborough,http://opendatacommunities.org/id/unitary-authority/peterborough,Peterborough City Council,Business Management and Commercial Operations,Commissioning,Services,02/11/2016 00:00,30097864,3940,Revenue,BDP Social Care Ltd,Hired Services
Peterborough,http://opendatacommunities.org/id/unitary-authority/peterborough,Peterborough City Council,Children's & Safeguarding,Access to Resources & Specialist Commissioning,Services,02/11/2016 00:00,30097865,509.75,Revenue,BDP Social Care Ltd,Hired Services
Peterborough,http://opendatacommunities.org/id/unitary-authority/peterborough,Peterborough City Council,Corporate,Corporate,Non Revenue,02/11/2016 00:00,30097918,4000,Capital,Rider Levett Bucknall UK Ltd,Consultants Fees
Peterborough,http://opendatacommunities.org/id/unitary-authority/peterborough,Peterborough City Council,Adult Services & Communities - Adults,Independent Sector Placements,Services,02/11/2016 00:00,30097944,-18407.2,Revenue,Voyage,Residential Care
Peterborough,http://opendatacommunities.org/id/unitary-authority/peterborough,Peterborough City Council,Adult Services & Communities - Adults,Independent Sector Placements,Services,02/11/2016 00:00,30097946,4060.64,Revenue,Voyage,Residential Care
Peterborough,http://opendatacommunities.org/id/unitary-authority/peterborough,Peterborough City Council,Adult Services & Communities - Adults,Independent Sector Placements,Services,02/11/2016 00:00,30098039,2128.92,Revenue,Alysia Caring Ltd T/a Cherry Blossom care Home,Residential Care
Peterborough,http://opendatacommunities.org/id/unitary-authority/peterborough,Peterborough City Council,Adult Services & Communities - Adults,Independent Sector Placements,Services,02/11/2016 00:00,30098040,775,Revenue,Alysia Caring Ltd T/a Cherry Blossom care Home,Residential Care
Peterborough,http://opendatacommunities.org/id/unitary-authority/peterborough,Peterborough City Council,Adult Services & Communities - Adults,Independent Sector Placements,Services,02/11/2016 00:00,30098041,1900,Revenue,Alysia Caring Ltd T/a Cherry Blossom care Home,Residential Care
Peterborough,http://opendatacommunities.org/id/unitary-authority/peterborough,Peterborough City Council,Children's & Safeguarding,Child Health,Services,02/11/2016 00:00,30098048,11250,Revenue,Scope,Purchased Social Care Services
Peterborough,http://opendatacommunities.org/id/unitary-authority/peterborough,Peterborough City Council,Adult Services & Communities - Adults,Independent Sector Placements,Services,02/11/2016 00:00,30098062,2052,Revenue,Voyage,Home Care
Peterborough,http://opendatacommunities.org/id/unitary-authority/peterborough,Peterborough City Council,Adult Services & Communities - Adults,Independent Sector Placements,Services,02/11/2016 00:00,30098063,1554,Revenue,Voyage,Home Care
Peterborough,http://opendatacommunities.org/id/unitary-authority/peterborough,Peterborough City Council,Adult Services & Communities - Adults,Independent Sector Placements,Services,02/11/2016 00:00,30098066,5326.4,Revenue,Voyage,Home Care
Peterborough,http://opendatacommunities.org/id/unitary-authority/peterborough,Peterborough City Council,Adult Services & Communities - Adults,Independent Sector Placements,Services,02/11/2016 00:00,30098068,4222.4,Revenue,Voyage,Home Care
Peterborough,http://opendatacommunities.org/id/unitary-authority/peterborough,Peterborough City Council,Adult Services & Communities - Adults,Independent Sector Placements,Services,02/11/2016 00:00,30098072,4222.4,Revenue,Voyage,Home Care
Peterborough,http://opendatacommunities.org/id/unitary-authority/peterborough,Peterborough City Council,Adult Services & Communities - Adults,Independent Sector Placements,Services,02/11/2016 00:00,30098073,3900,Revenue,Alysia Caring Ltd T/a Cherry Blossom care Home,Residential Care
Peterborough,http://opendatacommunities.org/id/unitary-authority/peterborough,Peterborough City Council,Adult Services & Communities - Adults,Independent Sector Placements,Services,02/11/2016 00:00,30098074,1541.99,Revenue,Alysia Caring Ltd T/a Cherry Blossom care Home,Residential Care
Peterborough,http://opendatacommunities.org/id/unitary-authority/peterborough,Peterborough City Council,Adult Services & Communities - Adults,Independent Sector Placements,Services,02/11/2016 00:00,30098075,1914.84,Revenue,Alysia Caring Ltd T/a Cherry Blossom care Home,Residential Care
Peterborough,http://opendatacommunities.org/id/unitary-authority/peterborough,Peterborough City Council,Adult Services & Communities - Adults,Independent Sector Placements,Services,02/11/2016 00:00,30098079,3013.34,Revenue,Mayfield Residential Home,Residential Care
Peterborough,http://opendatacommunities.org/id/unitary-authority/peterborough,Peterborough City Council,Adult Services & Communities - Adults,Independent Sector Placements,Services,02/11/2016 00:00,30098131,4992.32,Revenue,LEONARD CHESHIRE DISABILITY,Residential Care
Peterborough,http://opendatacommunities.org/id/unitary-authority/peterborough,Peterborough City Council,Adult Services & Communities - Adults,Independent Sector Placements,Services,02/11/2016 00:00,30098133,3470.76,Revenue,LEONARD CHESHIRE DISABILITY,Residential Care
Peterborough,http://opendatacommunities.org/id/unitary-authority/peterborough,Peterborough City Council,Adult Services & Communities - Adults,Independent Sector Placements,Services,02/11/2016 00:00,30098135,2946.36,Revenue,LEONARD CHESHIRE DISABILITY,Residential Care
Peterborough,http://opendatacommunities.org/id/unitary-authority/peterborough,Peterborough City Council,Adult Services & Communities - Adults,Independent Sector Placements,Services,02/11/2016 00:00,30098136,5537.04,Revenue,LEONARD CHESHIRE DISABILITY,Residential Care
Peterborough,http://opendatacommunities.org/id/unitary-authority/peterborough,Peterborough City Council,Adult Services & Communities - Adults,Independent Sector Placements,Services,02/11/2016 00:00,30098137,3552,Revenue,LEONARD CHESHIRE DISABILITY,Residential Care
Peterborough,http://opendatacommunities.org/id/unitary-authority/peterborough,Peterborough City Council,Adult Services & Communities - Adults,Independent Sector Placements,Services,02/11/2016 00:00,30098138,2703.64,Revenue,LEONARD CHESHIRE DISABILITY,Residential Care
Peterborough,http://opendatacommunities.org/id/unitary-authority/peterborough,Peterborough City Council,Adult Services & Communities - Adults,Independent Sector Placements,Services,02/11/2016 00:00,30098168,1004.63,Revenue,Deafblind Enablement Ltd,Home Care
Peterborough,http://opendatacommunities.org/id/unitary-authority/peterborough,Peterborough City Council,Adult Services & Communities - Adults,Independent Sector Placements,Services,02/11/2016 00:00,30098171,1752.2,Revenue,Swanton Community Support,Residential Care
Peterborough,http://opendatacommunities.org/id/unitary-authority/peterborough,Peterborough City Council,Peterborough Highway Services,Highway & Drainage Control,Agency Staff,02/11/2016 00:00,30098251,1332,Revenue,Matchtech,External Temporary Staff
Peterborough,http://opendatacommunities.org/id/unitary-authority/peterborough,Peterborough City Council,Development and Construction,Planning Compliance,Services,02/11/2016 00:00,30098286,2000,Revenue,Mr Reuben Taylor QC,Legal Costs
Peterborough,http://opendatacommunities.org/id/unitary-authority/peterborough,Peterborough City Council,Adults and Communities - Communities,Housing and Health,Services,02/11/2016 00:00,30098397,900,Revenue,Wilson & Co Homes,Financial Assistance
Peterborough,http://opendatacommunities.org/id/unitary-authority/peterborough,Peterborough City Council,Peterborough Highway Services,Network and Traffic Management,Services,02/11/2016 00:00,30098439,722.46,Revenue,Vix Technology UK Ltd,Real Time Passenger Information
Peterborough,http://opendatacommunities.org/id/unitary-authority/peterborough,Peterborough City Council,Adult Services & Communities - Adults,Independent Sector Placements,Services,02/11/2016 00:00,30098498,2660,Revenue,Exclusive Secure Care Services,Home Care
Peterborough,http://opendatacommunities.org/id/unitary-authority/peterborough,Peterborough City Council,HR,HR WFD & Training,Interview & Training Expenses,02/11/2016 00:00,30098555,2538,Revenue,Reinvigoration,Training
Peterborough,http://opendatacommunities.org/id/unitary-authority/peterborough,Peterborough City Council,Legal & Democratic,Legal Services,Services,02/11/2016 00:00,30098557,901.2,Revenue,Miss Kristina Hopper,Legal Costs
Peterborough,http://opendatacommunities.org/id/unitary-authority/peterborough,Peterborough City Council,Adult Services & Communities - Adults,Therapy/Reablement/Community Equipment,"Tools, Equipment, Furniture & Materials",02/11/2016 00:00,30098627,1205.16,Revenue,NRS Healthcare,Occupational Therapy Equipment
Peterborough,http://opendatacommunities.org/id/unitary-authority/peterborough,Peterborough City Council,Adult Services & Communities - Adults,Therapy/Reablement/Community Equipment,"Tools, Equipment, Furniture & Materials",02/11/2016 00:00,30098628,93722.61,Revenue,NRS Healthcare,Occupational Therapy Equipment
Peterborough,http://opendatacommunities.org/id/unitary-authority/peterborough,Peterborough City Council,Education,Pupil Referral Unit,Services,02/11/2016 00:00,30098649,1999.5,Revenue,NACRO,Courses And Seminars
Peterborough,http://opendatacommunities.org/id/unitary-authority/peterborough,Peterborough City Council,Legal & Democratic,Democratic Services,Services,02/11/2016 00:00,30098729,9758,Revenue,Penna Plc,Consultants Fees
Peterborough,http://opendatacommunities.org/id/unitary-authority/peterborough,Peterborough City Council,Corporate Property,Office Accomodation,Cleaning & Domestic Supplies,02/11/2016 00:00,30098841,1477.28,Revenue,Beebys Ltd,Cleaning
Peterborough,http://opendatacommunities.org/id/unitary-authority/peterborough,Peterborough City Council,Public Health,Public Health,Services,02/11/2016 00:00,30098907,1800,Revenue,Cambridgeshire County Council,Subscriptions
Peterborough,http://opendatacommunities.org/id/unitary-authority/peterborough,Peterborough City Council,Education,Pupil Referral Unit,Agency Staff,02/11/2016 00:00,30098911,672.1,Revenue,Vision for Education Ltd,Supply Teachers
Peterborough,http://opendatacommunities.org/id/unitary-authority/peterborough,Peterborough City Council,Business Management and Commercial Operations,Business Management and Commercial Operations,Agency Staff,02/11/2016 00:00,30098932,651,Revenue,Reed Specialist Recruitment,External Temporary Staff
Peterborough,http://opendatacommunities.org/id/unitary-authority/peterborough,Peterborough City Council,Performance & Information,Performance & Information,Agency Staff,02/11/2016 00:00,30098936,553.89,Revenue,Reed Specialist Recruitment,External Temporary Staff
Peterborough,http://opendatacommunities.org/id/unitary-authority/peterborough,Peterborough City Council,Financial Services,Finance,Agency Staff,02/11/2016 00:00,30098940,1276.5,Revenue,Reed Specialist Recruitment,External Temporary Staff
Peterborough,http://opendatacommunities.org/id/unitary-authority/peterborough,Peterborough City Council,Financial Services,Finance,Agency Staff,02/11/2016 00:00,30098941,678.41,Revenue,Reed Specialist Recruitment,External Temporary Staff
Peterborough,http://opendatacommunities.org/id/unitary-authority/peterborough,Peterborough City Council,Performance & Information,Performance & Information,Agency Staff,02/11/2016 00:00,30098944,585.72,Revenue,Reed Specialist Recruitment,External Temporary Staff
Peterborough,http://opendatacommunities.org/id/unitary-authority/peterborough,Peterborough City Council,Performance & Information,Performance & Information,Agency Staff,02/11/2016 00:00,30098996,602.64,Revenue,Reed Specialist Recruitment,External Temporary Staff
Peterborough,http://opendatacommunities.org/id/unitary-authority/peterborough,Peterborough City Council,Performance & Information,Performance & Information,Agency Staff,02/11/2016 00:00,30099003,561.38,Revenue,Reed Specialist Recruitment,External Temporary Staff
Peterborough,http://opendatacommunities.org/id/unitary-authority/peterborough,Peterborough City Council,Education,Pupil Referral Unit,Agency Staff,02/11/2016 00:00,30099395,7022.5,Revenue,Vision for Education Ltd,Supply Teachers
Peterborough,http://opendatacommunities.org/id/unitary-authority/peterborough,Peterborough City Council,Adult Services & Communities - Adults,Finance,Agency Staff,02/11/2016 00:00,30099447,3325,Revenue,Willowmead Consultants Ltd,External Temporary Staff
Peterborough,http://opendatacommunities.org/id/unitary-authority/peterborough,Peterborough City Council,Adult Services & Communities - Adults,Independent Sector Placements,Services,02/11/2016 00:00,30099480,1941.21,Revenue,Cambridgeshire County Council,Day Care
Peterborough,http://opendatacommunities.org/id/unitary-authority/peterborough,Peterborough City Council,Westcombe Engineering,Westcombe Engineering,Services,02/11/2016 00:00,30099507,785,Revenue,Barron Clark Castings Ltd,Items For Resale
Peterborough,http://opendatacommunities.org/id/unitary-authority/peterborough,Peterborough City Council,Children's & Safeguarding,Children's Social Care,Agency Staff,02/11/2016 00:00,30099602,-1322.75,Revenue,Caritas Recruitment,External Temporary Staff
Peterborough,http://opendatacommunities.org/id/unitary-authority/peterborough,Peterborough City Council,Business Management and Commercial Operations,Clare Lodge,Agency Staff,02/11/2016 00:00,30099616,1544,Revenue,Wrixon Care Services,External Temporary Staff
Peterborough,http://opendatacommunities.org/id/unitary-authority/peterborough,Peterborough City Council,Business Management and Commercial Operations,Clare Lodge,Agency Staff,02/11/2016 00:00,30099618,832,Revenue,Wrixon Care Services,External Temporary Staff
Peterborough,http://opendatacommunities.org/id/unitary-authority/peterborough,Peterborough City Council,Adult Services & Communities - Adults,Day Opportunities / In House,Agency Staff,02/11/2016 00:00,30099619,-1221,Revenue,Caritas Recruitment,External Temporary Staff
Peterborough,http://opendatacommunities.org/id/unitary-authority/peterborough,Peterborough City Council,Business Management and Commercial Operations,Clare Lodge,Agency Staff,02/11/2016 00:00,30099620,912,Revenue,Wrixon Care Services,External Temporary Staff
Peterborough,http://opendatacommunities.org/id/unitary-authority/peterborough,Peterborough City Council,Adult Services & Communities - Adults,Independent Sector Placements,Services,02/11/2016 00:00,30099625,1594,Revenue,Barchester Healthcare (Werrington Lodge),Residential Care
Peterborough,http://opendatacommunities.org/id/unitary-authority/peterborough,Peterborough City Council,Peterborough Highway Services,Transport & Infrastructure Commissioning,Services,02/11/2016 00:00,30099632,9652.5,Revenue,Orton Community Transport Association Ltd,Contract Services
Peterborough,http://opendatacommunities.org/id/unitary-authority/peterborough,Peterborough City Council,Business Management and Commercial Operations,Clare Lodge,"Tools, Equipment, Furniture & Materials",02/11/2016 00:00,30099634,663.6,Revenue,Bull & Co Ltd,Furniture And Equipment Repairs
Peterborough,http://opendatacommunities.org/id/unitary-authority/peterborough,Peterborough City Council,Adult Services & Communities - Adults,Independent Sector Placements,Services,02/11/2016 00:00,30099652,2520,Revenue,Midco Care Limited,Home Care
Peterborough,http://opendatacommunities.org/id/unitary-authority/peterborough,Peterborough City Council,Adult Services & Communities - Adults,Independent Sector Placements,Services,02/11/2016 00:00,30099655,506.25,Revenue,Midco Care Limited,Home Care
Peterborough,http://opendatacommunities.org/id/unitary-authority/peterborough,Peterborough City Council,Adult Services & Communities - Adults,Independent Sector Placements,Services,02/11/2016 00:00,30099662,4620,Revenue,Midco Care Limited,Home Care
Peterborough,http://opendatacommunities.org/id/unitary-authority/peterborough,Peterborough City Council,Adult Services & Communities - Adults,Independent Sector Placements,Services,02/11/2016 00:00,30099665,840,Revenue,Midco Care Limited,Home Care
Peterborough,http://opendatacommunities.org/id/unitary-authority/peterborough,Peterborough City Council,Adult Services & Communities - Adults,Independent Sector Placements,Services,02/11/2016 00:00,30099667,1575,Revenue,Midco Care Limited,Home Care
Peterborough,http://opendatacommunities.org/id/unitary-authority/peterborough,Peterborough City Council,Adult Services & Communities - Adults,Independent Sector Placements,Services,02/11/2016 00:00,30099689,603.75,Revenue,Midco Care Limited,Home Care
Peterborough,http://opendatacommunities.org/id/unitary-authority/peterborough,Peterborough City Council,Adult Services & Communities - Adults,Independent Sector Placements,Services,02/11/2016 00:00,30099690,840,Revenue,Midco Care Limited,Home Care
Peterborough,http://opendatacommunities.org/id/unitary-authority/peterborough,Peterborough City Council,Adult Services & Communities - Adults,Independent Sector Placements,Services,02/11/2016 00:00,30099691,945,Revenue,Midco Care Limited,Home Care
Peterborough,http://opendatacommunities.org/id/unitary-authority/peterborough,Peterborough City Council,Adult Services & Communities - Adults,Independent Sector Placements,Services,02/11/2016 00:00,30099692,1785,Revenue,Midco Care Limited,Home Care
Peterborough,http://opendatacommunities.org/id/unitary-authority/peterborough,Peterborough City Council,Adult Services & Communities - Adults,Independent Sector Placements,Services,02/11/2016 00:00,30099693,1890,Revenue,Midco Care Limited,Home Care
Peterborough,http://opendatacommunities.org/id/unitary-authority/peterborough,Peterborough City Council,Adult Services & Communities - Adults,Independent Sector Placements,Services,02/11/2016 00:00,30099695,510,Revenue,Midco Care Limited,Home Care
Peterborough,http://opendatacommunities.org/id/unitary-authority/peterborough,Peterborough City Council,Adult Services & Communities - Adults,Independent Sector Placements,Services,02/11/2016 00:00,30099696,945,Revenue,Midco Care Limited,Home Care
Peterborough,http://opendatacommunities.org/id/unitary-authority/peterborough,Peterborough City Council,Adult Services & Communities - Adults,Independent Sector Placements,Services,02/11/2016 00:00,30099697,525,Revenue,Midco Care Limited,Home Care
Peterborough,http://opendatacommunities.org/id/unitary-authority/peterborough,Peterborough City Council,Adult Services & Communities - Adults,Independent Sector Placements,Services,02/11/2016 00:00,30099699,840,Revenue,Midco Care Limited,Home Care
Peterborough,http://opendatacommunities.org/id/unitary-authority/peterborough,Peterborough City Council,Adult Services & Communities - Adults,Independent Sector Placements,Services,02/11/2016 00:00,30099704,2070,Revenue,Midco Care Limited,Home Care
Peterborough,http://opendatacommunities.org/id/unitary-authority/peterborough,Peterborough City Council,Business Management and Commercial Operations,Clare Lodge,Agency Staff,02/11/2016 00:00,30099751,1185,Revenue,Wrixon Care Services,External Temporary Staff
Peterborough,http://opendatacommunities.org/id/unitary-authority/peterborough,Peterborough City Council,Adults and Communities - Communities,Youth / Youth Offending,Services,02/11/2016 00:00,30099874,3795,Revenue,Peterborough Open Awards Centre CIC,Programmes
Peterborough,http://opendatacommunities.org/id/unitary-authority/peterborough,Peterborough City Council,ICT,ICT,Services,02/11/2016 00:00,30099897,5184.88,Revenue,Capita Business Services Ltd,Computer Software
Peterborough,http://opendatacommunities.org/id/unitary-authority/peterborough,Peterborough City Council,Adults and Communities - Communities,Housing and Health,Services,02/11/2016 00:00,30099932,900,Revenue,PDG Architects Ltd,Special Projects
Peterborough,http://opendatacommunities.org/id/unitary-authority/peterborough,Peterborough City Council,Corporate,Corporate,Non Revenue,02/11/2016 00:00,30099981,212500,Capital,Arcus Global ltd,Computer Hardware
Peterborough,http://opendatacommunities.org/id/unitary-authority/peterborough,Peterborough City Council,Adult Services & Communities - Adults,Independent Sector Placements,Services,02/11/2016 00:00,30100020,25114.71,Revenue,Longueville Court (Barchester),Residential Care
Peterborough,http://opendatacommunities.org/id/unitary-authority/peterborough,Peterborough City Council,City Servs & Communications,Regulatory Services,Agency Staff,02/11/2016 00:00,30100160,1034.08,Revenue,Eden Brown Ltd,External Temporary Staff
Peterborough,http://opendatacommunities.org/id/unitary-authority/peterborough,Peterborough City Council,City Servs & Communications,Regulatory Services,Agency Staff,02/11/2016 00:00,30100161,1049.45,Revenue,Eden Brown Ltd,External Temporary Staff
Peterborough,http://opendatacommunities.org/id/unitary-authority/peterborough,Peterborough City Council,Adult Services & Communities - Adults,Therapy/Reablement/Community Equipment,Agency Staff,02/11/2016 00:00,30100172,522,Revenue,Sanctuary Personnel Ltd,External Temporary Staff
Peterborough,http://opendatacommunities.org/id/unitary-authority/peterborough,Peterborough City Council,Business Management and Commercial Operations,Commissioning,Services,02/11/2016 00:00,30100334,945,Revenue,Alpha Big Sky Ltd,Grant Payment
Peterborough,http://opendatacommunities.org/id/unitary-authority/peterborough,Peterborough City Council,City Servs & Communications,"Markets, Tourism & Events",Services,02/11/2016 00:00,30100335,500,Revenue,Redacted Personal Information,Administration Expenses
Peterborough,http://opendatacommunities.org/id/unitary-authority/peterborough,Peterborough City Council,Adult Services & Communities - Adults,Finance,Services,02/11/2016 00:00,30100491,5698.15,Revenue,Richard Masham Building Services,Special Projects
Peterborough,http://opendatacommunities.org/id/unitary-authority/peterborough,Peterborough City Council,Development and Construction,Development Management,Services,02/11/2016 00:00,30100529,1782.8,Revenue,Redacted Personal Information,Legal Costs
Peterborough,http://opendatacommunities.org/id/unitary-authority/peterborough,Peterborough City Council,Corporate,Corporate,Non Revenue,02/11/2016 00:00,30100546,4769.87,Balance Sheet,Aequitas Legal,Insurance Claims
Peterborough,http://opendatacommunities.org/id/unitary-authority/peterborough,Peterborough City Council,Adult Services & Communities - Adults,Independent Sector Placements,Services,02/11/2016 00:00,30100605,761.4,Revenue,Sagecare,Home Care
Peterborough,http://opendatacommunities.org/id/unitary-authority/peterborough,Peterborough City Council,Adult Services & Communities - Adults,Independent Sector Placements,Services,02/11/2016 00:00,30100607,716.1,Revenue,Sagecare,Home Care
Peterborough,http://opendatacommunities.org/id/unitary-authority/peterborough,Peterborough City Council,Adult Services & Communities - Adults,Independent Sector Placements,Services,02/11/2016 00:00,30100648,5216,Revenue,Augusta Care Ltd,Home Care
Peterborough,http://opendatacommunities.org/id/unitary-authority/peterborough,Peterborough City Council,Adult Services & Communities - Adults,Independent Sector Placements,Services,02/11/2016 00:00,30100649,5216,Revenue,Augusta Care Ltd,Home Care
Peterborough,http://opendatacommunities.org/id/unitary-authority/peterborough,Peterborough City Council,Adult Services & Communities - Adults,Independent Sector Placements,Services,02/11/2016 00:00,30100651,1213.71,Revenue,Barchester Healthcare (Werrington Lodge),Residential Care
Peterborough,http://opendatacommunities.org/id/unitary-authority/peterborough,Peterborough City Council,Adult Services & Communities - Adults,Independent Sector Placements,Services,02/11/2016 00:00,30100653,-1390.71,Revenue,Barchester Healthcare (Werrington Lodge),Residential Care
Peterborough,http://opendatacommunities.org/id/unitary-authority/peterborough,Peterborough City Council,Adult Services & Communities - Adults,Independent Sector Placements,Services,02/11/2016 00:00,30100655,1536,Revenue,THE HELPING HANDS GROUP,Day Care
Peterborough,http://opendatacommunities.org/id/unitary-authority/peterborough,Peterborough City Council,Adult Services & Communities - Adults,Independent Sector Placements,Services,02/11/2016 00:00,30100656,2304,Revenue,THE HELPING HANDS GROUP,Day Care
Peterborough,http://opendatacommunities.org/id/unitary-authority/peterborough,Peterborough City Council,Adult Services & Communities - Adults,Independent Sector Placements,Services,02/11/2016 00:00,30100657,1152,Revenue,THE HELPING HANDS GROUP,Day Care
Peterborough,http://opendatacommunities.org/id/unitary-authority/peterborough,Peterborough City Council,Adult Services & Communities - Adults,Independent Sector Placements,Services,02/11/2016 00:00,30100659,1228.8,Revenue,THE HELPING HANDS GROUP,Day Care
Peterborough,http://opendatacommunities.org/id/unitary-authority/peterborough,Peterborough City Council,Adult Services & Communities - Adults,Independent Sector Placements,Services,02/11/2016 00:00,30100663,2304,Revenue,THE HELPING HANDS GROUP,Day Care
Peterborough,http://opendatacommunities.org/id/unitary-authority/peterborough,Peterborough City Council,Adult Services & Communities - Adults,Independent Sector Placements,Services,02/11/2016 00:00,30100665,2304,Revenue,THE HELPING HANDS GROUP,Day Care
Peterborough,http://opendatacommunities.org/id/unitary-authority/peterborough,Peterborough City Council,Adult Services & Communities - Adults,Independent Sector Placements,Services,02/11/2016 00:00,30100671,1836,Revenue,THE HELPING HANDS GROUP,Day Care
Peterborough,http://opendatacommunities.org/id/unitary-authority/peterborough,Peterborough City Council,Adult Services & Communities - Adults,Independent Sector Placements,Services,02/11/2016 00:00,30100691,2130.14,Revenue,Kemps Place Ltd,Residential Care
Peterborough,http://opendatacommunities.org/id/unitary-authority/peterborough,Peterborough City Council,Adult Services & Communities - Adults,Independent Sector Placements,Services,02/11/2016 00:00,30100696,921.6,Revenue,THE HELPING HANDS GROUP,Day Care
Peterborough,http://opendatacommunities.org/id/unitary-authority/peterborough,Peterborough City Council,Adult Services & Communities - Adults,Independent Sector Placements,Services,02/11/2016 00:00,30100699,2304,Revenue,THE HELPING HANDS GROUP,Day Care
Peterborough,http://opendatacommunities.org/id/unitary-authority/peterborough,Peterborough City Council,Adult Services & Communities - Adults,Independent Sector Placements,Services,02/11/2016 00:00,30100701,1598,Revenue,THE HELPING HANDS GROUP,Day Care
Peterborough,http://opendatacommunities.org/id/unitary-authority/peterborough,Peterborough City Council,Adult Services & Communities - Adults,Independent Sector Placements,Services,02/11/2016 00:00,30100741,1576.24,Revenue,BUPA Care Homes,Residential Care
Peterborough,http://opendatacommunities.org/id/unitary-authority/peterborough,Peterborough City Council,Adult Services & Communities - Adults,Independent Sector Placements,Services,02/11/2016 00:00,30100742,1576.24,Revenue,BUPA Care Homes,Residential Care
Peterborough,http://opendatacommunities.org/id/unitary-authority/peterborough,Peterborough City Council,Adult Services & Communities - Adults,Independent Sector Placements,Services,02/11/2016 00:00,30100781,840,Revenue,Midco Care Limited,Home Care
Peterborough,http://opendatacommunities.org/id/unitary-authority/peterborough,Peterborough City Council,Adult Services & Communities - Adults,Independent Sector Placements,Services,02/11/2016 00:00,30100782,945,Revenue,Midco Care Limited,Home Care
Peterborough,http://opendatacommunities.org/id/unitary-authority/peterborough,Peterborough City Council,Adult Services & Communities - Adults,Independent Sector Placements,Services,02/11/2016 00:00,30100785,682.5,Revenue,Midco Care Limited,Home Care
Peterborough,http://opendatacommunities.org/id/unitary-authority/peterborough,Peterborough City Council,Adult Services & Communities - Adults,Independent Sector Placements,Services,02/11/2016 00:00,30100786,1576.24,Revenue,BUPA Care Homes,Residential Care
Peterborough,http://opendatacommunities.org/id/unitary-authority/peterborough,Peterborough City Council,Adult Services & Communities - Adults,Independent Sector Placements,Services,02/11/2016 00:00,30100800,-1125.89,Revenue,BUPA Care Homes,Residential Care
Peterborough,http://opendatacommunities.org/id/unitary-authority/peterborough,Peterborough City Council,Public Health,Housing and Health - Public Health,Interview & Training Expenses,02/11/2016 00:00,30100846,6605,Revenue,Loughborough College,Training
Peterborough,http://opendatacommunities.org/id/unitary-authority/peterborough,Peterborough City Council,Adult Services & Communities - Adults,Independent Sector Placements,Services,02/11/2016 00:00,30100848,2410.18,Revenue,BUPA Care Homes,Residential Care
Peterborough,http://opendatacommunities.org/id/unitary-authority/peterborough,Peterborough City Council,Adult Services & Communities - Adults,Independent Sector Placements,Services,02/11/2016 00:00,30100849,2420.97,Revenue,BUPA Care Homes,Residential Care
Peterborough,http://opendatacommunities.org/id/unitary-authority/peterborough,Peterborough City Council,Adult Services & Communities - Adults,Independent Sector Placements,Services,02/11/2016 00:00,30100850,1599.92,Revenue,BUPA Care Homes,Residential Care
Peterborough,http://opendatacommunities.org/id/unitary-authority/peterborough,Peterborough City Council,Adult Services & Communities - Adults,Independent Sector Placements,Services,02/11/2016 00:00,30100851,1649.28,Revenue,BUPA Care Homes,Residential Care
Peterborough,http://opendatacommunities.org/id/unitary-authority/peterborough,Peterborough City Council,Adult Services & Communities - Adults,Independent Sector Placements,Services,02/11/2016 00:00,30100852,1783.12,Revenue,BUPA Care Homes,Residential Care
Peterborough,http://opendatacommunities.org/id/unitary-authority/peterborough,Peterborough City Council,Adult Services & Communities - Adults,Independent Sector Placements,Services,02/11/2016 00:00,30100855,1638.96,Revenue,BUPA Care Homes,Residential Care
Peterborough,http://opendatacommunities.org/id/unitary-authority/peterborough,Peterborough City Council,Adult Services & Communities - Adults,Independent Sector Placements,Services,02/11/2016 00:00,30100856,1599.92,Revenue,BUPA Care Homes,Residential Care
Peterborough,http://opendatacommunities.org/id/unitary-authority/peterborough,Peterborough City Council,Adult Services & Communities - Adults,Independent Sector Placements,Services,02/11/2016 00:00,30100857,1638.96,Revenue,BUPA Care Homes,Residential Care
Peterborough,http://opendatacommunities.org/id/unitary-authority/peterborough,Peterborough City Council,Adult Services & Communities - Adults,Independent Sector Placements,Services,02/11/2016 00:00,30100858,1783.12,Revenue,BUPA Care Homes,Residential Care
Peterborough,http://opendatacommunities.org/id/unitary-authority/peterborough,Peterborough City Council,Adult Services & Communities - Adults,Independent Sector Placements,Services,02/11/2016 00:00,30100859,1649.28,Revenue,BUPA Care Homes,Residential Care
Peterborough,http://opendatacommunities.org/id/unitary-authority/peterborough,Peterborough City Council,Adults and Communities - Communities,Housing and Health,Services,02/11/2016 00:00,30100860,2193,Revenue,Rawheat Heating & Plumbing Eng.,Contractors
Peterborough,http://opendatacommunities.org/id/unitary-authority/peterborough,Peterborough City Council,Adult Services & Communities - Adults,Independent Sector Placements,Services,02/11/2016 00:00,30100867,1294.77,Revenue,Park Vista Care Home,Residential Care
Peterborough,http://opendatacommunities.org/id/unitary-authority/peterborough,Peterborough City Council,Adult Services & Communities - Adults,Independent Sector Placements,Services,02/11/2016 00:00,30100876,1701.16,Revenue,BUPA Care Homes,Residential Care
Peterborough,http://opendatacommunities.org/id/unitary-authority/peterborough,Peterborough City Council,Adult Services & Communities - Adults,Independent Sector Placements,Services,02/11/2016 00:00,30100877,1783.12,Revenue,BUPA Care Homes,Residential Care
Peterborough,http://opendatacommunities.org/id/unitary-authority/peterborough,Peterborough City Council,Adult Services & Communities - Adults,Independent Sector Placements,Services,02/11/2016 00:00,30100878,1701.16,Revenue,BUPA Care Homes,Residential Care
Peterborough,http://opendatacommunities.org/id/unitary-authority/peterborough,Peterborough City Council,Adult Services & Communities - Adults,Independent Sector Placements,Services,02/11/2016 00:00,30100879,1783.12,Revenue,BUPA Care Homes,Residential Care
Peterborough,http://opendatacommunities.org/id/unitary-authority/peterborough,Peterborough City Council,Adult Services & Communities - Adults,Independent Sector Placements,Services,02/11/2016 00:00,30100886,1775.12,Revenue,BUPA Care Homes,Residential Care
Peterborough,http://opendatacommunities.org/id/unitary-authority/peterborough,Peterborough City Council,Adult Services & Communities - Adults,Independent Sector Placements,Services,02/11/2016 00:00,30100887,1752.8,Revenue,BUPA Care Homes,Residential Care
Peterborough,http://opendatacommunities.org/id/unitary-authority/peterborough,Peterborough City Council,Adult Services & Communities - Adults,Independent Sector Placements,Services,02/11/2016 00:00,30100888,1775.12,Revenue,BUPA Care Homes,Residential Care
Peterborough,http://opendatacommunities.org/id/unitary-authority/peterborough,Peterborough City Council,Adult Services & Communities - Adults,Independent Sector Placements,Services,02/11/2016 00:00,30100889,1752.8,Revenue,BUPA Care Homes,Residential Care
Peterborough,http://opendatacommunities.org/id/unitary-authority/peterborough,Peterborough City Council,Adult Services & Communities - Adults,Independent Sector Placements,Services,02/11/2016 00:00,30100892,2547.93,Revenue,BUPA Care Homes,Residential Care
Peterborough,http://opendatacommunities.org/id/unitary-authority/peterborough,Peterborough City Council,Adult Services & Communities - Adults,Independent Sector Placements,Services,02/11/2016 00:00,30100893,1692.73,Revenue,BUPA Care Homes,Residential Care
Peterborough,http://opendatacommunities.org/id/unitary-authority/peterborough,Peterborough City Council,Adult Services & Communities - Adults,Independent Sector Placements,Services,02/11/2016 00:00,30100894,2554.33,Revenue,BUPA Care Homes,Residential Care
Peterborough,http://opendatacommunities.org/id/unitary-authority/peterborough,Peterborough City Council,Adult Services & Communities - Adults,Independent Sector Placements,Services,02/11/2016 00:00,30100895,1776.72,Revenue,BUPA Care Homes,Residential Care
Peterborough,http://opendatacommunities.org/id/unitary-authority/peterborough,Peterborough City Council,Adult Services & Communities - Adults,Independent Sector Placements,Services,02/11/2016 00:00,30100897,1783.12,Revenue,BUPA Care Homes,Residential Care
Peterborough,http://opendatacommunities.org/id/unitary-authority/peterborough,Peterborough City Council,Adult Services & Communities - Adults,Independent Sector Placements,Services,02/11/2016 00:00,30100898,921.52,Revenue,BUPA Care Homes,Residential Care
Peterborough,http://opendatacommunities.org/id/unitary-authority/peterborough,Peterborough City Council,Adult Services & Communities - Adults,Independent Sector Placements,Services,02/11/2016 00:00,30100899,1776.72,Revenue,BUPA Care Homes,Residential Care
Peterborough,http://opendatacommunities.org/id/unitary-authority/peterborough,Peterborough City Council,Adult Services & Communities - Adults,Independent Sector Placements,Services,02/11/2016 00:00,30100900,1783.12,Revenue,BUPA Care Homes,Residential Care
Peterborough,http://opendatacommunities.org/id/unitary-authority/peterborough,Peterborough City Council,Adult Services & Communities - Adults,Independent Sector Placements,Services,02/11/2016 00:00,30100901,921.52,Revenue,BUPA Care Homes,Residential Care
Peterborough,http://opendatacommunities.org/id/unitary-authority/peterborough,Peterborough City Council,Corporate,Corporate,Non Revenue,02/11/2016 00:00,30100984,17261.02,Balance Sheet,Cross Keys Homes,Refund of Deposit
Peterborough,http://opendatacommunities.org/id/unitary-authority/peterborough,Peterborough City Council,Adult Services & Communities - Adults,Independent Sector Placements,Services,02/11/2016 00:00,30100990,2546.34,Revenue,BUPA Care Homes,Residential Care
Peterborough,http://opendatacommunities.org/id/unitary-authority/peterborough,Peterborough City Council,Adult Services & Communities - Adults,Independent Sector Placements,Services,02/11/2016 00:00,30100991,2371.13,Revenue,BUPA Care Homes,Residential Care
Peterborough,http://opendatacommunities.org/id/unitary-authority/peterborough,Peterborough City Council,Adult Services & Communities - Adults,Independent Sector Placements,Services,02/11/2016 00:00,30100992,2554.33,Revenue,BUPA Care Homes,Residential Care
Peterborough,http://opendatacommunities.org/id/unitary-authority/peterborough,Peterborough City Council,Adult Services & Communities - Adults,Independent Sector Placements,Services,02/11/2016 00:00,30100993,2524.02,Revenue,BUPA Care Homes,Residential Care
Peterborough,http://opendatacommunities.org/id/unitary-authority/peterborough,Peterborough City Council,Adult Services & Communities - Adults,Independent Sector Placements,Services,02/11/2016 00:00,30100994,1783.12,Revenue,BUPA Care Homes,Residential Care
Peterborough,http://opendatacommunities.org/id/unitary-authority/peterborough,Peterborough City Council,Adult Services & Communities - Adults,Independent Sector Placements,Services,02/11/2016 00:00,30100995,1783.12,Revenue,BUPA Care Homes,Residential Care
Peterborough,http://opendatacommunities.org/id/unitary-authority/peterborough,Peterborough City Council,Adult Services & Communities - Adults,Independent Sector Placements,Services,02/11/2016 00:00,30100996,714.32,Revenue,BUPA Care Homes,Residential Care
Peterborough,http://opendatacommunities.org/id/unitary-authority/peterborough,Peterborough City Council,Adult Services & Communities - Adults,Independent Sector Placements,Services,02/11/2016 00:00,30100997,537.32,Revenue,BUPA Care Homes,Residential Care
Peterborough,http://opendatacommunities.org/id/unitary-authority/peterborough,Peterborough City Council,Adult Services & Communities - Adults,Independent Sector Placements,Services,02/11/2016 00:00,30100998,-1719.44,Revenue,BUPA Care Homes,Residential Care
Peterborough,http://opendatacommunities.org/id/unitary-authority/peterborough,Peterborough City Council,Adult Services & Communities - Adults,Independent Sector Placements,Services,02/11/2016 00:00,30101023,858.66,Revenue,Atlas Care Services Ltd,Home Care
Peterborough,http://opendatacommunities.org/id/unitary-authority/peterborough,Peterborough City Council,Adult Services & Communities - Adults,Independent Sector Placements,Services,02/11/2016 00:00,30101026,3077.13,Revenue,BUPA Care Homes,Residential Care
Peterborough,http://opendatacommunities.org/id/unitary-authority/peterborough,Peterborough City Council,Adult Services & Communities - Adults,Independent Sector Placements,Services,02/11/2016 00:00,30101027,2305.92,Revenue,BUPA Care Homes,Residential Care
Peterborough,http://opendatacommunities.org/id/unitary-authority/peterborough,Peterborough City Council,Adult Services & Communities - Adults,Independent Sector Placements,Services,02/11/2016 00:00,30101029,2305.92,Revenue,BUPA Care Homes,Residential Care
Peterborough,http://opendatacommunities.org/id/unitary-authority/peterborough,Peterborough City Council,Adult Services & Communities - Adults,Independent Sector Placements,Services,02/11/2016 00:00,30101038,896.28,Revenue,Atlas Care Services Ltd,Home Care
Peterborough,http://opendatacommunities.org/id/unitary-authority/peterborough,Peterborough City Council,Adult Services & Communities - Adults,Independent Sector Placements,Services,02/11/2016 00:00,30101055,516.12,Revenue,Atlas Care Services Ltd,Home Care
Peterborough,http://opendatacommunities.org/id/unitary-authority/peterborough,Peterborough City Council,Adult Services & Communities - Adults,Independent Sector Placements,Services,02/11/2016 00:00,30101062,520.08,Revenue,Atlas Care Services Ltd,Home Care
Peterborough,http://opendatacommunities.org/id/unitary-authority/peterborough,Peterborough City Council,Adult Services & Communities - Adults,Independent Sector Placements,Services,02/11/2016 00:00,30101069,2313.3,Revenue,BUPA Care Homes,Residential Care
Peterborough,http://opendatacommunities.org/id/unitary-authority/peterborough,Peterborough City Council,Adult Services & Communities - Adults,Independent Sector Placements,Services,02/11/2016 00:00,30101070,1901.91,Revenue,Augusta Care Ltd,Home Care
Peterborough,http://opendatacommunities.org/id/unitary-authority/peterborough,Peterborough City Council,Adult Services & Communities - Adults,Independent Sector Placements,Services,02/11/2016 00:00,30101071,4437.8,Revenue,Augusta Care Ltd,Home Care
Peterborough,http://opendatacommunities.org/id/unitary-authority/peterborough,Peterborough City Council,Adult Services & Communities - Adults,Independent Sector Placements,Services,02/11/2016 00:00,30101073,2226.09,Revenue,BUPA Care Homes,Residential Care
Peterborough,http://opendatacommunities.org/id/unitary-authority/peterborough,Peterborough City Council,Adult Services & Communities - Adults,Independent Sector Placements,Services,02/11/2016 00:00,30101074,1542.08,Revenue,BUPA Care Homes,Residential Care
Peterborough,http://opendatacommunities.org/id/unitary-authority/peterborough,Peterborough City Council,Adult Services & Communities - Adults,Independent Sector Placements,Services,02/11/2016 00:00,30101075,1542.08,Revenue,BUPA Care Homes,Residential Care
Peterborough,http://opendatacommunities.org/id/unitary-authority/peterborough,Peterborough City Council,Adult Services & Communities - Adults,Independent Sector Placements,Services,02/11/2016 00:00,30101076,1589.48,Revenue,Augusta Care Ltd,Home Care
Peterborough,http://opendatacommunities.org/id/unitary-authority/peterborough,Peterborough City Council,Adult Services & Communities - Adults,Independent Sector Placements,Services,02/11/2016 00:00,30101077,-6022.72,Revenue,Augusta Care Ltd,Home Care
Peterborough,http://opendatacommunities.org/id/unitary-authority/peterborough,Peterborough City Council,Adult Services & Communities - Adults,Independent Sector Placements,Services,02/11/2016 00:00,30101081,966.46,Revenue,Atlas Care Services Ltd,Home Care
Peterborough,http://opendatacommunities.org/id/unitary-authority/peterborough,Peterborough City Council,Adult Services & Communities - Adults,Independent Sector Placements,Services,02/11/2016 00:00,30101082,1454.88,Revenue,BUPA Care Homes,Residential Care
Peterborough,http://opendatacommunities.org/id/unitary-authority/peterborough,Peterborough City Council,Adult Services & Communities - Adults,Independent Sector Placements,Services,02/11/2016 00:00,30101083,1291.82,Revenue,Atlas Care Services Ltd,Home Care
Peterborough,http://opendatacommunities.org/id/unitary-authority/peterborough,Peterborough City Council,Adult Services & Communities - Adults,Independent Sector Placements,Services,02/11/2016 00:00,30101084,1454.88,Revenue,BUPA Care Homes,Residential Care
Peterborough,http://opendatacommunities.org/id/unitary-authority/peterborough,Peterborough City Council,Adult Services & Communities - Adults,Independent Sector Placements,Services,02/11/2016 00:00,30101086,-829.88,Revenue,BUPA Care Homes,Residential Care
Peterborough,http://opendatacommunities.org/id/unitary-authority/peterborough,Peterborough City Council,Adult Services & Communities - Adults,Independent Sector Placements,Services,02/11/2016 00:00,30101090,578.6,Revenue,Atlas Care Services Ltd,Home Care
Peterborough,http://opendatacommunities.org/id/unitary-authority/peterborough,Peterborough City Council,Adult Services & Communities - Adults,Independent Sector Placements,Services,02/11/2016 00:00,30101138,1890,Revenue,Midco Care Limited,Home Care
Peterborough,http://opendatacommunities.org/id/unitary-authority/peterborough,Peterborough City Council,Adult Services & Communities - Adults,Independent Sector Placements,Services,02/11/2016 00:00,30101142,1890,Revenue,Midco Care Limited,Home Care
Peterborough,http://opendatacommunities.org/id/unitary-authority/peterborough,Peterborough City Council,Adult Services & Communities - Adults,Independent Sector Placements,Services,02/11/2016 00:00,8000074281,2369.52,Revenue,MEARS GROUP,Home Care
Peterborough,http://opendatacommunities.org/id/unitary-authority/peterborough,Peterborough City Council,Adult Services & Communities - Adults,Independent Sector Placements,Services,02/11/2016 00:00,8000074282,965.76,Revenue,MEARS GROUP,Home Care
Peterborough,http://opendatacommunities.org/id/unitary-authority/peterborough,Peterborough City Council,Adult Services & Communities - Adults,Independent Sector Placements,Services,02/11/2016 00:00,8000074283,584.4,Revenue,MEARS GROUP,Home Care
Peterborough,http://opendatacommunities.org/id/unitary-authority/peterborough,Peterborough City Council,Adult Services & Communities - Adults,Independent Sector Placements,Services,02/11/2016 00:00,8000074285,1008,Revenue,MEARS GROUP,Home Care
Peterborough,http://opendatacommunities.org/id/unitary-authority/peterborough,Peterborough City Council,Adult Services & Communities - Adults,Independent Sector Placements,Services,02/11/2016 00:00,8000074286,648,Revenue,MEARS GROUP,Home Care
Peterborough,http://opendatacommunities.org/id/unitary-authority/peterborough,Peterborough City Council,Adult Services & Communities - Adults,Independent Sector Placements,Services,02/11/2016 00:00,8000074289,718.32,Revenue,MEARS GROUP,Home Care
Peterborough,http://opendatacommunities.org/id/unitary-authority/peterborough,Peterborough City Council,Adult Services & Communities - Adults,Independent Sector Placements,Services,02/11/2016 00:00,8000074293,581.76,Revenue,MEARS GROUP,Home Care
Peterborough,http://opendatacommunities.org/id/unitary-authority/peterborough,Peterborough City Council,Adult Services & Communities - Adults,Independent Sector Placements,Services,02/11/2016 00:00,8000074299,948.72,Revenue,MEARS GROUP,Home Care
Peterborough,http://opendatacommunities.org/id/unitary-authority/peterborough,Peterborough City Council,Adult Services & Communities - Adults,Independent Sector Placements,Services,02/11/2016 00:00,8000074300,705.6,Revenue,MEARS GROUP,Home Care
Peterborough,http://opendatacommunities.org/id/unitary-authority/peterborough,Peterborough City Council,Adult Services & Communities - Adults,Independent Sector Placements,Services,02/11/2016 00:00,8000074301,1770.48,Revenue,MEARS GROUP,Home Care
Peterborough,http://opendatacommunities.org/id/unitary-authority/peterborough,Peterborough City Council,Adult Services & Communities - Adults,Independent Sector Placements,Services,02/11/2016 00:00,8000074306,730.8,Revenue,MEARS GROUP,Home Care
Peterborough,http://opendatacommunities.org/id/unitary-authority/peterborough,Peterborough City Council,Adult Services & Communities - Adults,Independent Sector Placements,Services,02/11/2016 00:00,8000074307,1407.6,Revenue,MEARS GROUP,Home Care
Peterborough,http://opendatacommunities.org/id/unitary-authority/peterborough,Peterborough City Council,Adult Services & Communities - Adults,Independent Sector Placements,Services,02/11/2016 00:00,8000074310,585.6,Revenue,MEARS GROUP,Home Care
Peterborough,http://opendatacommunities.org/id/unitary-authority/peterborough,Peterborough City Council,Adult Services & Communities - Adults,Independent Sector Placements,Services,02/11/2016 00:00,8000074317,709.92,Revenue,MEARS GROUP,Home Care
Peterborough,http://opendatacommunities.org/id/unitary-authority/peterborough,Peterborough City Council,Adult Services & Communities - Adults,Independent Sector Placements,Services,02/11/2016 00:00,8000074324,778.32,Revenue,MEARS GROUP,Home Care
Peterborough,http://opendatacommunities.org/id/unitary-authority/peterborough,Peterborough City Council,Adult Services & Communities - Adults,Independent Sector Placements,Services,02/11/2016 00:00,8000074326,1944,Revenue,MEARS GROUP,Home Care
Peterborough,http://opendatacommunities.org/id/unitary-authority/peterborough,Peterborough City Council,Adult Services & Communities - Adults,Independent Sector Placements,Services,02/11/2016 00:00,8000074331,1842.72,Revenue,MEARS GROUP,Home Care
Peterborough,http://opendatacommunities.org/id/unitary-authority/peterborough,Peterborough City Council,Adult Services & Communities - Adults,Independent Sector Placements,Services,02/11/2016 00:00,8000074341,511.2,Revenue,MEARS GROUP,Home Care
Peterborough,http://opendatacommunities.org/id/unitary-authority/peterborough,Peterborough City Council,Adult Services & Communities - Adults,Independent Sector Placements,Services,02/11/2016 00:00,8000074343,606,Revenue,MEARS GROUP,Home Care
Peterborough,http://opendatacommunities.org/id/unitary-authority/peterborough,Peterborough City Council,Adult Services & Communities - Adults,Independent Sector Placements,Services,02/11/2016 00:00,8000074344,901.2,Revenue,MEARS GROUP,Home Care
Peterborough,http://opendatacommunities.org/id/unitary-authority/peterborough,Peterborough City Council,Adult Services & Communities - Adults,Independent Sector Placements,Services,02/11/2016 00:00,8000074345,612.48,Revenue,MEARS GROUP,Home Care
Peterborough,http://opendatacommunities.org/id/unitary-authority/peterborough,Peterborough City Council,Adult Services & Communities - Adults,Independent Sector Placements,Services,02/11/2016 00:00,8000074347,1189.44,Revenue,MEARS GROUP,Home Care
Peterborough,http://opendatacommunities.org/id/unitary-authority/peterborough,Peterborough City Council,Adult Services & Communities - Adults,Independent Sector Placements,Services,02/11/2016 00:00,8000074349,595.44,Revenue,MEARS GROUP,Home Care
Peterborough,http://opendatacommunities.org/id/unitary-authority/peterborough,Peterborough City Council,Adult Services & Communities - Adults,Independent Sector Placements,Services,02/11/2016 00:00,8000074351,797.52,Revenue,MEARS GROUP,Home Care
Peterborough,http://opendatacommunities.org/id/unitary-authority/peterborough,Peterborough City Council,Adult Services & Communities - Adults,Independent Sector Placements,Services,02/11/2016 00:00,8000074359,734.88,Revenue,MEARS GROUP,Home Care
Peterborough,http://opendatacommunities.org/id/unitary-authority/peterborough,Peterborough City Council,Adult Services & Communities - Adults,Independent Sector Placements,Services,02/11/2016 00:00,8000074360,765.6,Revenue,MEARS GROUP,Home Care
Peterborough,http://opendatacommunities.org/id/unitary-authority/peterborough,Peterborough City Council,Adult Services & Communities - Adults,Independent Sector Placements,Services,02/11/2016 00:00,8000074420,532.77,Revenue,Hales Group Ltd,Home Care
Peterborough,http://opendatacommunities.org/id/unitary-authority/peterborough,Peterborough City Council,Adult Services & Communities - Adults,Independent Sector Placements,Services,02/11/2016 00:00,8000074421,691.74,Revenue,Hales Group Ltd,Home Care
Peterborough,http://opendatacommunities.org/id/unitary-authority/peterborough,Peterborough City Council,Adult Services & Communities - Adults,Independent Sector Placements,Services,02/11/2016 00:00,8000074422,1220.15,Revenue,Hales Group Ltd,Home Care
Peterborough,http://opendatacommunities.org/id/unitary-authority/peterborough,Peterborough City Council,Adult Services & Communities - Adults,Independent Sector Placements,Services,02/11/2016 00:00,8000074424,1030.05,Revenue,Hales Group Ltd,Home Care
Peterborough,http://opendatacommunities.org/id/unitary-authority/peterborough,Peterborough City Council,Adult Services & Communities - Adults,Independent Sector Placements,Services,02/11/2016 00:00,8000074425,702.37,Revenue,Hales Group Ltd,Home Care
Peterborough,http://opendatacommunities.org/id/unitary-authority/peterborough,Peterborough City Council,Adult Services & Communities - Adults,Independent Sector Placements,Services,02/11/2016 00:00,8000074430,1908.18,Revenue,Hales Group Ltd,Home Care
Peterborough,http://opendatacommunities.org/id/unitary-authority/peterborough,Peterborough City Council,Adult Services & Communities - Adults,Independent Sector Placements,Services,02/11/2016 00:00,8000074433,1623.67,Revenue,Hales Group Ltd,Home Care
Peterborough,http://opendatacommunities.org/id/unitary-authority/peterborough,Peterborough City Council,Adult Services & Communities - Adults,Independent Sector Placements,Services,02/11/2016 00:00,8000074434,563.64,Revenue,Hales Group Ltd,Home Care
Peterborough,http://opendatacommunities.org/id/unitary-authority/peterborough,Peterborough City Council,Adult Services & Communities - Adults,Independent Sector Placements,Services,02/11/2016 00:00,8000074435,541.22,Revenue,Hales Group Ltd,Home Care
Peterborough,http://opendatacommunities.org/id/unitary-authority/peterborough,Peterborough City Council,Adult Services & Communities - Adults,Independent Sector Placements,Services,02/11/2016 00:00,8000074438,778.21,Revenue,Hales Group Ltd,Home Care
Peterborough,http://opendatacommunities.org/id/unitary-authority/peterborough,Peterborough City Council,Adult Services & Communities - Adults,Independent Sector Placements,Services,02/11/2016 00:00,8000074442,1124.08,Revenue,Hales Group Ltd,Home Care
Peterborough,http://opendatacommunities.org/id/unitary-authority/peterborough,Peterborough City Council,Adult Services & Communities - Adults,Independent Sector Placements,Services,02/11/2016 00:00,8000074447,762.2,Revenue,Hales Group Ltd,Home Care
Peterborough,http://opendatacommunities.org/id/unitary-authority/peterborough,Peterborough City Council,Adult Services & Communities - Adults,Independent Sector Placements,Services,02/11/2016 00:00,8000074622,619.2,Revenue,MEARS GROUP,Home Care
Peterborough,http://opendatacommunities.org/id/unitary-authority/peterborough,Peterborough City Council,Adult Services & Communities - Adults,Independent Sector Placements,Services,02/11/2016 00:00,8000074623,806.4,Revenue,MEARS GROUP,Home Care
Peterborough,http://opendatacommunities.org/id/unitary-authority/peterborough,Peterborough City Council,Adult Services & Communities - Adults,Independent Sector Placements,Services,02/11/2016 00:00,8000074627,681.36,Revenue,MEARS GROUP,Home Care
Peterborough,http://opendatacommunities.org/id/unitary-authority/peterborough,Peterborough City Council,Adult Services & Communities - Adults,Independent Sector Placements,Services,02/11/2016 00:00,8000074628,2736,Revenue,MEARS GROUP,Home Care
Peterborough,http://opendatacommunities.org/id/unitary-authority/peterborough,Peterborough City Council,Adult Services & Communities - Adults,Independent Sector Placements,Services,02/11/2016 00:00,8000074631,594,Revenue,MEARS GROUP,Home Care
Peterborough,http://opendatacommunities.org/id/unitary-authority/peterborough,Peterborough City Council,Adult Services & Communities - Adults,Independent Sector Placements,Services,02/11/2016 00:00,8000074634,716.64,Revenue,MEARS GROUP,Home Care
Peterborough,http://opendatacommunities.org/id/unitary-authority/peterborough,Peterborough City Council,Adult Services & Communities - Adults,Independent Sector Placements,Services,02/11/2016 00:00,8000074635,761.28,Revenue,MEARS GROUP,Home Care
Peterborough,http://opendatacommunities.org/id/unitary-authority/peterborough,Peterborough City Council,Adult Services & Communities - Adults,Independent Sector Placements,Services,02/11/2016 00:00,8000074636,692.88,Revenue,MEARS GROUP,Home Care
Peterborough,http://opendatacommunities.org/id/unitary-authority/peterborough,Peterborough City Council,Adult Services & Communities - Adults,Independent Sector Placements,Services,02/11/2016 00:00,8000074638,628.32,Revenue,MEARS GROUP,Home Care
Peterborough,http://opendatacommunities.org/id/unitary-authority/peterborough,Peterborough City Council,Adult Services & Communities - Adults,Independent Sector Placements,Services,02/11/2016 00:00,8000074644,946.8,Revenue,MEARS GROUP,Home Care
Peterborough,http://opendatacommunities.org/id/unitary-authority/peterborough,Peterborough City Council,Adult Services & Communities - Adults,Independent Sector Placements,Services,02/11/2016 00:00,8000074651,590.64,Revenue,MEARS GROUP,Home Care
Peterborough,http://opendatacommunities.org/id/unitary-authority/peterborough,Peterborough City Council,Adult Services & Communities - Adults,Independent Sector Placements,Services,02/11/2016 00:00,8000074652,505.68,Revenue,MEARS GROUP,Home Care
Peterborough,http://opendatacommunities.org/id/unitary-authority/peterborough,Peterborough City Council,Adult Services & Communities - Adults,Independent Sector Placements,Services,02/11/2016 00:00,8000074653,504,Revenue,MEARS GROUP,Home Care
Peterborough,http://opendatacommunities.org/id/unitary-authority/peterborough,Peterborough City Council,Adult Services & Communities - Adults,Independent Sector Placements,Services,02/11/2016 00:00,8000074655,1096.8,Revenue,MEARS GROUP,Home Care
Peterborough,http://opendatacommunities.org/id/unitary-authority/peterborough,Peterborough City Council,Adult Services & Communities - Adults,Independent Sector Placements,Services,02/11/2016 00:00,8000074661,1187.04,Revenue,MEARS GROUP,Home Care
Peterborough,http://opendatacommunities.org/id/unitary-authority/peterborough,Peterborough City Council,Adult Services & Communities - Adults,Independent Sector Placements,Services,02/11/2016 00:00,8000074662,951.6,Revenue,MEARS GROUP,Home Care
Peterborough,http://opendatacommunities.org/id/unitary-authority/peterborough,Peterborough City Council,Adult Services & Communities - Adults,Independent Sector Placements,Services,02/11/2016 00:00,8000074665,819.84,Revenue,MEARS GROUP,Home Care
Peterborough,http://opendatacommunities.org/id/unitary-authority/peterborough,Peterborough City Council,Adult Services & Communities - Adults,Independent Sector Placements,Services,02/11/2016 00:00,8000075352,737.37,Revenue,Axiom Care Ltd,Home Care
Peterborough,http://opendatacommunities.org/id/unitary-authority/peterborough,Peterborough City Council,Adult Services & Communities - Adults,Independent Sector Placements,Services,02/11/2016 00:00,8000075353,939.73,Revenue,Axiom Care Ltd,Home Care
Peterborough,http://opendatacommunities.org/id/unitary-authority/peterborough,Peterborough City Council,Adult Services & Communities - Adults,Independent Sector Placements,Services,02/11/2016 00:00,8000075354,702.6,Revenue,Axiom Care Ltd,Home Care
Peterborough,http://opendatacommunities.org/id/unitary-authority/peterborough,Peterborough City Council,Adult Services & Communities - Adults,Independent Sector Placements,Services,02/11/2016 00:00,8000075355,1155,Revenue,Axiom Care Ltd,Home Care
Peterborough,http://opendatacommunities.org/id/unitary-authority/peterborough,Peterborough City Council,Adult Services & Communities - Adults,Independent Sector Placements,Services,02/11/2016 00:00,8000075444,1998.28,Revenue,Sagecare,Home Care
Peterborough,http://opendatacommunities.org/id/unitary-authority/peterborough,Peterborough City Council,Adult Services & Communities - Adults,Independent Sector Placements,Services,02/11/2016 00:00,8000075447,1531.8,Revenue,Augusta Care Ltd,Home Care
Peterborough,http://opendatacommunities.org/id/unitary-authority/peterborough,Peterborough City Council,Adult Services & Communities - Adults,Independent Sector Placements,Services,02/11/2016 00:00,8000075448,1559.4,Revenue,Augusta Care Ltd,Home Care
Peterborough,http://opendatacommunities.org/id/unitary-authority/peterborough,Peterborough City Council,Adult Services & Communities - Adults,Independent Sector Placements,Services,02/11/2016 00:00,8000075450,3315.12,Revenue,Augusta Care Ltd,Home Care
Peterborough,http://opendatacommunities.org/id/unitary-authority/peterborough,Peterborough City Council,Adult Services & Communities - Adults,Independent Sector Placements,Services,02/11/2016 00:00,8000075451,3411.48,Revenue,Augusta Care Ltd,Home Care
Peterborough,http://opendatacommunities.org/id/unitary-authority/peterborough,Peterborough City Council,Adult Services & Communities - Adults,Independent Sector Placements,Services,02/11/2016 00:00,8000075452,4294,Revenue,Augusta Care Ltd,Home Care
Peterborough,http://opendatacommunities.org/id/unitary-authority/peterborough,Peterborough City Council,Adult Services & Communities - Adults,Independent Sector Placements,Services,02/11/2016 00:00,8000075453,634.8,Revenue,Augusta Care Ltd,Home Care
Peterborough,http://opendatacommunities.org/id/unitary-authority/peterborough,Peterborough City Council,Adult Services & Communities - Adults,Independent Sector Placements,Services,02/11/2016 00:00,8000075454,3303.88,Revenue,Augusta Care Ltd,Home Care
Peterborough,http://opendatacommunities.org/id/unitary-authority/peterborough,Peterborough City Council,Adult Services & Communities - Adults,Independent Sector Placements,Services,02/11/2016 00:00,8000075455,2321.88,Revenue,Augusta Care Ltd,Home Care
Peterborough,http://opendatacommunities.org/id/unitary-authority/peterborough,Peterborough City Council,Adult Services & Communities - Adults,Independent Sector Placements,Services,02/11/2016 00:00,8000075456,2942.92,Revenue,Augusta Care Ltd,Home Care
Peterborough,http://opendatacommunities.org/id/unitary-authority/peterborough,Peterborough City Council,Adult Services & Communities - Adults,Independent Sector Placements,Services,02/11/2016 00:00,8000075457,1352.4,Revenue,Augusta Care Ltd,Home Care
Peterborough,http://opendatacommunities.org/id/unitary-authority/peterborough,Peterborough City Council,Adult Services & Communities - Adults,Independent Sector Placements,Services,02/11/2016 00:00,8000075459,524.4,Revenue,Augusta Care Ltd,Home Care
Peterborough,http://opendatacommunities.org/id/unitary-authority/peterborough,Peterborough City Council,Adult Services & Communities - Adults,Independent Sector Placements,Services,02/11/2016 00:00,8000075460,6169.32,Revenue,Augusta Care Ltd,Home Care
Peterborough,http://opendatacommunities.org/id/unitary-authority/peterborough,Peterborough City Council,Adult Services & Communities - Adults,Independent Sector Placements,Services,02/11/2016 00:00,8000075461,829.08,Revenue,Hales Group Ltd,Home Care
Peterborough,http://opendatacommunities.org/id/unitary-authority/peterborough,Peterborough City Council,Adult Services & Communities - Adults,Independent Sector Placements,Services,02/11/2016 00:00,8000075462,1376.92,Revenue,Hales Group Ltd,Home Care
Peterborough,http://opendatacommunities.org/id/unitary-authority/peterborough,Peterborough City Council,Adult Services & Communities - Adults,Independent Sector Placements,Services,02/11/2016 00:00,8000075463,853.52,Revenue,Hales Group Ltd,Home Care
Peterborough,http://opendatacommunities.org/id/unitary-authority/peterborough,Peterborough City Council,Adult Services & Communities - Adults,Independent Sector Placements,Services,02/11/2016 00:00,8000075464,861.44,Revenue,Hales Group Ltd,Home Care
Peterborough,http://opendatacommunities.org/id/unitary-authority/peterborough,Peterborough City Council,Adult Services & Communities - Adults,Independent Sector Placements,Services,02/11/2016 00:00,8000075470,2590.46,Revenue,PRESTIGE NURSING LIMITED,Home Care
Peterborough,http://opendatacommunities.org/id/unitary-authority/peterborough,Peterborough City Council,Adult Services & Communities - Adults,Independent Sector Placements,Services,02/11/2016 00:00,8000075471,836,Revenue,PRESTIGE NURSING LIMITED,Home Care
Peterborough,http://opendatacommunities.org/id/unitary-authority/peterborough,Peterborough City Council,Adult Services & Communities - Adults,Independent Sector Placements,Services,02/11/2016 00:00,8000075477,563.2,Revenue,PRESTIGE NURSING LIMITED,Home Care
Peterborough,http://opendatacommunities.org/id/unitary-authority/peterborough,Peterborough City Council,Adult Services & Communities - Adults,Independent Sector Placements,Services,02/11/2016 00:00,8000075479,876.93,Revenue,Sagecare,Home Care
Peterborough,http://opendatacommunities.org/id/unitary-authority/peterborough,Peterborough City Council,Adult Services & Communities - Adults,Independent Sector Placements,Services,02/11/2016 00:00,8000075480,761.07,Revenue,Sagecare,Home Care
Peterborough,http://opendatacommunities.org/id/unitary-authority/peterborough,Peterborough City Council,Adult Services & Communities - Adults,Independent Sector Placements,Services,02/11/2016 00:00,8000075482,876.6,Revenue,Sagecare,Home Care
Peterborough,http://opendatacommunities.org/id/unitary-authority/peterborough,Peterborough City Council,Adult Services & Communities - Adults,Independent Sector Placements,Services,02/11/2016 00:00,8000075485,769.51,Revenue,Sagecare,Home Care
Peterborough,http://opendatacommunities.org/id/unitary-authority/peterborough,Peterborough City Council,Adult Services & Communities - Adults,Independent Sector Placements,Services,02/11/2016 00:00,8000075489,585.87,Revenue,Sagecare,Home Care
Peterborough,http://opendatacommunities.org/id/unitary-authority/peterborough,Peterborough City Council,Adult Services & Communities - Adults,Independent Sector Placements,Services,02/11/2016 00:00,8000075495,2003.03,Revenue,Sagecare,Home Care
Peterborough,http://opendatacommunities.org/id/unitary-authority/peterborough,Peterborough City Council,Adult Services & Communities - Adults,Independent Sector Placements,Services,02/11/2016 00:00,8000075497,862.93,Revenue,Sagecare,Home Care
Peterborough,http://opendatacommunities.org/id/unitary-authority/peterborough,Peterborough City Council,Adult Services & Communities - Adults,Independent Sector Placements,Services,02/11/2016 00:00,8000075506,679,Revenue,Sagecare,Home Care
Peterborough,http://opendatacommunities.org/id/unitary-authority/peterborough,Peterborough City Council,Adult Services & Communities - Adults,Independent Sector Placements,Services,02/11/2016 00:00,8000075508,859.45,Revenue,Sagecare,Home Care
Peterborough,http://opendatacommunities.org/id/unitary-authority/peterborough,Peterborough City Council,Adult Services & Communities - Adults,Independent Sector Placements,Services,02/11/2016 00:00,8000075509,592.25,Revenue,Sagecare,Home Care
Peterborough,http://opendatacommunities.org/id/unitary-authority/peterborough,Peterborough City Council,Adult Services & Communities - Adults,Independent Sector Placements,Services,02/11/2016 00:00,8000075510,887.04,Revenue,Sagecare,Home Care
Peterborough,http://opendatacommunities.org/id/unitary-authority/peterborough,Peterborough City Council,Adult Services & Communities - Adults,Independent Sector Placements,Services,02/11/2016 00:00,8000075511,732.45,Revenue,Sagecare,Home Care
Peterborough,http://opendatacommunities.org/id/unitary-authority/peterborough,Peterborough City Council,Adult Services & Communities - Adults,Independent Sector Placements,Services,02/11/2016 00:00,8000075514,1171.41,Revenue,Sagecare,Home Care
Peterborough,http://opendatacommunities.org/id/unitary-authority/peterborough,Peterborough City Council,Adult Services & Communities - Adults,Independent Sector Placements,Services,02/11/2016 00:00,8000075515,2285.94,Revenue,Sagecare,Home Care
Peterborough,http://opendatacommunities.org/id/unitary-authority/peterborough,Peterborough City Council,Adult Services & Communities - Adults,Independent Sector Placements,Services,02/11/2016 00:00,8000075517,579.21,Revenue,Sagecare,Home Care
Peterborough,http://opendatacommunities.org/id/unitary-authority/peterborough,Peterborough City Council,Adult Services & Communities - Adults,Independent Sector Placements,Services,02/11/2016 00:00,8000075518,765.78,Revenue,Sagecare,Home Care
Peterborough,http://opendatacommunities.org/id/unitary-authority/peterborough,Peterborough City Council,Adult Services & Communities - Adults,Independent Sector Placements,Services,02/11/2016 00:00,8000075528,703.45,Revenue,Sagecare,Home Care
Peterborough,http://opendatacommunities.org/id/unitary-authority/peterborough,Peterborough City Council,Adult Services & Communities - Adults,Independent Sector Placements,Services,02/11/2016 00:00,8000075531,866.38,Revenue,Sagecare,Home Care
Peterborough,http://opendatacommunities.org/id/unitary-authority/peterborough,Peterborough City Council,Adult Services & Communities - Adults,Independent Sector Placements,Services,02/11/2016 00:00,8000075533,592.68,Revenue,Sagecare,Home Care
Peterborough,http://opendatacommunities.org/id/unitary-authority/peterborough,Peterborough City Council,Adult Services & Communities - Adults,Independent Sector Placements,Services,02/11/2016 00:00,8000075534,565.08,Revenue,Sagecare,Home Care
Peterborough,http://opendatacommunities.org/id/unitary-authority/peterborough,Peterborough City Council,Adult Services & Communities - Adults,Independent Sector Placements,Services,02/11/2016 00:00,8000075544,668.88,Revenue,Sagecare,Home Care
Peterborough,http://opendatacommunities.org/id/unitary-authority/peterborough,Peterborough City Council,Adult Services & Communities - Adults,Independent Sector Placements,Services,02/11/2016 00:00,8000075547,824.84,Revenue,Sagecare,Home Care
Peterborough,http://opendatacommunities.org/id/unitary-authority/peterborough,Peterborough City Council,Adult Services & Communities - Adults,Independent Sector Placements,Services,02/11/2016 00:00,8000075549,567.9,Revenue,Sagecare,Home Care
Peterborough,http://opendatacommunities.org/id/unitary-authority/peterborough,Peterborough City Council,Adult Services & Communities - Adults,Independent Sector Placements,Services,02/11/2016 00:00,8000075553,1732.76,Revenue,Sagecare,Home Care
Peterborough,http://opendatacommunities.org/id/unitary-authority/peterborough,Peterborough City Council,Adult Services & Communities - Adults,Independent Sector Placements,Services,02/11/2016 00:00,8000075558,1309.98,Revenue,Sagecare,Home Care
Peterborough,http://opendatacommunities.org/id/unitary-authority/peterborough,Peterborough City Council,Adult Services & Communities - Adults,Independent Sector Placements,Services,02/11/2016 00:00,8000075561,1050.31,Revenue,Sagecare,Home Care
Peterborough,http://opendatacommunities.org/id/unitary-authority/peterborough,Peterborough City Council,Adult Services & Communities - Adults,Independent Sector Placements,Services,02/11/2016 00:00,8000075564,581.01,Revenue,Sagecare,Home Care
Peterborough,http://opendatacommunities.org/id/unitary-authority/peterborough,Peterborough City Council,Adult Services & Communities - Adults,Independent Sector Placements,Services,02/11/2016 00:00,8000075569,1900.14,Revenue,Sagecare,Home Care
Peterborough,http://opendatacommunities.org/id/unitary-authority/peterborough,Peterborough City Council,Adult Services & Communities - Adults,Independent Sector Placements,Services,02/11/2016 00:00,8000075570,730.15,Revenue,Sagecare,Home Care
Peterborough,http://opendatacommunities.org/id/unitary-authority/peterborough,Peterborough City Council,Adult Services & Communities - Adults,Independent Sector Placements,Services,02/11/2016 00:00,8000075571,866.38,Revenue,Sagecare,Home Care
Peterborough,http://opendatacommunities.org/id/unitary-authority/peterborough,Peterborough City Council,Adult Services & Communities - Adults,Independent Sector Placements,Services,02/11/2016 00:00,8000075573,661.95,Revenue,Sagecare,Home Care
Peterborough,http://opendatacommunities.org/id/unitary-authority/peterborough,Peterborough City Council,Adult Services & Communities - Adults,Independent Sector Placements,Services,02/11/2016 00:00,8000075576,689.82,Revenue,Sagecare,Home Care
Peterborough,http://opendatacommunities.org/id/unitary-authority/peterborough,Peterborough City Council,Adult Services & Communities - Adults,Independent Sector Placements,Services,02/11/2016 00:00,8000075579,582.4,Revenue,Sagecare,Home Care
Peterborough,http://opendatacommunities.org/id/unitary-authority/peterborough,Peterborough City Council,Adult Services & Communities - Adults,Independent Sector Placements,Services,02/11/2016 00:00,8000075581,1933.47,Revenue,Sagecare,Home Care
Peterborough,http://opendatacommunities.org/id/unitary-authority/peterborough,Peterborough City Council,Adult Services & Communities - Adults,Independent Sector Placements,Services,02/11/2016 00:00,8000075583,1580.32,Revenue,Sagecare,Home Care
Peterborough,http://opendatacommunities.org/id/unitary-authority/peterborough,Peterborough City Council,Adult Services & Communities - Adults,Independent Sector Placements,Services,02/11/2016 00:00,8000075588,1776.45,Revenue,Sagecare,Home Care
Peterborough,http://opendatacommunities.org/id/unitary-authority/peterborough,Peterborough City Council,Adult Services & Communities - Adults,Independent Sector Placements,Services,02/11/2016 00:00,8000075589,665.68,Revenue,Sagecare,Home Care
Peterborough,http://opendatacommunities.org/id/unitary-authority/peterborough,Peterborough City Council,Adult Services & Communities - Adults,Independent Sector Placements,Services,02/11/2016 00:00,8000075590,1927.8,Revenue,Sagecare,Home Care
Peterborough,http://opendatacommunities.org/id/unitary-authority/peterborough,Peterborough City Council,Adult Services & Communities - Adults,Independent Sector Placements,Services,02/11/2016 00:00,8000075591,600,Revenue,Sagecare,Home Care
Peterborough,http://opendatacommunities.org/id/unitary-authority/peterborough,Peterborough City Council,Adult Services & Communities - Adults,Independent Sector Placements,Services,02/11/2016 00:00,8000075592,5233.85,Revenue,Hales Group Ltd,Home Care
Peterborough,http://opendatacommunities.org/id/unitary-authority/peterborough,Peterborough City Council,Adult Services & Communities - Adults,Independent Sector Placements,Services,02/11/2016 00:00,8000075593,5134.54,Revenue,Hales Group Ltd,Home Care
Peterborough,http://opendatacommunities.org/id/unitary-authority/peterborough,Peterborough City Council,Adult Services & Communities - Adults,Independent Sector Placements,Services,02/11/2016 00:00,8000075594,4444.91,Revenue,Hales Group Ltd,Home Care
Peterborough,http://opendatacommunities.org/id/unitary-authority/peterborough,Peterborough City Council,Children's & Safeguarding,Access to Resources & Specialist Commissioning,Services,02/11/2016 00:00,8000075605,552.44,Revenue,Redacted Personal Information,Boarding Out Allowances
Peterborough,http://opendatacommunities.org/id/unitary-authority/peterborough,Peterborough City Council,Children's & Safeguarding,Access to Resources & Specialist Commissioning,Services,02/11/2016 00:00,8000075605,932.54,Revenue,Redacted Personal Information,Boarding Out Allowances
Peterborough,http://opendatacommunities.org/id/unitary-authority/peterborough,Peterborough City Council,Children's & Safeguarding,Access to Resources & Specialist Commissioning,Services,02/11/2016 00:00,8000075605,726.88,Revenue,Redacted Personal Information,Boarding Out Allowances
Peterborough,http://opendatacommunities.org/id/unitary-authority/peterborough,Peterborough City Council,Children's & Safeguarding,Access to Resources & Specialist Commissioning,Services,02/11/2016 00:00,8000075605,844.48,Revenue,Redacted Personal Information,Boarding Out Allowances
Peterborough,http://opendatacommunities.org/id/unitary-authority/peterborough,Peterborough City Council,Children's & Safeguarding,Access to Resources & Specialist Commissioning,Services,02/11/2016 00:00,8000075605,600,Revenue,Redacted Personal Information,Boarding Out Allowances
Peterborough,http://opendatacommunities.org/id/unitary-authority/peterborough,Peterborough City Council,Children's & Safeguarding,Access to Resources & Specialist Commissioning,Services,02/11/2016 00:00,8000075605,613.6,Revenue,Redacted Personal Information,Boarding Out Allowances
Peterborough,http://opendatacommunities.org/id/unitary-authority/peterborough,Peterborough City Council,Children's & Safeguarding,Access to Resources & Specialist Commissioning,Services,02/11/2016 00:00,8000075605,627.06,Revenue,Redacted Personal Information,Boarding Out Allowances
Peterborough,http://opendatacommunities.org/id/unitary-authority/peterborough,Peterborough City Council,Children's & Safeguarding,Access to Resources & Specialist Commissioning,Services,02/11/2016 00:00,8000075605,627.06,Revenue,Redacted Personal Information,Boarding Out Allowances
Peterborough,http://opendatacommunities.org/id/unitary-authority/peterborough,Peterborough City Council,Children's & Safeguarding,Access to Resources & Specialist Commissioning,Services,02/11/2016 00:00,8000075605,584.08,Revenue,Redacted Personal Information,Boarding Out Allowances
Peterborough,http://opendatacommunities.org/id/unitary-authority/peterborough,Peterborough City Council,Children's & Safeguarding,Access to Resources & Specialist Commissioning,Services,02/11/2016 00:00,8000075605,627.06,Revenue,Redacted Personal Information,Boarding Out Allowances
Peterborough,http://opendatacommunities.org/id/unitary-authority/peterborough,Peterborough City Council,Children's & Safeguarding,Access to Resources & Specialist Commissioning,Services,02/11/2016 00:00,8000075605,584.08,Revenue,Redacted Personal Information,Boarding Out Allowances
Peterborough,http://opendatacommunities.org/id/unitary-authority/peterborough,Peterborough City Council,Children's & Safeguarding,Access to Resources & Specialist Commissioning,Services,02/11/2016 00:00,8000075605,584.08,Revenue,Redacted Personal Information,Boarding Out Allowances
Peterborough,http://opendatacommunities.org/id/unitary-authority/peterborough,Peterborough City Council,Children's & Safeguarding,Access to Resources & Specialist Commissioning,Services,02/11/2016 00:00,8000075605,584.08,Revenue,Redacted Personal Information,Boarding Out Allowances
Peterborough,http://opendatacommunities.org/id/unitary-authority/peterborough,Peterborough City Council,Children's & Safeguarding,Access to Resources & Specialist Commissioning,Services,02/11/2016 00:00,8000075605,527.52,Revenue,Redacted Personal Information,Boarding Out Allowances
Peterborough,http://opendatacommunities.org/id/unitary-authority/peterborough,Peterborough City Council,Children's & Safeguarding,Access to Resources & Specialist Commissioning,Services,02/11/2016 00:00,8000075605,584.08,Revenue,Redacted Personal Information,Boarding Out Allowances
Peterborough,http://opendatacommunities.org/id/unitary-authority/peterborough,Peterborough City Council,Children's & Safeguarding,Access to Resources & Specialist Commissioning,Services,02/11/2016 00:00,8000075605,584.08,Revenue,Redacted Personal Information,Boarding Out Allowances
Peterborough,http://opendatacommunities.org/id/unitary-authority/peterborough,Peterborough City Council,Children's & Safeguarding,Access to Resources & Specialist Commissioning,Services,02/11/2016 00:00,8000075605,584.08,Revenue,Redacted Personal Information,Boarding Out Allowances
Peterborough,http://opendatacommunities.org/id/unitary-authority/peterborough,Peterborough City Council,Children's & Safeguarding,Access to Resources & Specialist Commissioning,Services,02/11/2016 00:00,8000075605,584.08,Revenue,Redacted Personal Information,Boarding Out Allowances
Peterborough,http://opendatacommunities.org/id/unitary-authority/peterborough,Peterborough City Council,Children's & Safeguarding,Access to Resources & Specialist Commissioning,Services,02/11/2016 00:00,8000075605,627.06,Revenue,Redacted Personal Information,Boarding Out Allowances
Peterborough,http://opendatacommunities.org/id/unitary-authority/peterborough,Peterborough City Council,Children's & Safeguarding,Access to Resources & Specialist Commissioning,Services,02/11/2016 00:00,8000075605,788.69,Revenue,Redacted Personal Information,Boarding Out Allowances
Peterborough,http://opendatacommunities.org/id/unitary-authority/peterborough,Peterborough City Council,Children's & Safeguarding,Access to Resources & Specialist Commissioning,Services,02/11/2016 00:00,8000075605,527.52,Revenue,Redacted Personal Information,Boarding Out Allowances
Peterborough,http://opendatacommunities.org/id/unitary-authority/peterborough,Peterborough City Council,Children's & Safeguarding,Access to Resources & Specialist Commissioning,Services,02/11/2016 00:00,8000075605,527.52,Revenue,Redacted Personal Information,Boarding Out Allowances
Peterborough,http://opendatacommunities.org/id/unitary-authority/peterborough,Peterborough City Council,Children's & Safeguarding,Access to Resources & Specialist Commissioning,Services,02/11/2016 00:00,8000075605,527.52,Revenue,Redacted Personal Information,Boarding Out Allowances
Peterborough,http://opendatacommunities.org/id/unitary-authority/peterborough,Peterborough City Council,Children's & Safeguarding,Access to Resources & Specialist Commissioning,Services,02/11/2016 00:00,8000075605,527.52,Revenue,Redacted Personal Information,Boarding Out Allowances
Peterborough,http://opendatacommunities.org/id/unitary-authority/peterborough,Peterborough City Council,Children's & Safeguarding,Access to Resources & Specialist Commissioning,Services,02/11/2016 00:00,8000075605,527.52,Revenue,Redacted Personal Information,Boarding Out Allowances
Peterborough,http://opendatacommunities.org/id/unitary-authority/peterborough,Peterborough City Council,Children's & Safeguarding,Access to Resources & Specialist Commissioning,Services,02/11/2016 00:00,8000075605,527.52,Revenue,Redacted Personal Information,Boarding Out Allowances
Peterborough,http://opendatacommunities.org/id/unitary-authority/peterborough,Peterborough City Council,Children's & Safeguarding,Access to Resources & Specialist Commissioning,Services,02/11/2016 00:00,8000075605,584.08,Revenue,Redacted Personal Information,Boarding Out Allowances
Peterborough,http://opendatacommunities.org/id/unitary-authority/peterborough,Peterborough City Council,Children's & Safeguarding,Access to Resources & Specialist Commissioning,Services,02/11/2016 00:00,8000075605,600.43,Revenue,Redacted Personal Information,Boarding Out Allowances
Peterborough,http://opendatacommunities.org/id/unitary-authority/peterborough,Peterborough City Council,Children's & Safeguarding,Access to Resources & Specialist Commissioning,Services,02/11/2016 00:00,8000075605,627.06,Revenue,Redacted Personal Information,Boarding Out Allowances
Peterborough,http://opendatacommunities.org/id/unitary-authority/peterborough,Peterborough City Council,Children's & Safeguarding,Access to Resources & Specialist Commissioning,Services,02/11/2016 00:00,8000075605,909.86,Revenue,Redacted Personal Information,Boarding Out Allowances
Peterborough,http://opendatacommunities.org/id/unitary-authority/peterborough,Peterborough City Council,Children's & Safeguarding,Access to Resources & Specialist Commissioning,Services,02/11/2016 00:00,8000075605,627.06,Revenue,Redacted Personal Information,Boarding Out Allowances
Peterborough,http://opendatacommunities.org/id/unitary-authority/peterborough,Peterborough City Council,Children's & Safeguarding,Access to Resources & Specialist Commissioning,Services,02/11/2016 00:00,8000075605,646.15,Revenue,Redacted Personal Information,Boarding Out Allowances
Peterborough,http://opendatacommunities.org/id/unitary-authority/peterborough,Peterborough City Council,Children's & Safeguarding,Access to Resources & Specialist Commissioning,Services,02/11/2016 00:00,8000075605,646.15,Revenue,Redacted Personal Information,Boarding Out Allowances
Peterborough,http://opendatacommunities.org/id/unitary-authority/peterborough,Peterborough City Council,Children's & Safeguarding,Access to Resources & Specialist Commissioning,Services,02/11/2016 00:00,8000075605,527.52,Revenue,Redacted Personal Information,Boarding Out Allowances
Peterborough,http://opendatacommunities.org/id/unitary-authority/peterborough,Peterborough City Council,Children's & Safeguarding,Access to Resources & Specialist Commissioning,Services,02/11/2016 00:00,8000075605,527.52,Revenue,Redacted Personal Information,Boarding Out Allowances
Peterborough,http://opendatacommunities.org/id/unitary-authority/peterborough,Peterborough City Council,Children's & Safeguarding,Access to Resources & Specialist Commissioning,Services,02/11/2016 00:00,8000075605,584.08,Revenue,Redacted Personal Information,Boarding Out Allowances
Peterborough,http://opendatacommunities.org/id/unitary-authority/peterborough,Peterborough City Council,Children's & Safeguarding,Access to Resources & Specialist Commissioning,Services,02/11/2016 00:00,8000075605,538.68,Revenue,Redacted Personal Information,Boarding Out Allowances
Peterborough,http://opendatacommunities.org/id/unitary-authority/peterborough,Peterborough City Council,Children's & Safeguarding,Access to Resources & Specialist Commissioning,Services,02/11/2016 00:00,8000075605,554.02,Revenue,Redacted Personal Information,Boarding Out Allowances
Peterborough,http://opendatacommunities.org/id/unitary-authority/peterborough,Peterborough City Council,Children's & Safeguarding,Access to Resources & Specialist Commissioning,Services,02/11/2016 00:00,8000075605,627.06,Revenue,Redacted Personal Information,Boarding Out Allowances
Peterborough,http://opendatacommunities.org/id/unitary-authority/peterborough,Peterborough City Council,Children's & Safeguarding,Access to Resources & Specialist Commissioning,Services,02/11/2016 00:00,8000075605,527.52,Revenue,Redacted Personal Information,Boarding Out Allowances
Peterborough,http://opendatacommunities.org/id/unitary-authority/peterborough,Peterborough City Council,Children's & Safeguarding,Access to Resources & Specialist Commissioning,Services,02/11/2016 00:00,8000075605,584.08,Revenue,Redacted Personal Information,Boarding Out Allowances
Peterborough,http://opendatacommunities.org/id/unitary-authority/peterborough,Peterborough City Council,Children's & Safeguarding,Access to Resources & Specialist Commissioning,Services,02/11/2016 00:00,8000075605,627.06,Revenue,Redacted Personal Information,Boarding Out Allowances
Peterborough,http://opendatacommunities.org/id/unitary-authority/peterborough,Peterborough City Council,Children's & Safeguarding,Access to Resources & Specialist Commissioning,Services,02/11/2016 00:00,8000075605,909.86,Revenue,Redacted Personal Information,Boarding Out Allowances
Peterborough,http://opendatacommunities.org/id/unitary-authority/peterborough,Peterborough City Council,Children's & Safeguarding,Access to Resources & Specialist Commissioning,Services,02/11/2016 00:00,8000075605,627.06,Revenue,Redacted Personal Information,Boarding Out Allowances
Peterborough,http://opendatacommunities.org/id/unitary-authority/peterborough,Peterborough City Council,Children's & Safeguarding,Access to Resources & Specialist Commissioning,Services,02/11/2016 00:00,8000075605,545.88,Revenue,Redacted Personal Information,Boarding Out Allowances
Peterborough,http://opendatacommunities.org/id/unitary-authority/peterborough,Peterborough City Council,Children's & Safeguarding,Access to Resources & Specialist Commissioning,Services,02/11/2016 00:00,8000075605,545.88,Revenue,Redacted Personal Information,Boarding Out Allowances
Peterborough,http://opendatacommunities.org/id/unitary-authority/peterborough,Peterborough City Council,Children's & Safeguarding,Access to Resources & Specialist Commissioning,Services,02/11/2016 00:00,8000075605,545.88,Revenue,Redacted Personal Information,Boarding Out Allowances
Peterborough,http://opendatacommunities.org/id/unitary-authority/peterborough,Peterborough City Council,Children's & Safeguarding,Access to Resources & Specialist Commissioning,Services,02/11/2016 00:00,8000075605,545.88,Revenue,Redacted Personal Information,Boarding Out Allowances
Peterborough,http://opendatacommunities.org/id/unitary-authority/peterborough,Peterborough City Council,Children's & Safeguarding,Access to Resources & Specialist Commissioning,Services,02/11/2016 00:00,8000075605,627.06,Revenue,Redacted Personal Information,Boarding Out Allowances
Peterborough,http://opendatacommunities.org/id/unitary-authority/peterborough,Peterborough City Council,Children's & Safeguarding,Access to Resources & Specialist Commissioning,Services,02/11/2016 00:00,8000075605,851.48,Revenue,Redacted Personal Information,Boarding Out Allowances
Peterborough,http://opendatacommunities.org/id/unitary-authority/peterborough,Peterborough City Council,Children's & Safeguarding,Access to Resources & Specialist Commissioning,Services,02/11/2016 00:00,8000075605,627.06,Revenue,Redacted Personal Information,Boarding Out Allowances
Peterborough,http://opendatacommunities.org/id/unitary-authority/peterborough,Peterborough City Council,Children's & Safeguarding,Access to Resources & Specialist Commissioning,Services,02/11/2016 00:00,8000075605,552.44,Revenue,Redacted Personal Information,Boarding Out Allowances
Peterborough,http://opendatacommunities.org/id/unitary-authority/peterborough,Peterborough City Council,Children's & Safeguarding,Access to Resources & Specialist Commissioning,Services,02/11/2016 00:00,8000075605,627.06,Revenue,Redacted Personal Information,Boarding Out Allowances
Peterborough,http://opendatacommunities.org/id/unitary-authority/peterborough,Peterborough City Council,Children's & Safeguarding,Access to Resources & Specialist Commissioning,Services,02/11/2016 00:00,8000075605,552.61,Revenue,Redacted Personal Information,Boarding Out Allowances
Peterborough,http://opendatacommunities.org/id/unitary-authority/peterborough,Peterborough City Council,Children's & Safeguarding,Access to Resources & Specialist Commissioning,Services,02/11/2016 00:00,8000075605,552.61,Revenue,Redacted Personal Information,Boarding Out Allowances
Peterborough,http://opendatacommunities.org/id/unitary-authority/peterborough,Peterborough City Council,Children's & Safeguarding,Access to Resources & Specialist Commissioning,Services,02/11/2016 00:00,8000075605,645.72,Revenue,Redacted Personal Information,Boarding Out Allowances
Peterborough,http://opendatacommunities.org/id/unitary-authority/peterborough,Peterborough City Council,Children's & Safeguarding,Access to Resources & Specialist Commissioning,Services,02/11/2016 00:00,8000075605,900,Revenue,Redacted Personal Information,Boarding Out Allowances
Peterborough,http://opendatacommunities.org/id/unitary-authority/peterborough,Peterborough City Council,Children's & Safeguarding,Access to Resources & Specialist Commissioning,Services,02/11/2016 00:00,8000075605,584.08,Revenue,Redacted Personal Information,Boarding Out Allowances
Peterborough,http://opendatacommunities.org/id/unitary-authority/peterborough,Peterborough City Council,Children's & Safeguarding,Access to Resources & Specialist Commissioning,Services,02/11/2016 00:00,8000075605,627.06,Revenue,Redacted Personal Information,Boarding Out Allowances
Peterborough,http://opendatacommunities.org/id/unitary-authority/peterborough,Peterborough City Council,Children's & Safeguarding,Access to Resources & Specialist Commissioning,Services,02/11/2016 00:00,8000075605,627.06,Revenue,Redacted Personal Information,Boarding Out Allowances
Peterborough,http://opendatacommunities.org/id/unitary-authority/peterborough,Peterborough City Council,Children's & Safeguarding,Access to Resources & Specialist Commissioning,Services,02/11/2016 00:00,8000075605,527.52,Revenue,Redacted Personal Information,Boarding Out Allowances
Peterborough,http://opendatacommunities.org/id/unitary-authority/peterborough,Peterborough City Council,Children's & Safeguarding,Access to Resources & Specialist Commissioning,Services,02/11/2016 00:00,8000075605,627.06,Revenue,Redacted Personal Information,Boarding Out Allowances
Peterborough,http://opendatacommunities.org/id/unitary-authority/peterborough,Peterborough City Council,Children's & Safeguarding,Access to Resources & Specialist Commissioning,Services,02/11/2016 00:00,8000075605,584.08,Revenue,Redacted Personal Information,Boarding Out Allowances
Peterborough,http://opendatacommunities.org/id/unitary-authority/peterborough,Peterborough City Council,Children's & Safeguarding,Access to Resources & Specialist Commissioning,Services,02/11/2016 00:00,8000075605,527.52,Revenue,Redacted Personal Information,Boarding Out Allowances
Peterborough,http://opendatacommunities.org/id/unitary-authority/peterborough,Peterborough City Council,Children's & Safeguarding,Access to Resources & Specialist Commissioning,Services,02/11/2016 00:00,8000075605,627.06,Revenue,Redacted Personal Information,Boarding Out Allowances
Peterborough,http://opendatacommunities.org/id/unitary-authority/peterborough,Peterborough City Council,Children's & Safeguarding,Access to Resources & Specialist Commissioning,Services,02/11/2016 00:00,8000075605,584.08,Revenue,Redacted Personal Information,Boarding Out Allowances
Peterborough,http://opendatacommunities.org/id/unitary-authority/peterborough,Peterborough City Council,Children's & Safeguarding,Access to Resources & Specialist Commissioning,Services,02/11/2016 00:00,8000075605,527.52,Revenue,Redacted Personal Information,Boarding Out Allowances
Peterborough,http://opendatacommunities.org/id/unitary-authority/peterborough,Peterborough City Council,Children's & Safeguarding,Access to Resources & Specialist Commissioning,Services,02/11/2016 00:00,8000075605,584.08,Revenue,Redacted Personal Information,Boarding Out Allowances
Peterborough,http://opendatacommunities.org/id/unitary-authority/peterborough,Peterborough City Council,Children's & Safeguarding,Access to Resources & Specialist Commissioning,Services,02/11/2016 00:00,8000075605,1176.7,Revenue,Redacted Personal Information,Boarding Out Allowances
Peterborough,http://opendatacommunities.org/id/unitary-authority/peterborough,Peterborough City Council,Children's & Safeguarding,Access to Resources & Specialist Commissioning,Services,02/11/2016 00:00,8000075605,691.95,Revenue,Redacted Personal Information,Boarding Out Allowances
Peterborough,http://opendatacommunities.org/id/unitary-authority/peterborough,Peterborough City Council,Children's & Safeguarding,Access to Resources & Specialist Commissioning,Services,02/11/2016 00:00,8000075605,909.82,Revenue,Redacted Personal Information,Boarding Out Allowances
Peterborough,http://opendatacommunities.org/id/unitary-authority/peterborough,Peterborough City Council,Children's & Safeguarding,Access to Resources & Specialist Commissioning,Services,02/11/2016 00:00,8000075605,909.82,Revenue,Redacted Personal Information,Boarding Out Allowances
Peterborough,http://opendatacommunities.org/id/unitary-authority/peterborough,Peterborough City Council,Children's & Safeguarding,Access to Resources & Specialist Commissioning,Services,02/11/2016 00:00,8000075605,1074.25,Revenue,Redacted Personal Information,Boarding Out Allowances
Peterborough,http://opendatacommunities.org/id/unitary-authority/peterborough,Peterborough City Council,Children's & Safeguarding,Access to Resources & Specialist Commissioning,Services,02/11/2016 00:00,8000075605,909.82,Revenue,Redacted Personal Information,Boarding Out Allowances
Peterborough,http://opendatacommunities.org/id/unitary-authority/peterborough,Peterborough City Council,Children's & Safeguarding,Access to Resources & Specialist Commissioning,Services,02/11/2016 00:00,8000075605,909.82,Revenue,Redacted Personal Information,Boarding Out Allowances
Peterborough,http://opendatacommunities.org/id/unitary-authority/peterborough,Peterborough City Council,Children's & Safeguarding,Access to Resources & Specialist Commissioning,Services,02/11/2016 00:00,8000075605,945.34,Revenue,Redacted Personal Information,Boarding Out Allowances
Peterborough,http://opendatacommunities.org/id/unitary-authority/peterborough,Peterborough City Council,Children's & Safeguarding,Access to Resources & Specialist Commissioning,Services,02/11/2016 00:00,8000075605,810.08,Revenue,Redacted Personal Information,Boarding Out Allowances
Peterborough,http://opendatacommunities.org/id/unitary-authority/peterborough,Peterborough City Council,Children's & Safeguarding,Access to Resources & Specialist Commissioning,Services,02/11/2016 00:00,8000075605,932.56,Revenue,Redacted Personal Information,Boarding Out Allowances
Peterborough,http://opendatacommunities.org/id/unitary-authority/peterborough,Peterborough City Council,Children's & Safeguarding,Access to Resources & Specialist Commissioning,Services,02/11/2016 00:00,8000075605,844.9,Revenue,Redacted Personal Information,Boarding Out Allowances
Peterborough,http://opendatacommunities.org/id/unitary-authority/peterborough,Peterborough City Council,Children's & Safeguarding,Access to Resources & Specialist Commissioning,Services,02/11/2016 00:00,8000075605,844.06,Revenue,Redacted Personal Information,Boarding Out Allowances
Peterborough,http://opendatacommunities.org/id/unitary-authority/peterborough,Peterborough City Council,Children's & Safeguarding,Access to Resources & Specialist Commissioning,Services,02/11/2016 00:00,8000075605,822.36,Revenue,Redacted Personal Information,Boarding Out Allowances
Peterborough,http://opendatacommunities.org/id/unitary-authority/peterborough,Peterborough City Council,Children's & Safeguarding,Access to Resources & Specialist Commissioning,Services,02/11/2016 00:00,8000075605,858.76,Revenue,Redacted Personal Information,Boarding Out Allowances
Peterborough,http://opendatacommunities.org/id/unitary-authority/peterborough,Peterborough City Council,Children's & Safeguarding,Access to Resources & Specialist Commissioning,Services,02/11/2016 00:00,8000075605,835.8,Revenue,Redacted Personal Information,Boarding Out Allowances
Peterborough,http://opendatacommunities.org/id/unitary-authority/peterborough,Peterborough City Council,Children's & Safeguarding,Access to Resources & Specialist Commissioning,Services,02/11/2016 00:00,8000075605,684.78,Revenue,Redacted Personal Information,Boarding Out Allowances
Peterborough,http://opendatacommunities.org/id/unitary-authority/peterborough,Peterborough City Council,Children's & Safeguarding,Access to Resources & Specialist Commissioning,Services,02/11/2016 00:00,8000075605,810.08,Revenue,Redacted Personal Information,Boarding Out Allowances
Peterborough,http://opendatacommunities.org/id/unitary-authority/peterborough,Peterborough City Council,Children's & Safeguarding,Access to Resources & Specialist Commissioning,Services,02/11/2016 00:00,8000075605,932.56,Revenue,Redacted Personal Information,Boarding Out Allowances
Peterborough,http://opendatacommunities.org/id/unitary-authority/peterborough,Peterborough City Council,Children's & Safeguarding,Access to Resources & Specialist Commissioning,Services,02/11/2016 00:00,8000075605,844.06,Revenue,Redacted Personal Information,Boarding Out Allowances
Peterborough,http://opendatacommunities.org/id/unitary-authority/peterborough,Peterborough City Council,Children's & Safeguarding,Access to Resources & Specialist Commissioning,Services,02/11/2016 00:00,8000075605,835.8,Revenue,Redacted Personal Information,Boarding Out Allowances
Peterborough,http://opendatacommunities.org/id/unitary-authority/peterborough,Peterborough City Council,Children's & Safeguarding,Access to Resources & Specialist Commissioning,Services,02/11/2016 00:00,8000075605,691.95,Revenue,Redacted Personal Information,Boarding Out Allowances
Peterborough,http://opendatacommunities.org/id/unitary-authority/peterborough,Peterborough City Council,Children's & Safeguarding,Access to Resources & Specialist Commissioning,Services,02/11/2016 00:00,8000075605,685.48,Revenue,Redacted Personal Information,Boarding Out Allowances
Peterborough,http://opendatacommunities.org/id/unitary-authority/peterborough,Peterborough City Council,Children's & Safeguarding,Access to Resources & Specialist Commissioning,Services,02/11/2016 00:00,8000075605,792.96,Revenue,Redacted Personal Information,Boarding Out Allowances
Peterborough,http://opendatacommunities.org/id/unitary-authority/peterborough,Peterborough City Council,Children's & Safeguarding,Access to Resources & Specialist Commissioning,Services,02/11/2016 00:00,8000075605,792.96,Revenue,Redacted Personal Information,Boarding Out Allowances
Peterborough,http://opendatacommunities.org/id/unitary-authority/peterborough,Peterborough City Council,Children's & Safeguarding,Access to Resources & Specialist Commissioning,Services,02/11/2016 00:00,8000075605,527.52,Revenue,Redacted Personal Information,Boarding Out Allowances
Peterborough,http://opendatacommunities.org/id/unitary-authority/peterborough,Peterborough City Council,Children's & Safeguarding,Access to Resources & Specialist Commissioning,Services,02/11/2016 00:00,8000075605,627.06,Revenue,Redacted Personal Information,Boarding Out Allowances
Peterborough,http://opendatacommunities.org/id/unitary-authority/peterborough,Peterborough City Council,Children's & Safeguarding,Access to Resources & Specialist Commissioning,Services,02/11/2016 00:00,8000075605,627.06,Revenue,Redacted Personal Information,Boarding Out Allowances
Peterborough,http://opendatacommunities.org/id/unitary-authority/peterborough,Peterborough City Council,Children's & Safeguarding,Access to Resources & Specialist Commissioning,Services,02/11/2016 00:00,8000075605,792.96,Revenue,Redacted Personal Information,Boarding Out Allowances
Peterborough,http://opendatacommunities.org/id/unitary-authority/peterborough,Peterborough City Council,Children's & Safeguarding,Access to Resources & Specialist Commissioning,Services,02/11/2016 00:00,8000075605,792.96,Revenue,Redacted Personal Information,Boarding Out Allowances
Peterborough,http://opendatacommunities.org/id/unitary-authority/peterborough,Peterborough City Council,Children's & Safeguarding,Access to Resources & Specialist Commissioning,Services,02/11/2016 00:00,8000075605,584.08,Revenue,Redacted Personal Information,Boarding Out Allowances
Peterborough,http://opendatacommunities.org/id/unitary-authority/peterborough,Peterborough City Council,Children's & Safeguarding,Access to Resources & Specialist Commissioning,Services,02/11/2016 00:00,8000075605,584.08,Revenue,Redacted Personal Information,Boarding Out Allowances
Peterborough,http://opendatacommunities.org/id/unitary-authority/peterborough,Peterborough City Council,Children's & Safeguarding,Access to Resources & Specialist Commissioning,Services,02/11/2016 00:00,8000075605,527.52,Revenue,Redacted Personal Information,Boarding Out Allowances
Peterborough,http://opendatacommunities.org/id/unitary-authority/peterborough,Peterborough City Council,Children's & Safeguarding,Access to Resources & Specialist Commissioning,Services,02/11/2016 00:00,8000075605,628.95,Revenue,Redacted Personal Information,Boarding Out Allowances
Peterborough,http://opendatacommunities.org/id/unitary-authority/peterborough,Peterborough City Council,Children's & Safeguarding,Access to Resources & Specialist Commissioning,Services,02/11/2016 00:00,8000075605,527.52,Revenue,Redacted Personal Information,Boarding Out Allowances
Peterborough,http://opendatacommunities.org/id/unitary-authority/peterborough,Peterborough City Council,Children's & Safeguarding,Access to Resources & Specialist Commissioning,Services,02/11/2016 00:00,8000075605,909.82,Revenue,Redacted Personal Information,Boarding Out Allowances
Peterborough,http://opendatacommunities.org/id/unitary-authority/peterborough,Peterborough City Council,Children's & Safeguarding,Access to Resources & Specialist Commissioning,Services,02/11/2016 00:00,8000075605,527.52,Revenue,Redacted Personal Information,Boarding Out Allowances
Peterborough,http://opendatacommunities.org/id/unitary-authority/peterborough,Peterborough City Council,Children's & Safeguarding,Access to Resources & Specialist Commissioning,Services,02/11/2016 00:00,8000075605,527.52,Revenue,Redacted Personal Information,Boarding Out Allowances
Peterborough,http://opendatacommunities.org/id/unitary-authority/peterborough,Peterborough City Council,Children's & Safeguarding,Access to Resources & Specialist Commissioning,Services,02/11/2016 00:00,8000075605,527.52,Revenue,Redacted Personal Information,Boarding Out Allowances
Peterborough,http://opendatacommunities.org/id/unitary-authority/peterborough,Peterborough City Council,Children's & Safeguarding,Access to Resources & Specialist Commissioning,Services,02/11/2016 00:00,8000075605,527.52,Revenue,Redacted Personal Information,Boarding Out Allowances
Peterborough,http://opendatacommunities.org/id/unitary-authority/peterborough,Peterborough City Council,Children's & Safeguarding,Child Health,Services,02/11/2016 00:00,8000075605,672.04,Revenue,Redacted Personal Information,Financial Assistance
Peterborough,http://opendatacommunities.org/id/unitary-authority/peterborough,Peterborough City Council,Children's & Safeguarding,Access to Resources & Specialist Commissioning,Services,02/11/2016 00:00,8000075605,584.08,Revenue,Redacted Personal Information,Boarding Out Allowances
Peterborough,http://opendatacommunities.org/id/unitary-authority/peterborough,Peterborough City Council,Children's & Safeguarding,Access to Resources & Specialist Commissioning,Services,02/11/2016 00:00,8000075605,527.52,Revenue,Redacted Personal Information,Boarding Out Allowances
Peterborough,http://opendatacommunities.org/id/unitary-authority/peterborough,Peterborough City Council,Children's & Safeguarding,Access to Resources & Specialist Commissioning,Services,02/11/2016 00:00,8000075605,628.95,Revenue,Redacted Personal Information,Boarding Out Allowances
Peterborough,http://opendatacommunities.org/id/unitary-authority/peterborough,Peterborough City Council,Children's & Safeguarding,Access to Resources & Specialist Commissioning,Services,02/11/2016 00:00,8000075605,627.06,Revenue,Redacted Personal Information,Boarding Out Allowances
Peterborough,http://opendatacommunities.org/id/unitary-authority/peterborough,Peterborough City Council,Children's & Safeguarding,Access to Resources & Specialist Commissioning,Services,02/11/2016 00:00,8000075605,584.08,Revenue,Redacted Personal Information,Boarding Out Allowances
Peterborough,http://opendatacommunities.org/id/unitary-authority/peterborough,Peterborough City Council,Children's & Safeguarding,Access to Resources & Specialist Commissioning,Services,02/11/2016 00:00,8000075605,512.98,Revenue,Redacted Personal Information,Boarding Out Allowances
Peterborough,http://opendatacommunities.org/id/unitary-authority/peterborough,Peterborough City Council,Children's & Safeguarding,Access to Resources & Specialist Commissioning,Services,04/11/2016 00:00,30088428,-5595.8,Revenue,Fostering People Ltd,Boarding Out Allowances
Peterborough,http://opendatacommunities.org/id/unitary-authority/peterborough,Peterborough City Council,Children's & Safeguarding,Access to Resources & Specialist Commissioning,Services,04/11/2016 00:00,30093093,3210.71,Revenue,Pride Fostering,Boarding Out Allowances
Peterborough,http://opendatacommunities.org/id/unitary-authority/peterborough,Peterborough City Council,Children's & Safeguarding,Access to Resources & Specialist Commissioning,Services,04/11/2016 00:00,30093095,3210.71,Revenue,Pride Fostering,Boarding Out Allowances
Peterborough,http://opendatacommunities.org/id/unitary-authority/peterborough,Peterborough City Council,Children's & Safeguarding,Access to Resources & Specialist Commissioning,Services,04/11/2016 00:00,30093096,3210.71,Revenue,Pride Fostering,Boarding Out Allowances
Peterborough,http://opendatacommunities.org/id/unitary-authority/peterborough,Peterborough City Council,Adult Services & Communities - Adults,Day Opportunities / In House,Agency Staff,04/11/2016 00:00,30093156,501.95,Revenue,Pulse,External Temporary Staff
Peterborough,http://opendatacommunities.org/id/unitary-authority/peterborough,Peterborough City Council,Adult Services & Communities - Adults,Block Contracts,Third Party Payments,04/11/2016 00:00,30094149,5034.04,Revenue,Sense,Third Party Payments - Contract
Peterborough,http://opendatacommunities.org/id/unitary-authority/peterborough,Peterborough City Council,Adult Services & Communities - Adults,Block Contracts,Third Party Payments,04/11/2016 00:00,30094186,10068.08,Revenue,Sense,Third Party Payments - Contract
Peterborough,http://opendatacommunities.org/id/unitary-authority/peterborough,Peterborough City Council,Adult Services & Communities - Adults,Strategic Commissioning - Management,Agency Staff,04/11/2016 00:00,30095587,2240,Revenue,Sanctuary Personnel Ltd,External Temporary Staff
Peterborough,http://opendatacommunities.org/id/unitary-authority/peterborough,Peterborough City Council,Adult Services & Communities - Adults,Strategic Commissioning - Management,Agency Staff,04/11/2016 00:00,30095595,2240,Revenue,Sanctuary Personnel Ltd,External Temporary Staff
Peterborough,http://opendatacommunities.org/id/unitary-authority/peterborough,Peterborough City Council,Adult Services & Communities - Adults,Independent Sector Placements,Services,04/11/2016 00:00,30096038,2387.48,Revenue,Linkage Community Trust Limited,Residential Care
Peterborough,http://opendatacommunities.org/id/unitary-authority/peterborough,Peterborough City Council,Children's & Safeguarding,Access to Resources & Specialist Commissioning,Services,04/11/2016 00:00,30096652,18533.35,Revenue,Dove Adolescent Services Ltd,Boarding Out Allowances
Peterborough,http://opendatacommunities.org/id/unitary-authority/peterborough,Peterborough City Council,Children's & Safeguarding,Access to Resources & Specialist Commissioning,Services,04/11/2016 00:00,30096755,6195.66,Revenue,Fostering People Ltd,Boarding Out Allowances
Peterborough,http://opendatacommunities.org/id/unitary-authority/peterborough,Peterborough City Council,Children's & Safeguarding,Access to Resources & Specialist Commissioning,Services,04/11/2016 00:00,30097129,4411.43,Revenue,By The Bridge,Boarding Out Allowances
Peterborough,http://opendatacommunities.org/id/unitary-authority/peterborough,Peterborough City Council,Children's & Safeguarding,Access to Resources & Specialist Commissioning,Services,04/11/2016 00:00,30097130,4411.43,Revenue,By The Bridge,Boarding Out Allowances
Peterborough,http://opendatacommunities.org/id/unitary-authority/peterborough,Peterborough City Council,Children's & Safeguarding,Access to Resources & Specialist Commissioning,Services,04/11/2016 00:00,30097236,3107.14,Revenue,Sunbeam Fostering,Boarding Out Allowances
Peterborough,http://opendatacommunities.org/id/unitary-authority/peterborough,Peterborough City Council,Adult Services & Communities - Adults,Day Opportunities / In House,Agency Staff,04/11/2016 00:00,30097259,1274.6,Revenue,Pulse,External Temporary Staff
Peterborough,http://opendatacommunities.org/id/unitary-authority/peterborough,Peterborough City Council,Adult Services & Communities - Adults,Independent Sector Placements,Services,04/11/2016 00:00,30097294,2424,Revenue,The Regard Partnership Limited,Residential Care
Peterborough,http://opendatacommunities.org/id/unitary-authority/peterborough,Peterborough City Council,Adult Services & Communities - Adults,Independent Sector Placements,Services,04/11/2016 00:00,30097303,1540.52,Revenue,The Regard Partnership Limited,Residential Care
Peterborough,http://opendatacommunities.org/id/unitary-authority/peterborough,Peterborough City Council,Children's & Safeguarding,Access to Resources & Specialist Commissioning,Services,04/11/2016 00:00,30097326,3321.96,Revenue,Fostering People Ltd,Boarding Out Allowances
Peterborough,http://opendatacommunities.org/id/unitary-authority/peterborough,Peterborough City Council,Peterborough Highway Services,Network and Traffic Management,Services,04/11/2016 00:00,30097542,803.89,Revenue,British Telecom PLC,Telephones
Peterborough,http://opendatacommunities.org/id/unitary-authority/peterborough,Peterborough City Council,Business Management and Commercial Operations,Clare Lodge,Services,04/11/2016 00:00,30097840,3992.28,Revenue,Stanley Security Solutions,Security
Peterborough,http://opendatacommunities.org/id/unitary-authority/peterborough,Peterborough City Council,Adult Services & Communities - Adults,Therapy/Reablement/Community Equipment,Agency Staff,04/11/2016 00:00,30097886,1221,Revenue,SWP Consulting,External Temporary Staff
Peterborough,http://opendatacommunities.org/id/unitary-authority/peterborough,Peterborough City Council,Adult Services & Communities - Adults,Therapy/Reablement/Community Equipment,Agency Staff,04/11/2016 00:00,30097887,1258,Revenue,SWP Consulting,External Temporary Staff
Peterborough,http://opendatacommunities.org/id/unitary-authority/peterborough,Peterborough City Council,Children's & Safeguarding,Access to Resources & Specialist Commissioning,Services,04/11/2016 00:00,30097888,5989.51,Revenue,Kasper Fostering,Boarding Out Allowances
Peterborough,http://opendatacommunities.org/id/unitary-authority/peterborough,Peterborough City Council,Children's & Safeguarding,Access to Resources & Specialist Commissioning,Services,04/11/2016 00:00,30097915,3620.8,Revenue,Archway Care Ltd,Boarding Out Allowances
Peterborough,http://opendatacommunities.org/id/unitary-authority/peterborough,Peterborough City Council,Children's & Safeguarding,Access to Resources & Specialist Commissioning,Services,04/11/2016 00:00,30097916,3620.8,Revenue,Archway Care Ltd,Boarding Out Allowances
Peterborough,http://opendatacommunities.org/id/unitary-authority/peterborough,Peterborough City Council,Children's & Safeguarding,Access to Resources & Specialist Commissioning,Services,04/11/2016 00:00,30097917,3548.26,Revenue,Archway Care Ltd,Boarding Out Allowances
Peterborough,http://opendatacommunities.org/id/unitary-authority/peterborough,Peterborough City Council,Children's & Safeguarding,Access to Resources & Specialist Commissioning,Services,04/11/2016 00:00,30097919,3620.8,Revenue,Archway Care Ltd,Boarding Out Allowances
Peterborough,http://opendatacommunities.org/id/unitary-authority/peterborough,Peterborough City Council,Children's & Safeguarding,Access to Resources & Specialist Commissioning,Services,04/11/2016 00:00,30097921,3620.8,Revenue,Archway Care Ltd,Boarding Out Allowances
Peterborough,http://opendatacommunities.org/id/unitary-authority/peterborough,Peterborough City Council,Children's & Safeguarding,Access to Resources & Specialist Commissioning,Services,04/11/2016 00:00,30097922,3512.3,Revenue,Archway Care Ltd,Boarding Out Allowances
Peterborough,http://opendatacommunities.org/id/unitary-authority/peterborough,Peterborough City Council,Children's & Safeguarding,Access to Resources & Specialist Commissioning,Services,04/11/2016 00:00,30097924,3620.8,Revenue,Archway Care Ltd,Boarding Out Allowances
Peterborough,http://opendatacommunities.org/id/unitary-authority/peterborough,Peterborough City Council,Children's & Safeguarding,Access to Resources & Specialist Commissioning,Services,04/11/2016 00:00,30097926,1051.2,Revenue,Archway Care Ltd,Boarding Out Allowances
Peterborough,http://opendatacommunities.org/id/unitary-authority/peterborough,Peterborough City Council,Children's & Safeguarding,Access to Resources & Specialist Commissioning,Services,04/11/2016 00:00,30097928,3548.26,Revenue,Archway Care Ltd,Boarding Out Allowances
Peterborough,http://opendatacommunities.org/id/unitary-authority/peterborough,Peterborough City Council,Adults and Communities - Communities,Early Help ASC/CSC,Catering,04/11/2016 00:00,30097930,924.3,Revenue,City College Peterborough,Hospitality
Peterborough,http://opendatacommunities.org/id/unitary-authority/peterborough,Peterborough City Council,Adult Services & Communities - Adults,Independent Sector Placements,Services,04/11/2016 00:00,30097937,1821.88,Revenue,Avery House (Peterborough) t/a Brighterkind,Residential Care
Peterborough,http://opendatacommunities.org/id/unitary-authority/peterborough,Peterborough City Council,City Servs & Communications,"Markets, Tourism & Events",Services,04/11/2016 00:00,30097983,5038,Revenue,Pearce Hire,Conferences/Events
Peterborough,http://opendatacommunities.org/id/unitary-authority/peterborough,Peterborough City Council,Children's & Safeguarding,Access to Resources & Specialist Commissioning,Services,04/11/2016 00:00,30097991,5535.67,Revenue,St Christopher's Fellowship,Boarding Out Allowances
Peterborough,http://opendatacommunities.org/id/unitary-authority/peterborough,Peterborough City Council,Children's & Safeguarding,Access to Resources & Specialist Commissioning,Services,04/11/2016 00:00,30097999,3432.63,Revenue,St Christopher's Fellowship,Boarding Out Allowances
Peterborough,http://opendatacommunities.org/id/unitary-authority/peterborough,Peterborough City Council,Children's & Safeguarding,Access to Resources & Specialist Commissioning,Services,04/11/2016 00:00,30098000,3520.67,Revenue,St Christopher's Fellowship,Boarding Out Allowances
Peterborough,http://opendatacommunities.org/id/unitary-authority/peterborough,Peterborough City Council,Children's & Safeguarding,Access to Resources & Specialist Commissioning,Services,04/11/2016 00:00,30098004,3432.63,Revenue,St Christopher's Fellowship,Boarding Out Allowances
Peterborough,http://opendatacommunities.org/id/unitary-authority/peterborough,Peterborough City Council,Education,School Infrastructure,Agency Staff,04/11/2016 00:00,30098016,1500,Revenue,Baltimore Consulting,External Temporary Staff
Peterborough,http://opendatacommunities.org/id/unitary-authority/peterborough,Peterborough City Council,Adults and Communities - Communities,Early Help ASC/CSC,Third Party Payments,04/11/2016 00:00,30098024,36000,Revenue,Cambridgeshire & Peterborough Fire Authority,Contributions
Peterborough,http://opendatacommunities.org/id/unitary-authority/peterborough,Peterborough City Council,Corporate,Corporate,Non Revenue,04/11/2016 00:00,30098064,4000,Capital,Display Energy Solutions Ltd,Consultants Fees
Peterborough,http://opendatacommunities.org/id/unitary-authority/peterborough,Peterborough City Council,Education,Home to School Transport,Contract Hire and Operating Leases,04/11/2016 00:00,30098103,887.76,Revenue,Centrebus North Ltd,Hired Transport
Peterborough,http://opendatacommunities.org/id/unitary-authority/peterborough,Peterborough City Council,Education,Home to School Transport,Contract Hire and Operating Leases,04/11/2016 00:00,30098104,533.2,Revenue,Centrebus North Ltd,Hired Transport
Peterborough,http://opendatacommunities.org/id/unitary-authority/peterborough,Peterborough City Council,Adult Services & Communities - Adults,Independent Sector Placements,Services,04/11/2016 00:00,30098129,3600,Revenue,LESTER HALL APARTMENTS LTD,Residential Care
Peterborough,http://opendatacommunities.org/id/unitary-authority/peterborough,Peterborough City Council,Adult Services & Communities - Adults,Independent Sector Placements,Services,04/11/2016 00:00,30098163,4405.4,Revenue,OAKFIELD (EASTON MAUDIT) LTD,Residential Care
Peterborough,http://opendatacommunities.org/id/unitary-authority/peterborough,Peterborough City Council,Adult Services & Communities - Adults,Independent Sector Placements,Services,04/11/2016 00:00,30098169,14588,Revenue,Decoy Farm,Residential Care
Peterborough,http://opendatacommunities.org/id/unitary-authority/peterborough,Peterborough City Council,Corporate Property,Commercial Propety,Services,04/11/2016 00:00,30098184,5500,Revenue,Serco Ltd,Hired Services
Peterborough,http://opendatacommunities.org/id/unitary-authority/peterborough,Peterborough City Council,Adult Services & Communities - Adults,Independent Sector Placements,Services,04/11/2016 00:00,30098226,1275.92,Revenue,THE TUDORS,Residential Care
Peterborough,http://opendatacommunities.org/id/unitary-authority/peterborough,Peterborough City Council,Adult Services & Communities - Adults,Independent Sector Placements,Services,04/11/2016 00:00,30098227,1053.44,Revenue,THE TUDORS,Residential Care
Peterborough,http://opendatacommunities.org/id/unitary-authority/peterborough,Peterborough City Council,Adult Services & Communities - Adults,Independent Sector Placements,Services,04/11/2016 00:00,30098230,1267.08,Revenue,THE TUDORS,Residential Care
Peterborough,http://opendatacommunities.org/id/unitary-authority/peterborough,Peterborough City Council,Adult Services & Communities - Adults,Independent Sector Placements,Services,04/11/2016 00:00,30098231,990,Revenue,THE TUDORS,Residential Care
Peterborough,http://opendatacommunities.org/id/unitary-authority/peterborough,Peterborough City Council,Adult Services & Communities - Adults,Independent Sector Placements,Services,04/11/2016 00:00,30098234,1107.64,Revenue,THE TUDORS,Residential Care
Peterborough,http://opendatacommunities.org/id/unitary-authority/peterborough,Peterborough City Council,Adult Services & Communities - Adults,Independent Sector Placements,Services,04/11/2016 00:00,30098235,718.64,Revenue,THE TUDORS,Residential Care
Peterborough,http://opendatacommunities.org/id/unitary-authority/peterborough,Peterborough City Council,Adult Services & Communities - Adults,Independent Sector Placements,Services,04/11/2016 00:00,30098236,1239.92,Revenue,THE TUDORS,Residential Care
Peterborough,http://opendatacommunities.org/id/unitary-authority/peterborough,Peterborough City Council,Adult Services & Communities - Adults,Independent Sector Placements,Services,04/11/2016 00:00,30098237,1159.76,Revenue,THE TUDORS,Residential Care
Peterborough,http://opendatacommunities.org/id/unitary-authority/peterborough,Peterborough City Council,Adult Services & Communities - Adults,Independent Sector Placements,Services,04/11/2016 00:00,30098238,1058.6,Revenue,THE TUDORS,Residential Care
Peterborough,http://opendatacommunities.org/id/unitary-authority/peterborough,Peterborough City Council,Adult Services & Communities - Adults,Independent Sector Placements,Services,04/11/2016 00:00,30098239,1154.52,Revenue,THE TUDORS,Residential Care
Peterborough,http://opendatacommunities.org/id/unitary-authority/peterborough,Peterborough City Council,Adult Services & Communities - Adults,Independent Sector Placements,Services,04/11/2016 00:00,30098240,1299.08,Revenue,THE TUDORS,Residential Care
Peterborough,http://opendatacommunities.org/id/unitary-authority/peterborough,Peterborough City Council,Adult Services & Communities - Adults,Independent Sector Placements,Services,04/11/2016 00:00,30098243,1224.08,Revenue,THE TUDORS,Residential Care
Peterborough,http://opendatacommunities.org/id/unitary-authority/peterborough,Peterborough City Council,Adult Services & Communities - Adults,Independent Sector Placements,Services,04/11/2016 00:00,30098244,1053.44,Revenue,THE TUDORS,Residential Care
Peterborough,http://opendatacommunities.org/id/unitary-authority/peterborough,Peterborough City Council,Adult Services & Communities - Adults,Independent Sector Placements,Services,04/11/2016 00:00,30098245,1319.08,Revenue,THE TUDORS,Residential Care
Peterborough,http://opendatacommunities.org/id/unitary-authority/peterborough,Peterborough City Council,Adult Services & Communities - Adults,Independent Sector Placements,Services,04/11/2016 00:00,30098246,956.08,Revenue,THE TUDORS,Residential Care
Peterborough,http://opendatacommunities.org/id/unitary-authority/peterborough,Peterborough City Council,Adult Services & Communities - Adults,Independent Sector Placements,Services,04/11/2016 00:00,30098247,950.97,Revenue,THE TUDORS,Residential Care
Peterborough,http://opendatacommunities.org/id/unitary-authority/peterborough,Peterborough City Council,Adult Services & Communities - Adults,Independent Sector Placements,Services,04/11/2016 00:00,30098248,1821.88,Revenue,THE TUDORS,Residential Care
Peterborough,http://opendatacommunities.org/id/unitary-authority/peterborough,Peterborough City Council,Adult Services & Communities - Adults,Independent Sector Placements,Services,04/11/2016 00:00,30098401,7816.04,Revenue,Home From Home Care,Residential Care
Peterborough,http://opendatacommunities.org/id/unitary-authority/peterborough,Peterborough City Council,Adult Services & Communities - Adults,Independent Sector Placements,Services,04/11/2016 00:00,30098402,6354.32,Revenue,Home From Home Care,Residential Care
Peterborough,http://opendatacommunities.org/id/unitary-authority/peterborough,Peterborough City Council,Adult Services & Communities - Adults,Independent Sector Placements,Services,04/11/2016 00:00,30098403,8328.92,Revenue,Home From Home Care,Residential Care
Peterborough,http://opendatacommunities.org/id/unitary-authority/peterborough,Peterborough City Council,Adult Services & Communities - Adults,Independent Sector Placements,Services,04/11/2016 00:00,30098404,7004.04,Revenue,Home From Home Care,Residential Care
Peterborough,http://opendatacommunities.org/id/unitary-authority/peterborough,Peterborough City Council,Adult Services & Communities - Adults,Independent Sector Placements,Services,04/11/2016 00:00,30098407,3676.44,Revenue,Consensus Support Services Ltd,Residential Care
Peterborough,http://opendatacommunities.org/id/unitary-authority/peterborough,Peterborough City Council,Adult Services & Communities - Adults,Independent Sector Placements,Services,04/11/2016 00:00,30098408,602.56,Revenue,Consensus Support Services Ltd,Residential Care
Peterborough,http://opendatacommunities.org/id/unitary-authority/peterborough,Peterborough City Council,Adult Services & Communities - Adults,Independent Sector Placements,Services,04/11/2016 00:00,30098409,9105.76,Revenue,Consensus Support Services Ltd,Residential Care
Peterborough,http://opendatacommunities.org/id/unitary-authority/peterborough,Peterborough City Council,Legal & Democratic,Legal Services,Agency Staff,04/11/2016 00:00,30098434,1086.25,Revenue,Sellick Partnership Group Limited,External Temporary Staff
Peterborough,http://opendatacommunities.org/id/unitary-authority/peterborough,Peterborough City Council,Legal & Democratic,Legal Services,Agency Staff,04/11/2016 00:00,30098435,768,Revenue,Sellick Partnership Group Limited,External Temporary Staff
Peterborough,http://opendatacommunities.org/id/unitary-authority/peterborough,Peterborough City Council,Corporate,Corporate,Non Revenue,04/11/2016 00:00,30098440,22500,Capital,Enterprise Managed Services Limited,Building And Site Works
Peterborough,http://opendatacommunities.org/id/unitary-authority/peterborough,Peterborough City Council,Corporate,Corporate,Non Revenue,04/11/2016 00:00,30098441,2700,Capital,Enterprise Managed Services Limited,Building And Site Works
Peterborough,http://opendatacommunities.org/id/unitary-authority/peterborough,Peterborough City Council,Corporate,Corporate,Non Revenue,04/11/2016 00:00,30098442,1440,Capital,Enterprise Managed Services Limited,Building And Site Works
Peterborough,http://opendatacommunities.org/id/unitary-authority/peterborough,Peterborough City Council,Corporate,Corporate,Non Revenue,04/11/2016 00:00,30098444,12000,Capital,Enterprise Managed Services Limited,Building And Site Works
Peterborough,http://opendatacommunities.org/id/unitary-authority/peterborough,Peterborough City Council,Corporate,Corporate,Non Revenue,04/11/2016 00:00,30098446,3312,Capital,Enterprise Managed Services Limited,Building And Site Works
Peterborough,http://opendatacommunities.org/id/unitary-authority/peterborough,Peterborough City Council,Corporate,Corporate,Non Revenue,04/11/2016 00:00,30098448,3500,Capital,Enterprise Managed Services Limited,Building And Site Works
Peterborough,http://opendatacommunities.org/id/unitary-authority/peterborough,Peterborough City Council,Corporate,Corporate,Non Revenue,04/11/2016 00:00,30098450,27600,Capital,Enterprise Managed Services Limited,Building And Site Works
Peterborough,http://opendatacommunities.org/id/unitary-authority/peterborough,Peterborough City Council,Corporate,Corporate,Non Revenue,04/11/2016 00:00,30098453,3000,Capital,Enterprise Managed Services Limited,Building And Site Works
Peterborough,http://opendatacommunities.org/id/unitary-authority/peterborough,Peterborough City Council,Corporate,Corporate,Non Revenue,04/11/2016 00:00,30098455,1620,Capital,Enterprise Managed Services Limited,Building And Site Works
Peterborough,http://opendatacommunities.org/id/unitary-authority/peterborough,Peterborough City Council,Corporate,Corporate,Non Revenue,04/11/2016 00:00,30098458,28936.8,Capital,Enterprise Managed Services Limited,Building And Site Works
Peterborough,http://opendatacommunities.org/id/unitary-authority/peterborough,Peterborough City Council,Corporate,Corporate,Non Revenue,04/11/2016 00:00,30098459,13500,Capital,Enterprise Managed Services Limited,Building And Site Works
Peterborough,http://opendatacommunities.org/id/unitary-authority/peterborough,Peterborough City Council,Adult Services & Communities - Adults,Independent Sector Placements,Services,04/11/2016 00:00,30098537,2660,Revenue,Exclusive Secure Care Services,Home Care
Peterborough,http://opendatacommunities.org/id/unitary-authority/peterborough,Peterborough City Council,Adult Services & Communities - Adults,Independent Sector Placements,Services,04/11/2016 00:00,30098617,828,Revenue,Mencap,Home Care
Peterborough,http://opendatacommunities.org/id/unitary-authority/peterborough,Peterborough City Council,Adult Services & Communities - Adults,Independent Sector Placements,Services,04/11/2016 00:00,30098618,3318.8,Revenue,Mencap,Home Care
Peterborough,http://opendatacommunities.org/id/unitary-authority/peterborough,Peterborough City Council,Adult Services & Communities - Adults,Independent Sector Placements,Services,04/11/2016 00:00,30098619,786.6,Revenue,Mencap,Home Care
Peterborough,http://opendatacommunities.org/id/unitary-authority/peterborough,Peterborough City Council,Adult Services & Communities - Adults,Independent Sector Placements,Services,04/11/2016 00:00,30098621,1899.08,Revenue,The Cedars Bourne Care Home,Residential Care
Peterborough,http://opendatacommunities.org/id/unitary-authority/peterborough,Peterborough City Council,Adult Services & Communities - Adults,Day Opportunities / In House,Agency Staff,04/11/2016 00:00,30098635,1302.4,Revenue,Service Care Solutions Ltd,External Temporary Staff
Peterborough,http://opendatacommunities.org/id/unitary-authority/peterborough,Peterborough City Council,Adult Services & Communities - Adults,Independent Sector Placements,Services,04/11/2016 00:00,30098675,7257.6,Revenue,Mencap,Home Care
Peterborough,http://opendatacommunities.org/id/unitary-authority/peterborough,Peterborough City Council,Adult Services & Communities - Adults,Independent Sector Placements,Services,04/11/2016 00:00,30098679,772.8,Revenue,Mencap,Home Care
Peterborough,http://opendatacommunities.org/id/unitary-authority/peterborough,Peterborough City Council,Adult Services & Communities - Adults,Independent Sector Placements,Services,04/11/2016 00:00,30098688,6317.2,Revenue,Mencap,Residential Care
Peterborough,http://opendatacommunities.org/id/unitary-authority/peterborough,Peterborough City Council,Adult Services & Communities - Adults,Independent Sector Placements,Services,04/11/2016 00:00,30098691,1623.8,Revenue,Mencap,Home Care
Peterborough,http://opendatacommunities.org/id/unitary-authority/peterborough,Peterborough City Council,Adult Services & Communities - Adults,Independent Sector Placements,Services,04/11/2016 00:00,30098692,6398.4,Revenue,Mencap,Home Care
Peterborough,http://opendatacommunities.org/id/unitary-authority/peterborough,Peterborough City Council,Adult Services & Communities - Adults,Independent Sector Placements,Services,04/11/2016 00:00,30098693,1458.2,Revenue,Mencap,Home Care
Peterborough,http://opendatacommunities.org/id/unitary-authority/peterborough,Peterborough City Council,Adult Services & Communities - Adults,Independent Sector Placements,Services,04/11/2016 00:00,30098694,1501.8,Revenue,Mencap,Home Care
Peterborough,http://opendatacommunities.org/id/unitary-authority/peterborough,Peterborough City Council,Adult Services & Communities - Adults,Independent Sector Placements,Services,04/11/2016 00:00,30098696,662.4,Revenue,Mencap,Home Care
Peterborough,http://opendatacommunities.org/id/unitary-authority/peterborough,Peterborough City Council,Adult Services & Communities - Adults,Independent Sector Placements,Services,04/11/2016 00:00,30098697,1604.56,Revenue,Mencap,Home Care
Peterborough,http://opendatacommunities.org/id/unitary-authority/peterborough,Peterborough City Council,Adult Services & Communities - Adults,Independent Sector Placements,Services,04/11/2016 00:00,30098698,676.2,Revenue,Mencap,Home Care
Peterborough,http://opendatacommunities.org/id/unitary-authority/peterborough,Peterborough City Council,Adult Services & Communities - Adults,Independent Sector Placements,Services,04/11/2016 00:00,30098699,1323.88,Revenue,Mencap,Home Care
Peterborough,http://opendatacommunities.org/id/unitary-authority/peterborough,Peterborough City Council,Adult Services & Communities - Adults,Independent Sector Placements,Services,04/11/2016 00:00,30098703,828,Revenue,Mencap,Home Care
Peterborough,http://opendatacommunities.org/id/unitary-authority/peterborough,Peterborough City Council,Adult Services & Communities - Adults,Independent Sector Placements,Services,04/11/2016 00:00,30098706,6343.2,Revenue,Mencap,Home Care
Peterborough,http://opendatacommunities.org/id/unitary-authority/peterborough,Peterborough City Council,Adult Services & Communities - Adults,Independent Sector Placements,Services,04/11/2016 00:00,30098708,5087.4,Revenue,Mencap,Home Care
Peterborough,http://opendatacommunities.org/id/unitary-authority/peterborough,Peterborough City Council,Children's & Safeguarding,Access to Resources & Specialist Commissioning,Services,04/11/2016 00:00,30098896,3107.14,Revenue,Pride Fostering,Boarding Out Allowances
Peterborough,http://opendatacommunities.org/id/unitary-authority/peterborough,Peterborough City Council,Children's & Safeguarding,Access to Resources & Specialist Commissioning,Services,04/11/2016 00:00,30098899,3107.14,Revenue,Pride Fostering,Boarding Out Allowances
Peterborough,http://opendatacommunities.org/id/unitary-authority/peterborough,Peterborough City Council,Children's & Safeguarding,Access to Resources & Specialist Commissioning,Services,04/11/2016 00:00,30098900,3107.14,Revenue,Pride Fostering,Boarding Out Allowances
Peterborough,http://opendatacommunities.org/id/unitary-authority/peterborough,Peterborough City Council,Adult Services & Communities - Adults,Independent Sector Placements,Services,04/11/2016 00:00,30098920,1212.6,Revenue,Avery House (Peterborough) t/a Brighterkind,Residential Care
Peterborough,http://opendatacommunities.org/id/unitary-authority/peterborough,Peterborough City Council,Adult Services & Communities - Adults,Independent Sector Placements,Services,04/11/2016 00:00,30098950,2678.57,Revenue,Avery House (Peterborough) t/a Brighterkind,Residential Care
Peterborough,http://opendatacommunities.org/id/unitary-authority/peterborough,Peterborough City Council,Adult Services & Communities - Adults,Independent Sector Placements,Services,04/11/2016 00:00,30098955,1619.08,Revenue,Avery House (Peterborough) t/a Brighterkind,Residential Care
Peterborough,http://opendatacommunities.org/id/unitary-authority/peterborough,Peterborough City Council,Adult Services & Communities - Adults,Independent Sector Placements,Services,04/11/2016 00:00,30098972,1295.08,Revenue,Avery House (Peterborough) t/a Brighterkind,Residential Care
Peterborough,http://opendatacommunities.org/id/unitary-authority/peterborough,Peterborough City Council,Adult Services & Communities - Adults,Independent Sector Placements,Services,04/11/2016 00:00,30098973,1651.04,Revenue,Avery House (Peterborough) t/a Brighterkind,Residential Care
Peterborough,http://opendatacommunities.org/id/unitary-authority/peterborough,Peterborough City Council,Adult Services & Communities - Adults,Independent Sector Placements,Services,04/11/2016 00:00,30098974,1257.64,Revenue,Avery House (Peterborough) t/a Brighterkind,Residential Care
Peterborough,http://opendatacommunities.org/id/unitary-authority/peterborough,Peterborough City Council,Adult Services & Communities - Adults,Independent Sector Placements,Services,04/11/2016 00:00,30098975,872.56,Revenue,Avery House (Peterborough) t/a Brighterkind,Residential Care
Peterborough,http://opendatacommunities.org/id/unitary-authority/peterborough,Peterborough City Council,Adult Services & Communities - Adults,Independent Sector Placements,Services,04/11/2016 00:00,30098976,1899.08,Revenue,Avery House (Peterborough) t/a Brighterkind,Residential Care
Peterborough,http://opendatacommunities.org/id/unitary-authority/peterborough,Peterborough City Council,Adult Services & Communities - Adults,Independent Sector Placements,Services,04/11/2016 00:00,30098977,907.48,Revenue,Avery House (Peterborough) t/a Brighterkind,Residential Care
Peterborough,http://opendatacommunities.org/id/unitary-authority/peterborough,Peterborough City Council,Adult Services & Communities - Adults,Independent Sector Placements,Services,04/11/2016 00:00,30098978,1299.08,Revenue,Avery House (Peterborough) t/a Brighterkind,Residential Care
Peterborough,http://opendatacommunities.org/id/unitary-authority/peterborough,Peterborough City Council,Adult Services & Communities - Adults,Independent Sector Placements,Services,04/11/2016 00:00,30098979,1517.8,Revenue,Avery House (Peterborough) t/a Brighterkind,Residential Care
Peterborough,http://opendatacommunities.org/id/unitary-authority/peterborough,Peterborough City Council,Adult Services & Communities - Adults,Independent Sector Placements,Services,04/11/2016 00:00,30098980,3680,Revenue,Avery House (Peterborough) t/a Brighterkind,Residential Care
Peterborough,http://opendatacommunities.org/id/unitary-authority/peterborough,Peterborough City Council,Adult Services & Communities - Adults,Independent Sector Placements,Services,04/11/2016 00:00,30098981,1660.8,Revenue,Avery House (Peterborough) t/a Brighterkind,Residential Care
Peterborough,http://opendatacommunities.org/id/unitary-authority/peterborough,Peterborough City Council,Adult Services & Communities - Adults,Independent Sector Placements,Services,04/11/2016 00:00,30098982,586.84,Revenue,Avery House (Peterborough) t/a Brighterkind,Residential Care
Peterborough,http://opendatacommunities.org/id/unitary-authority/peterborough,Peterborough City Council,Adult Services & Communities - Adults,Independent Sector Placements,Services,04/11/2016 00:00,30098983,994.88,Revenue,Avery House (Peterborough) t/a Brighterkind,Residential Care
Peterborough,http://opendatacommunities.org/id/unitary-authority/peterborough,Peterborough City Council,Adult Services & Communities - Adults,Independent Sector Placements,Services,04/11/2016 00:00,30098984,907.6,Revenue,Avery House (Peterborough) t/a Brighterkind,Residential Care
Peterborough,http://opendatacommunities.org/id/unitary-authority/peterborough,Peterborough City Council,Adult Services & Communities - Adults,Independent Sector Placements,Services,04/11/2016 00:00,30098985,982.56,Revenue,Avery House (Peterborough) t/a Brighterkind,Residential Care
Peterborough,http://opendatacommunities.org/id/unitary-authority/peterborough,Peterborough City Council,Adult Services & Communities - Adults,Independent Sector Placements,Services,04/11/2016 00:00,30098986,954.48,Revenue,Avery House (Peterborough) t/a Brighterkind,Residential Care
Peterborough,http://opendatacommunities.org/id/unitary-authority/peterborough,Peterborough City Council,Adult Services & Communities - Adults,Independent Sector Placements,Services,04/11/2016 00:00,30098987,1299.08,Revenue,Avery House (Peterborough) t/a Brighterkind,Residential Care
Peterborough,http://opendatacommunities.org/id/unitary-authority/peterborough,Peterborough City Council,Adult Services & Communities - Adults,Independent Sector Placements,Services,04/11/2016 00:00,30098988,1299.08,Revenue,Avery House (Peterborough) t/a Brighterkind,Residential Care
Peterborough,http://opendatacommunities.org/id/unitary-authority/peterborough,Peterborough City Council,Adult Services & Communities - Adults,Independent Sector Placements,Services,04/11/2016 00:00,30098989,1352.64,Revenue,Avery House (Peterborough) t/a Brighterkind,Residential Care
Peterborough,http://opendatacommunities.org/id/unitary-authority/peterborough,Peterborough City Council,Adult Services & Communities - Adults,Independent Sector Placements,Services,04/11/2016 00:00,30098990,1126.88,Revenue,Avery House (Peterborough) t/a Brighterkind,Residential Care
Peterborough,http://opendatacommunities.org/id/unitary-authority/peterborough,Peterborough City Council,Adult Services & Communities - Adults,Independent Sector Placements,Services,04/11/2016 00:00,30098991,1601.68,Revenue,Avery House (Peterborough) t/a Brighterkind,Residential Care
Peterborough,http://opendatacommunities.org/id/unitary-authority/peterborough,Peterborough City Council,Adult Services & Communities - Adults,Independent Sector Placements,Services,04/11/2016 00:00,30098992,741.84,Revenue,Avery House (Peterborough) t/a Brighterkind,Residential Care
Peterborough,http://opendatacommunities.org/id/unitary-authority/peterborough,Peterborough City Council,Adult Services & Communities - Adults,Independent Sector Placements,Services,04/11/2016 00:00,30098993,1672.8,Revenue,Avery House (Peterborough) t/a Brighterkind,Residential Care
Peterborough,http://opendatacommunities.org/id/unitary-authority/peterborough,Peterborough City Council,Adult Services & Communities - Adults,Independent Sector Placements,Services,04/11/2016 00:00,30098994,1211.44,Revenue,Avery House (Peterborough) t/a Brighterkind,Residential Care
Peterborough,http://opendatacommunities.org/id/unitary-authority/peterborough,Peterborough City Council,Adult Services & Communities - Adults,Independent Sector Placements,Services,04/11/2016 00:00,30098995,712.72,Revenue,Avery House (Peterborough) t/a Brighterkind,Residential Care
Peterborough,http://opendatacommunities.org/id/unitary-authority/peterborough,Peterborough City Council,Adult Services & Communities - Adults,Independent Sector Placements,Services,04/11/2016 00:00,30099000,1632.6,Revenue,Avery House (Peterborough) t/a Brighterkind,Residential Care
Peterborough,http://opendatacommunities.org/id/unitary-authority/peterborough,Peterborough City Council,Adult Services & Communities - Adults,Independent Sector Placements,Services,04/11/2016 00:00,30099001,999.72,Revenue,Avery House (Peterborough) t/a Brighterkind,Residential Care
Peterborough,http://opendatacommunities.org/id/unitary-authority/peterborough,Peterborough City Council,Adult Services & Communities - Adults,Block Contracts,Third Party Payments,04/11/2016 00:00,30099077,5034.04,Revenue,Sense,Third Party Payments - Contract
Peterborough,http://opendatacommunities.org/id/unitary-authority/peterborough,Peterborough City Council,Adult Services & Communities - Adults,Block Contracts,Third Party Payments,04/11/2016 00:00,30099078,5034.04,Revenue,Sense,Third Party Payments - Contract
Peterborough,http://opendatacommunities.org/id/unitary-authority/peterborough,Peterborough City Council,Children's & Safeguarding,Child Health,Services,04/11/2016 00:00,30099104,1211.1,Revenue,K2 CARE LTD,Purchased Social Care Services
Peterborough,http://opendatacommunities.org/id/unitary-authority/peterborough,Peterborough City Council,Adult Services & Communities - Adults,Independent Sector Placements,Services,04/11/2016 00:00,30099142,901.56,Revenue,ARGYLE PARK NURSING HOME 2011,Residential Care
Peterborough,http://opendatacommunities.org/id/unitary-authority/peterborough,Peterborough City Council,Adult Services & Communities - Adults,Independent Sector Placements,Services,04/11/2016 00:00,30099171,3510.72,Revenue,Sanctuary Home Care Ltd (Southwood House),Residential Care
Peterborough,http://opendatacommunities.org/id/unitary-authority/peterborough,Peterborough City Council,Adult Services & Communities - Adults,Independent Sector Placements,Services,04/11/2016 00:00,30099201,6629.12,Revenue,Autism Care (UK) Ltd,Residential Care
Peterborough,http://opendatacommunities.org/id/unitary-authority/peterborough,Peterborough City Council,Adult Services & Communities - Adults,Independent Sector Placements,Services,04/11/2016 00:00,30099413,3400,Revenue,EXCELCARE GLENNFIELD HOUSE,Residential Care
Peterborough,http://opendatacommunities.org/id/unitary-authority/peterborough,Peterborough City Council,Adult Services & Communities - Adults,Independent Sector Placements,Services,04/11/2016 00:00,30099417,1811.24,Revenue,Excelcare Aliwal Manor,Residential Care
Peterborough,http://opendatacommunities.org/id/unitary-authority/peterborough,Peterborough City Council,Adult Services & Communities - Adults,Independent Sector Placements,Services,04/11/2016 00:00,30099419,3400,Revenue,EXCELCARE GLENNFIELD HOUSE,Residential Care
Peterborough,http://opendatacommunities.org/id/unitary-authority/peterborough,Peterborough City Council,Adult Services & Communities - Adults,Independent Sector Placements,Services,04/11/2016 00:00,30099458,1189.4,Revenue,Athena,Residential Care
Peterborough,http://opendatacommunities.org/id/unitary-authority/peterborough,Peterborough City Council,Adult Services & Communities - Adults,Independent Sector Placements,Services,04/11/2016 00:00,30099481,1680,Revenue,EXCELCARE GLENNFIELD HOUSE,Residential Care
Peterborough,http://opendatacommunities.org/id/unitary-authority/peterborough,Peterborough City Council,Westcombe Engineering,Westcombe Engineering,Services,04/11/2016 00:00,30099509,640,Revenue,Barron Clark Castings Ltd,Items For Resale
Peterborough,http://opendatacommunities.org/id/unitary-authority/peterborough,Peterborough City Council,Peterborough Highway Services,Transport & Infrastructure Commissioning,Services,04/11/2016 00:00,30099547,7860.09,Revenue,Stagecoach in Peterborough,Contractors
Peterborough,http://opendatacommunities.org/id/unitary-authority/peterborough,Peterborough City Council,Adult Services & Communities - Adults,Independent Sector Placements,Services,04/11/2016 00:00,30099680,10796.31,Revenue,Augusta Care Ltd,Home Care
Peterborough,http://opendatacommunities.org/id/unitary-authority/peterborough,Peterborough City Council,Adult Services & Communities - Adults,Independent Sector Placements,Services,04/11/2016 00:00,30099685,-10432,Revenue,Augusta Care Ltd,Home Care
Peterborough,http://opendatacommunities.org/id/unitary-authority/peterborough,Peterborough City Council,Adult Services & Communities - Adults,Independent Sector Placements,Services,04/11/2016 00:00,30099713,552,Revenue,Augusta Care Ltd,Home Care
Peterborough,http://opendatacommunities.org/id/unitary-authority/peterborough,Peterborough City Council,Business Management and Commercial Operations,Clare Lodge,Agency Staff,04/11/2016 00:00,30099762,1360,Revenue,Wrixon Care Services,External Temporary Staff
Peterborough,http://opendatacommunities.org/id/unitary-authority/peterborough,Peterborough City Council,Business Management and Commercial Operations,Clare Lodge,Agency Staff,04/11/2016 00:00,30099763,1456,Revenue,Wrixon Care Services,External Temporary Staff
Peterborough,http://opendatacommunities.org/id/unitary-authority/peterborough,Peterborough City Council,Business Management and Commercial Operations,Clare Lodge,Agency Staff,04/11/2016 00:00,30099767,1072,Revenue,Wrixon Care Services,External Temporary Staff
Peterborough,http://opendatacommunities.org/id/unitary-authority/peterborough,Peterborough City Council,Legal & Democratic,Democratic Services,Services,04/11/2016 00:00,30099857,10332,Revenue,Penna Plc,Consultants Fees
Peterborough,http://opendatacommunities.org/id/unitary-authority/peterborough,Peterborough City Council,Children's & Safeguarding,Access to Resources & Specialist Commissioning,Services,04/11/2016 00:00,30099888,16500,Revenue,Care 4 Children Residential Services Ltd,Boarding Out Allowances
Peterborough,http://opendatacommunities.org/id/unitary-authority/peterborough,Peterborough City Council,Adults and Communities - Communities,Housing and Health,Services,04/11/2016 00:00,30099964,583.31,Revenue,DA Rosalia Hotel,Homelessness Bed & Breakfast Costs
Peterborough,http://opendatacommunities.org/id/unitary-authority/peterborough,Peterborough City Council,Adults and Communities - Communities,Housing and Health,Services,04/11/2016 00:00,30099968,619.81,Revenue,DA Rosalia Hotel,Homelessness Bed & Breakfast Costs
Peterborough,http://opendatacommunities.org/id/unitary-authority/peterborough,Peterborough City Council,Adults and Communities - Communities,Housing and Health,Services,04/11/2016 00:00,30099970,714.56,Revenue,DA Rosalia Hotel,Homelessness Bed & Breakfast Costs
Peterborough,http://opendatacommunities.org/id/unitary-authority/peterborough,Peterborough City Council,Adults and Communities - Communities,Housing and Health,Services,04/11/2016 00:00,30099975,670.53,Revenue,DA Rosalia Hotel,Homelessness Bed & Breakfast Costs
Peterborough,http://opendatacommunities.org/id/unitary-authority/peterborough,Peterborough City Council,Adults and Communities - Communities,Housing and Health,Services,04/11/2016 00:00,30099980,655.06,Revenue,DA Rosalia Hotel,Homelessness Bed & Breakfast Costs
Peterborough,http://opendatacommunities.org/id/unitary-authority/peterborough,Peterborough City Council,Adults and Communities - Communities,Housing and Health,Services,04/11/2016 00:00,30099986,595.56,Revenue,DA Rosalia Hotel,Homelessness Bed & Breakfast Costs
Peterborough,http://opendatacommunities.org/id/unitary-authority/peterborough,Peterborough City Council,Adults and Communities - Communities,Housing and Health,Services,04/11/2016 00:00,30099987,595.56,Revenue,DA Rosalia Hotel,Homelessness Bed & Breakfast Costs
Peterborough,http://opendatacommunities.org/id/unitary-authority/peterborough,Peterborough City Council,Adults and Communities - Communities,Housing and Health,Services,04/11/2016 00:00,30099994,714.56,Revenue,DA Rosalia Hotel,Homelessness Bed & Breakfast Costs
Peterborough,http://opendatacommunities.org/id/unitary-authority/peterborough,Peterborough City Council,Corporate Property,Commercial Propety,Services,04/11/2016 00:00,30100183,1925,Revenue,Sharman Quinney,Valuations
Peterborough,http://opendatacommunities.org/id/unitary-authority/peterborough,Peterborough City Council,Children's & Safeguarding,Children's Social Care,Agency Staff,04/11/2016 00:00,30100210,7626,Revenue,Eden Brown Ltd,External Temporary Staff
Peterborough,http://opendatacommunities.org/id/unitary-authority/peterborough,Peterborough City Council,Corporate Items,Corporate Services,Levies,04/11/2016 00:00,30100226,145444,Revenue,North Level Dist.  Int. Drainage Board,Drainage Levy
Peterborough,http://opendatacommunities.org/id/unitary-authority/peterborough,Peterborough City Council,Corporate Items,Corporate Services,Levies,04/11/2016 00:00,30100229,78045.5,Revenue,Welland & Deepings Internal Drainage Board,Drainage Levy
Peterborough,http://opendatacommunities.org/id/unitary-authority/peterborough,Peterborough City Council,Children's & Safeguarding,Children's Social Care,Agency Staff,04/11/2016 00:00,30100273,660,Revenue,Eden Brown Ltd,External Temporary Staff
Peterborough,http://opendatacommunities.org/id/unitary-authority/peterborough,Peterborough City Council,Children's & Safeguarding,Children's Social Care,Agency Staff,04/11/2016 00:00,30100277,2450.88,Revenue,Eden Brown Ltd,External Temporary Staff
Peterborough,http://opendatacommunities.org/id/unitary-authority/peterborough,Peterborough City Council,Children's & Safeguarding,Children's Social Care,Agency Staff,04/11/2016 00:00,30100278,660,Revenue,Eden Brown Ltd,External Temporary Staff
Peterborough,http://opendatacommunities.org/id/unitary-authority/peterborough,Peterborough City Council,Children's & Safeguarding,Children's Social Care,Agency Staff,04/11/2016 00:00,30100279,535.16,Revenue,Eden Brown Ltd,External Temporary Staff
Peterborough,http://opendatacommunities.org/id/unitary-authority/peterborough,Peterborough City Council,Children's & Safeguarding,Children's Social Care,Agency Staff,04/11/2016 00:00,30100280,1906.24,Revenue,Eden Brown Ltd,External Temporary Staff
Peterborough,http://opendatacommunities.org/id/unitary-authority/peterborough,Peterborough City Council,Children's & Safeguarding,Children's Social Care,Agency Staff,04/11/2016 00:00,30100281,1337.9,Revenue,Eden Brown Ltd,External Temporary Staff
Peterborough,http://opendatacommunities.org/id/unitary-authority/peterborough,Peterborough City Council,Children's & Safeguarding,Access to Resources & Specialist Commissioning,Services,04/11/2016 00:00,30100441,2036.04,Revenue,Fostering People Ltd,Boarding Out Allowances
Peterborough,http://opendatacommunities.org/id/unitary-authority/peterborough,Peterborough City Council,Adult Services & Communities - Adults,Independent Sector Placements,Services,04/11/2016 00:00,30100469,1358,Revenue,K2 CARE LTD,Home Care
Peterborough,http://opendatacommunities.org/id/unitary-authority/peterborough,Peterborough City Council,Adult Services & Communities - Adults,Independent Sector Placements,Services,04/11/2016 00:00,30100471,1676.4,Revenue,K2 CARE LTD,Home Care
Peterborough,http://opendatacommunities.org/id/unitary-authority/peterborough,Peterborough City Council,Adult Services & Communities - Adults,Independent Sector Placements,Services,04/11/2016 00:00,30100474,1711.28,Revenue,K2 CARE LTD,Home Care
Peterborough,http://opendatacommunities.org/id/unitary-authority/peterborough,Peterborough City Council,Financial Services,Insurance,Services,04/11/2016 00:00,30100804,1451,Revenue,Clyde & Co LLP,Legal Costs
Peterborough,http://opendatacommunities.org/id/unitary-authority/peterborough,Peterborough City Council,Various,Various,Services,04/11/2016 00:00,30100844,529.56,Revenue,Royal Mail,Postage
Peterborough,http://opendatacommunities.org/id/unitary-authority/peterborough,Peterborough City Council,Adult Services & Communities - Adults,Independent Sector Placements,Services,04/11/2016 00:00,30100847,2554.33,Revenue,BUPA Care Homes,Residential Care
Peterborough,http://opendatacommunities.org/id/unitary-authority/peterborough,Peterborough City Council,Adult Services & Communities - Adults,Independent Sector Placements,Services,04/11/2016 00:00,30100870,2554.33,Revenue,BUPA Care Homes,Residential Care
Peterborough,http://opendatacommunities.org/id/unitary-authority/peterborough,Peterborough City Council,Adults and Communities - Communities,Housing and Health,Services,04/11/2016 00:00,30100923,507.5,Revenue,Eastfield Guesthouse,Homelessness Bed & Breakfast Costs
Peterborough,http://opendatacommunities.org/id/unitary-authority/peterborough,Peterborough City Council,Adults and Communities - Communities,Housing and Health,Services,04/11/2016 00:00,30100932,507.5,Revenue,Eastfield Guesthouse,Homelessness Bed & Breakfast Costs
Peterborough,http://opendatacommunities.org/id/unitary-authority/peterborough,Peterborough City Council,Adults and Communities - Communities,Housing and Health,Services,04/11/2016 00:00,30100955,507.5,Revenue,Eastfield Guesthouse,Homelessness Bed & Breakfast Costs
Peterborough,http://opendatacommunities.org/id/unitary-authority/peterborough,Peterborough City Council,Education,Pupil Referral Unit,Services,04/11/2016 00:00,30101051,5771.25,Revenue,ScholarPack,Education Expenses
Peterborough,http://opendatacommunities.org/id/unitary-authority/peterborough,Peterborough City Council,Adults and Communities - Communities,Housing and Health,Services,04/11/2016 00:00,30101116,1015,Revenue,Dunham Property Agents,Financial Assistance
Peterborough,http://opendatacommunities.org/id/unitary-authority/peterborough,Peterborough City Council,Corporate,Corporate,Non Revenue,04/11/2016 00:00,30101121,828366.65,Balance Sheet,Teachers Pensions,Pensions
Peterborough,http://opendatacommunities.org/id/unitary-authority/peterborough,Peterborough City Council,Adult Services & Communities - Adults,Independent Sector Placements,Services,04/11/2016 00:00,30101136,14170.8,Revenue,Augusta Care Ltd,Home Care
Peterborough,http://opendatacommunities.org/id/unitary-authority/peterborough,Peterborough City Council,Adult Services & Communities - Adults,Independent Sector Placements,Services,04/11/2016 00:00,30101139,14330.8,Revenue,Augusta Care Ltd,Home Care
Peterborough,http://opendatacommunities.org/id/unitary-authority/peterborough,Peterborough City Council,Adult Services & Communities - Adults,Independent Sector Placements,Services,04/11/2016 00:00,30101140,18746.4,Revenue,Augusta Care Ltd,Home Care
Peterborough,http://opendatacommunities.org/id/unitary-authority/peterborough,Peterborough City Council,Adult Services & Communities - Adults,Independent Sector Placements,Services,04/11/2016 00:00,30101141,14330.8,Revenue,Augusta Care Ltd,Home Care
Peterborough,http://opendatacommunities.org/id/unitary-authority/peterborough,Peterborough City Council,Adult Services & Communities - Adults,Independent Sector Placements,Services,04/11/2016 00:00,30101143,7701.6,Revenue,Augusta Care Ltd,Home Care
Peterborough,http://opendatacommunities.org/id/unitary-authority/peterborough,Peterborough City Council,Adult Services & Communities - Adults,Independent Sector Placements,Services,04/11/2016 00:00,30101147,2087.26,Revenue,Hales Group Ltd,Home Care
Peterborough,http://opendatacommunities.org/id/unitary-authority/peterborough,Peterborough City Council,Adult Services & Communities - Adults,Independent Sector Placements,Services,04/11/2016 00:00,30101152,918.34,Revenue,Hales Group Ltd,Home Care
Peterborough,http://opendatacommunities.org/id/unitary-authority/peterborough,Peterborough City Council,Adult Services & Communities - Adults,Block Contracts,Third Party Payments,04/11/2016 00:00,30101162,5034.04,Revenue,Sense,Third Party Payments - Contract
Peterborough,http://opendatacommunities.org/id/unitary-authority/peterborough,Peterborough City Council,Adult Services & Communities - Adults,Independent Sector Placements,Services,04/11/2016 00:00,30101174,5511.4,Revenue,Sense,Residential Care
Peterborough,http://opendatacommunities.org/id/unitary-authority/peterborough,Peterborough City Council,Adult Services & Communities - Adults,Independent Sector Placements,Services,04/11/2016 00:00,30101219,1274,Revenue,Select Support Partnerships Limited,Home Care
Peterborough,http://opendatacommunities.org/id/unitary-authority/peterborough,Peterborough City Council,Adult Services & Communities - Adults,Independent Sector Placements,Services,04/11/2016 00:00,30101222,1287,Revenue,Select Support Partnerships Limited,Home Care
Peterborough,http://opendatacommunities.org/id/unitary-authority/peterborough,Peterborough City Council,Adult Services & Communities - Adults,Independent Sector Placements,Services,04/11/2016 00:00,30101223,1274,Revenue,Select Support Partnerships Limited,Home Care
Peterborough,http://opendatacommunities.org/id/unitary-authority/peterborough,Peterborough City Council,Adult Services & Communities - Adults,Independent Sector Placements,Services,04/11/2016 00:00,30101227,1378,Revenue,Select Support Partnerships Limited,Home Care
Peterborough,http://opendatacommunities.org/id/unitary-authority/peterborough,Peterborough City Council,Adult Services & Communities - Adults,Independent Sector Placements,Services,04/11/2016 00:00,30101230,1612,Revenue,Select Support Partnerships Limited,Home Care
Peterborough,http://opendatacommunities.org/id/unitary-authority/peterborough,Peterborough City Council,Business Management and Commercial Operations,Clare Lodge,Energy Costs,04/11/2016 00:00,30101243,1211.29,Revenue,Corona Energy Retail 4 Limited,Gas
Peterborough,http://opendatacommunities.org/id/unitary-authority/peterborough,Peterborough City Council,Adult Services & Communities - Adults,Independent Sector Placements,Services,04/11/2016 00:00,30101255,1797.07,Revenue,THE CLAIR FRANCIS RETIREMENT HOME,Residential Care
Peterborough,http://opendatacommunities.org/id/unitary-authority/peterborough,Peterborough City Council,Children's & Safeguarding,Access to Resources & Specialist Commissioning,Services,04/11/2016 00:00,30101364,1660.71,Revenue,Sixteen Plus Limited,Boarding Out Allowances
Peterborough,http://opendatacommunities.org/id/unitary-authority/peterborough,Peterborough City Council,Education,PFI,Energy Costs,04/11/2016 00:00,30101391,2442.74,Revenue,Southern Electric,Electricity
Peterborough,http://opendatacommunities.org/id/unitary-authority/peterborough,Peterborough City Council,Education,PFI,Energy Costs,04/11/2016 00:00,30101391,1585.78,Revenue,Southern Electric,Electricity
Peterborough,http://opendatacommunities.org/id/unitary-authority/peterborough,Peterborough City Council,Vivacity/Cultural Services,Cultural Services,Energy Costs,04/11/2016 00:00,30101391,3138.01,Revenue,Southern Electric,Electricity
Peterborough,http://opendatacommunities.org/id/unitary-authority/peterborough,Peterborough City Council,Education,PFI,Energy Costs,04/11/2016 00:00,30101391,8731.95,Revenue,Southern Electric,Electricity
Peterborough,http://opendatacommunities.org/id/unitary-authority/peterborough,Peterborough City Council,Education,PFI,Energy Costs,04/11/2016 00:00,30101391,5038.74,Revenue,Southern Electric,Electricity
Peterborough,http://opendatacommunities.org/id/unitary-authority/peterborough,Peterborough City Council,Education,Service Director Education,Employers Superannuation Contributions,04/11/2016 00:00,30101407,26124.48,Revenue,Teachers Pensions,Pensions
Peterborough,http://opendatacommunities.org/id/unitary-authority/peterborough,Peterborough City Council,City Servs & Communications,Marketing & Communications,Services,04/11/2016 00:00,30101419,1671,Revenue,TLC Signs and Banners LTD,Printing
Peterborough,http://opendatacommunities.org/id/unitary-authority/peterborough,Peterborough City Council,Adult Services & Communities - Adults,Independent Sector Placements,Services,04/11/2016 00:00,30101436,2305.92,Revenue,BUPA Care Homes,Residential Care
Peterborough,http://opendatacommunities.org/id/unitary-authority/peterborough,Peterborough City Council,Adult Services & Communities - Adults,Independent Sector Placements,Services,04/11/2016 00:00,30101437,2305.92,Revenue,BUPA Care Homes,Residential Care
Peterborough,http://opendatacommunities.org/id/unitary-authority/peterborough,Peterborough City Council,Adult Services & Communities - Adults,Independent Sector Placements,Services,04/11/2016 00:00,30101439,1200,Revenue,FIELD HOUSE (EYE) LTD,Residential Care
Peterborough,http://opendatacommunities.org/id/unitary-authority/peterborough,Peterborough City Council,Adults and Communities - Communities,Housing and Health,Services,04/11/2016 00:00,30101451,575,Revenue,Good-Design-Ing Ltd,Special Projects
Peterborough,http://opendatacommunities.org/id/unitary-authority/peterborough,Peterborough City Council,Adult Services & Communities - Adults,Independent Sector Placements,Services,04/11/2016 00:00,30101455,672,Revenue,FIELD HOUSE (EYE) LTD,Residential Care
Peterborough,http://opendatacommunities.org/id/unitary-authority/peterborough,Peterborough City Council,Adult Services & Communities - Adults,Independent Sector Placements,Services,04/11/2016 00:00,30101460,-829.6,Revenue,Augusta Care Ltd,Home Care
Peterborough,http://opendatacommunities.org/id/unitary-authority/peterborough,Peterborough City Council,Public Health,Housing and Health - Public Health,Third Party Payments,04/11/2016 00:00,30101472,3300,Revenue,Vivacity Culture and Leisure,Third Party Payments - Contract
Peterborough,http://opendatacommunities.org/id/unitary-authority/peterborough,Peterborough City Council,Westcombe Engineering,Westcombe Engineering,Energy Costs,04/11/2016 00:00,30101473,-895.23,Revenue,Total Gas & Power Ltd,Gas
Peterborough,http://opendatacommunities.org/id/unitary-authority/peterborough,Peterborough City Council,Westcombe Engineering,Westcombe Engineering,Energy Costs,04/11/2016 00:00,30101473,1331.84,Revenue,Total Gas & Power Ltd,Gas
Peterborough,http://opendatacommunities.org/id/unitary-authority/peterborough,Peterborough City Council,Westcombe Engineering,Westcombe Engineering,Energy Costs,04/11/2016 00:00,30101473,2776.26,Revenue,Total Gas & Power Ltd,Gas
Peterborough,http://opendatacommunities.org/id/unitary-authority/peterborough,Peterborough City Council,Adults and Communities - Communities,Housing and Health,Services,04/11/2016 00:00,30101482,575,Revenue,Good-Design-Ing Ltd,Special Projects
Peterborough,http://opendatacommunities.org/id/unitary-authority/peterborough,Peterborough City Council,ICT,ICT,Services,04/11/2016 00:00,30101508,2461.2,Revenue,Serco Ltd,Computer Hardware
Peterborough,http://opendatacommunities.org/id/unitary-authority/peterborough,Peterborough City Council,Adult Services & Communities - Adults,Independent Sector Placements,Services,04/11/2016 00:00,8000074668,1465.97,Revenue,Allied Healthcare (UK) Ltd,Home Care
Peterborough,http://opendatacommunities.org/id/unitary-authority/peterborough,Peterborough City Council,Adult Services & Communities - Adults,Independent Sector Placements,Services,04/11/2016 00:00,8000074671,1483.78,Revenue,Allied Healthcare (UK) Ltd,Home Care
Peterborough,http://opendatacommunities.org/id/unitary-authority/peterborough,Peterborough City Council,Adult Services & Communities - Adults,Independent Sector Placements,Services,04/11/2016 00:00,8000074673,1597.63,Revenue,Allied Healthcare (UK) Ltd,Home Care
Peterborough,http://opendatacommunities.org/id/unitary-authority/peterborough,Peterborough City Council,Adult Services & Communities - Adults,Independent Sector Placements,Services,04/11/2016 00:00,8000074678,527.16,Revenue,Allied Healthcare (UK) Ltd,Home Care
Peterborough,http://opendatacommunities.org/id/unitary-authority/peterborough,Peterborough City Council,Adult Services & Communities - Adults,Independent Sector Placements,Services,04/11/2016 00:00,8000074679,1425.95,Revenue,Allied Healthcare (UK) Ltd,Home Care
Peterborough,http://opendatacommunities.org/id/unitary-authority/peterborough,Peterborough City Council,Adult Services & Communities - Adults,Independent Sector Placements,Services,04/11/2016 00:00,8000074680,686.27,Revenue,Allied Healthcare (UK) Ltd,Home Care
Peterborough,http://opendatacommunities.org/id/unitary-authority/peterborough,Peterborough City Council,Adult Services & Communities - Adults,Independent Sector Placements,Services,04/11/2016 00:00,8000074681,600.85,Revenue,Allied Healthcare (UK) Ltd,Home Care
Peterborough,http://opendatacommunities.org/id/unitary-authority/peterborough,Peterborough City Council,Adult Services & Communities - Adults,Independent Sector Placements,Services,04/11/2016 00:00,8000074682,587.19,Revenue,Allied Healthcare (UK) Ltd,Home Care
Peterborough,http://opendatacommunities.org/id/unitary-authority/peterborough,Peterborough City Council,Adult Services & Communities - Adults,Independent Sector Placements,Services,04/11/2016 00:00,8000074686,564.14,Revenue,Allied Healthcare (UK) Ltd,Home Care
Peterborough,http://opendatacommunities.org/id/unitary-authority/peterborough,Peterborough City Council,Adult Services & Communities - Adults,Independent Sector Placements,Services,04/11/2016 00:00,8000074690,2385.05,Revenue,Allied Healthcare (UK) Ltd,Home Care
Peterborough,http://opendatacommunities.org/id/unitary-authority/peterborough,Peterborough City Council,Adult Services & Communities - Adults,Independent Sector Placements,Services,04/11/2016 00:00,8000074691,2012.45,Revenue,Allied Healthcare (UK) Ltd,Home Care
Peterborough,http://opendatacommunities.org/id/unitary-authority/peterborough,Peterborough City Council,Adult Services & Communities - Adults,Independent Sector Placements,Services,04/11/2016 00:00,8000075363,823.2,Revenue,Axiom Housing Association,Home Care
Peterborough,http://opendatacommunities.org/id/unitary-authority/peterborough,Peterborough City Council,Adult Services & Communities - Adults,Independent Sector Placements,Services,04/11/2016 00:00,8000075364,823.2,Revenue,Axiom Housing Association,Home Care
Peterborough,http://opendatacommunities.org/id/unitary-authority/peterborough,Peterborough City Council,Education,Home to School Transport,Contract Hire and Operating Leases,04/11/2016 00:00,8000075608,2195.99,Revenue,A2B Euro Cars,Hired Transport
Peterborough,http://opendatacommunities.org/id/unitary-authority/peterborough,Peterborough City Council,Education,Home to School Transport,Contract Hire and Operating Leases,04/11/2016 00:00,8000075609,2520,Revenue,A2B Euro Cars,Hired Transport
Peterborough,http://opendatacommunities.org/id/unitary-authority/peterborough,Peterborough City Council,Education,Home to School Transport,Contract Hire and Operating Leases,04/11/2016 00:00,8000075610,2223,Revenue,A2B Euro Cars,Hired Transport
Peterborough,http://opendatacommunities.org/id/unitary-authority/peterborough,Peterborough City Council,Education,Home to School Transport,Contract Hire and Operating Leases,04/11/2016 00:00,8000075613,1080,Revenue,A2B Euro Cars,Hired Transport
Peterborough,http://opendatacommunities.org/id/unitary-authority/peterborough,Peterborough City Council,Education,Home to School Transport,Contract Hire and Operating Leases,04/11/2016 00:00,8000075614,757,Revenue,A2B Euro Cars,Hired Transport
Peterborough,http://opendatacommunities.org/id/unitary-authority/peterborough,Peterborough City Council,Education,Home to School Transport,Contract Hire and Operating Leases,04/11/2016 00:00,8000075615,1440,Revenue,A2B Euro Cars,Hired Transport
Peterborough,http://opendatacommunities.org/id/unitary-authority/peterborough,Peterborough City Council,Education,Home to School Transport,Contract Hire and Operating Leases,04/11/2016 00:00,8000075616,1260,Revenue,A2B Euro Cars,Hired Transport
Peterborough,http://opendatacommunities.org/id/unitary-authority/peterborough,Peterborough City Council,Education,Home to School Transport,Contract Hire and Operating Leases,04/11/2016 00:00,8000075617,1440,Revenue,A2B Euro Cars,Hired Transport
Peterborough,http://opendatacommunities.org/id/unitary-authority/peterborough,Peterborough City Council,Education,Home to School Transport,Contract Hire and Operating Leases,04/11/2016 00:00,8000075618,980,Revenue,A2B Euro Cars,Hired Transport
Peterborough,http://opendatacommunities.org/id/unitary-authority/peterborough,Peterborough City Council,Education,Home to School Transport,Contract Hire and Operating Leases,04/11/2016 00:00,8000075619,1084.69,Revenue,Ash School Transport,Hired Transport
Peterborough,http://opendatacommunities.org/id/unitary-authority/peterborough,Peterborough City Council,Education,Home to School Transport,Contract Hire and Operating Leases,04/11/2016 00:00,8000075620,560,Revenue,Ash School Transport,Hired Transport
Peterborough,http://opendatacommunities.org/id/unitary-authority/peterborough,Peterborough City Council,Education,Home to School Transport,Contract Hire and Operating Leases,04/11/2016 00:00,8000075621,1966,Revenue,Goldstar Cabs Ltd,Hired Transport
Peterborough,http://opendatacommunities.org/id/unitary-authority/peterborough,Peterborough City Council,Education,Home to School Transport,Contract Hire and Operating Leases,04/11/2016 00:00,8000075622,1864,Revenue,Goldstar Cabs Ltd,Hired Transport
Peterborough,http://opendatacommunities.org/id/unitary-authority/peterborough,Peterborough City Council,Education,Home to School Transport,Contract Hire and Operating Leases,04/11/2016 00:00,8000075624,1426,Revenue,Goldstar Cabs Ltd,Hired Transport
Peterborough,http://opendatacommunities.org/id/unitary-authority/peterborough,Peterborough City Council,Education,Home to School Transport,Contract Hire and Operating Leases,04/11/2016 00:00,8000075625,1541,Revenue,Goldstar Cabs Ltd,Hired Transport
Peterborough,http://opendatacommunities.org/id/unitary-authority/peterborough,Peterborough City Council,Education,Home to School Transport,Contract Hire and Operating Leases,04/11/2016 00:00,8000075626,1070,Revenue,Goldstar Cabs Ltd,Hired Transport
Peterborough,http://opendatacommunities.org/id/unitary-authority/peterborough,Peterborough City Council,Education,Home to School Transport,Contract Hire and Operating Leases,04/11/2016 00:00,8000075644,1547,Revenue,A2B Euro Cars,Hired Transport
Peterborough,http://opendatacommunities.org/id/unitary-authority/peterborough,Peterborough City Council,Education,Home to School Transport,Contract Hire and Operating Leases,04/11/2016 00:00,8000075645,779.5,Revenue,A2B Euro Cars,Hired Transport
Peterborough,http://opendatacommunities.org/id/unitary-authority/peterborough,Peterborough City Council,Education,Home to School Transport,Contract Hire and Operating Leases,04/11/2016 00:00,8000075646,970.5,Revenue,A2B Euro Cars,Hired Transport
Peterborough,http://opendatacommunities.org/id/unitary-authority/peterborough,Peterborough City Council,Education,Home to School Transport,Contract Hire and Operating Leases,04/11/2016 00:00,8000075647,1067.7,Revenue,A2B Euro Cars,Hired Transport
Peterborough,http://opendatacommunities.org/id/unitary-authority/peterborough,Peterborough City Council,Education,Home to School Transport,Contract Hire and Operating Leases,04/11/2016 00:00,8000075648,815.6,Revenue,A2B Euro Cars,Hired Transport
Peterborough,http://opendatacommunities.org/id/unitary-authority/peterborough,Peterborough City Council,Education,Home to School Transport,Contract Hire and Operating Leases,04/11/2016 00:00,8000075650,1920,Revenue,Peterborough Cars,Hired Transport
Peterborough,http://opendatacommunities.org/id/unitary-authority/peterborough,Peterborough City Council,Education,Home to School Transport,Contract Hire and Operating Leases,04/11/2016 00:00,8000075651,714.87,Revenue,Peterborough Cars,Hired Transport
Peterborough,http://opendatacommunities.org/id/unitary-authority/peterborough,Peterborough City Council,Education,Home to School Transport,Contract Hire and Operating Leases,04/11/2016 00:00,8000075652,959.84,Revenue,Peterborough Cars,Hired Transport
Peterborough,http://opendatacommunities.org/id/unitary-authority/peterborough,Peterborough City Council,Education,Home to School Transport,Contract Hire and Operating Leases,04/11/2016 00:00,8000075653,765.22,Revenue,Peterborough Cars,Hired Transport
Peterborough,http://opendatacommunities.org/id/unitary-authority/peterborough,Peterborough City Council,Education,Home to School Transport,Contract Hire and Operating Leases,04/11/2016 00:00,8000075654,657.08,Revenue,Peterborough Cars,Hired Transport
Peterborough,http://opendatacommunities.org/id/unitary-authority/peterborough,Peterborough City Council,Education,Home to School Transport,Contract Hire and Operating Leases,04/11/2016 00:00,8000075656,1182,Revenue,Goldstar Cabs Ltd,Hired Transport
Peterborough,http://opendatacommunities.org/id/unitary-authority/peterborough,Peterborough City Council,Education,Home to School Transport,Contract Hire and Operating Leases,04/11/2016 00:00,8000075657,518.4,Revenue,King Cabz,Hired Transport
Peterborough,http://opendatacommunities.org/id/unitary-authority/peterborough,Peterborough City Council,Education,Home to School Transport,Contract Hire and Operating Leases,04/11/2016 00:00,8000075658,702,Revenue,King Cabz,Hired Transport
Peterborough,http://opendatacommunities.org/id/unitary-authority/peterborough,Peterborough City Council,Education,Home to School Transport,Contract Hire and Operating Leases,04/11/2016 00:00,8000075659,684,Revenue,King Cabz,Hired Transport
Peterborough,http://opendatacommunities.org/id/unitary-authority/peterborough,Peterborough City Council,Education,Home to School Transport,Contract Hire and Operating Leases,04/11/2016 00:00,8000075660,1058.4,Revenue,King Cabz,Hired Transport
Peterborough,http://opendatacommunities.org/id/unitary-authority/peterborough,Peterborough City Council,Education,Home to School Transport,Contract Hire and Operating Leases,04/11/2016 00:00,8000075661,1058.4,Revenue,King Cabz,Hired Transport
Peterborough,http://opendatacommunities.org/id/unitary-authority/peterborough,Peterborough City Council,Education,Home to School Transport,Contract Hire and Operating Leases,04/11/2016 00:00,8000075662,792,Revenue,King Cabz,Hired Transport
Peterborough,http://opendatacommunities.org/id/unitary-authority/peterborough,Peterborough City Council,Education,Home to School Transport,Contract Hire and Operating Leases,04/11/2016 00:00,8000075663,1233,Revenue,King Cabz,Hired Transport
Peterborough,http://opendatacommunities.org/id/unitary-authority/peterborough,Peterborough City Council,Education,Home to School Transport,Contract Hire and Operating Leases,04/11/2016 00:00,8000075664,660.8,Revenue,King Cabz,Hired Transport
Peterborough,http://opendatacommunities.org/id/unitary-authority/peterborough,Peterborough City Council,Education,Home to School Transport,Contract Hire and Operating Leases,04/11/2016 00:00,8000075665,1320,Revenue,King Cabz,Hired Transport
Peterborough,http://opendatacommunities.org/id/unitary-authority/peterborough,Peterborough City Council,Education,Home to School Transport,Contract Hire and Operating Leases,04/11/2016 00:00,8000075666,684,Revenue,King Cabz,Hired Transport
Peterborough,http://opendatacommunities.org/id/unitary-authority/peterborough,Peterborough City Council,Education,Home to School Transport,Contract Hire and Operating Leases,04/11/2016 00:00,8000075669,918,Revenue,Kholyo Cars,Hired Transport
Peterborough,http://opendatacommunities.org/id/unitary-authority/peterborough,Peterborough City Council,Children's & Safeguarding,Children's Social Care,Agency Staff,06/11/2016 00:00,30102646,1315.55,Revenue,Service Care Solutions Ltd,External Temporary Staff
Peterborough,http://opendatacommunities.org/id/unitary-authority/peterborough,Peterborough City Council,Children's & Safeguarding,Children's Social Care,Agency Staff,06/11/2016 00:00,30102647,1315.55,Revenue,Service Care Solutions Ltd,External Temporary Staff
Peterborough,http://opendatacommunities.org/id/unitary-authority/peterborough,Peterborough City Council,Children's & Safeguarding,Access to Resources & Specialist Commissioning,Services,07/11/2016 00:00,30092591,17957.86,Revenue,Halliwell Homes Ltd,Boarding Out Allowances
Peterborough,http://opendatacommunities.org/id/unitary-authority/peterborough,Peterborough City Council,Adult Services & Communities - Adults,Day Opportunities / In House,Agency Staff,07/11/2016 00:00,30093047,1670,Revenue,Caritas Recruitment,External Temporary Staff
Peterborough,http://opendatacommunities.org/id/unitary-authority/peterborough,Peterborough City Council,Children's & Safeguarding,Access to Resources & Specialist Commissioning,Services,07/11/2016 00:00,30095082,20592.86,Revenue,Oracle Care Ltd (Region 2),Boarding Out Allowances
Peterborough,http://opendatacommunities.org/id/unitary-authority/peterborough,Peterborough City Council,Children's & Safeguarding,Access to Resources & Specialist Commissioning,Services,07/11/2016 00:00,30095788,15278.57,Revenue,Meadows Care Ltd,Boarding Out Allowances
Peterborough,http://opendatacommunities.org/id/unitary-authority/peterborough,Peterborough City Council,Children's & Safeguarding,Access to Resources & Specialist Commissioning,Services,07/11/2016 00:00,30095790,15278.57,Revenue,Meadows Care Ltd,Boarding Out Allowances
Peterborough,http://opendatacommunities.org/id/unitary-authority/peterborough,Peterborough City Council,Director,Director,Agency Staff,07/11/2016 00:00,30095792,4205.4,Revenue,Terry Reynolds Education Consulting Ltd,External Temporary Staff
Peterborough,http://opendatacommunities.org/id/unitary-authority/peterborough,Peterborough City Council,Children's & Safeguarding,Access to Resources & Specialist Commissioning,Services,07/11/2016 00:00,30097235,3214.28,Revenue,Sunbeam Fostering,Boarding Out Allowances
Peterborough,http://opendatacommunities.org/id/unitary-authority/peterborough,Peterborough City Council,Children's & Safeguarding,Access to Resources & Specialist Commissioning,Services,07/11/2016 00:00,30097527,15500,Revenue,Glebe House,Boarding Out Allowances
Peterborough,http://opendatacommunities.org/id/unitary-authority/peterborough,Peterborough City Council,Adult Services & Communities - Adults,Independent Sector Placements,Services,07/11/2016 00:00,30098113,2376,Revenue,ADR CARE HOMES LTD,Residential Care
Peterborough,http://opendatacommunities.org/id/unitary-authority/peterborough,Peterborough City Council,Peterborough Highway Services,Network and Traffic Management,Services,07/11/2016 00:00,30098115,3662.23,Revenue,Dynniq UK Ltd,Contractors
Peterborough,http://opendatacommunities.org/id/unitary-authority/peterborough,Peterborough City Council,Peterborough Highway Services,Network and Traffic Management,Services,07/11/2016 00:00,30098116,3677,Revenue,Dynniq UK Ltd,Contractors
Peterborough,http://opendatacommunities.org/id/unitary-authority/peterborough,Peterborough City Council,Education,Service Director Resources,Agency Staff,07/11/2016 00:00,30098249,4816.6,Revenue,Terry Reynolds Education Consulting Ltd,External Temporary Staff
Peterborough,http://opendatacommunities.org/id/unitary-authority/peterborough,Peterborough City Council,Adult Services & Communities - Adults,Day Opportunities / In House,Agency Staff,07/11/2016 00:00,30098337,1483,Revenue,Caritas Recruitment,External Temporary Staff
Peterborough,http://opendatacommunities.org/id/unitary-authority/peterborough,Peterborough City Council,Adult Services & Communities - Adults,Finance,Agency Staff,07/11/2016 00:00,30098339,2000,Revenue,Caritas Recruitment,External Temporary Staff
Peterborough,http://opendatacommunities.org/id/unitary-authority/peterborough,Peterborough City Council,Adult Services & Communities - Adults,Day Opportunities / In House,Agency Staff,07/11/2016 00:00,30098342,1295,Revenue,Caritas Recruitment,External Temporary Staff
